{"text_format":"1","workbook":"xlsx","n_sheets":61,"sheets":["Schools","Comparability Report Salary","Instructional Salary School 1","Instructional Salary School 2","Instructional Salary School 3","Instructional Salary School 4","Instructional Salary School 5","Instructional Salary School 6","Instructional Salary School 7","Instructional Salary School 8","Instructional Salary School 9","Instructional Salary School 10","Instructional Salary School 11","Instructional Salary School 12","Instructional Salary School 13","Instructional Salary School 14","Instructional Salary School 15","Instructional Salary School 16","Instructional Salary School 17","Instructional Salary School 18","Instructional Salary School 19","Instructional Salary School 20","Instructional Salary School 21","Instructional Salary School 22","Instructional Salary School 23","Instructional Salary School 24","Instructional Salary School 25","Instructional Salary School 26","Instructional Salary School 27","Instructional Salary School 28","Instructional Salary School 29","Instructional Salary School 30","Instructional Salary School 31","Instructional Salary School 32","Instructional Salary School 33","Instructional Salary School 34","Instructional Salary School 35","Instructional Salary School 36","Instructional Salary School 37","Instructional Salary School 38","Instructional Salary School 39","Instructional Salary School 40","Instructional Salary School 41","Instructional Salary School 42","Instructional Salary School 43","Instructional Salary School 44","Instructional Salary School 45","Instructional Salary School 46","Instructional Salary School 47","Instructional Salary School 48","Instructional Salary School 49","Instructional Salary School 50","Instructional Salary School 51","Instructional Salary School 52","Instructional Salary School 53","Instructional Salary School 54","Instructional Salary School 55","Instructional Salary School 56","Instructional Salary School 57","Instructional Salary School 58","Instructional Salary School 59"],"not_rendered":{"charts":0,"images":0,"macros":1,"external_links":0,"defined_names":2,"comments":0,"pivot_tables":0},"unopened":[],"bounds":{"document_bytes":16777216,"sheet_cells":100000,"rows_first":2000,"rows_last":500,"rows_between":2000,"halvings":0,"cell_chars":16384,"cell_head_chars":4096},"cells_cut":0,"cells_raw":0,"read":"whole","date_system":"1900"}

{"sheet":"Schools","index":0,"n_rows":77,"n_cols":18,"rows_kept":77,"cut":false,"hidden":false,"merged":[[3,17,4,17],[0,0,0,4],[1,2,1,3],[3,4,3,16],[4,1,5,1],[4,2,4,3],[4,4,4,16],[2,2,2,3],[4,0,5,0],[1,4,1,16],[2,4,2,16],[33,17,34,17],[34,1,35,1],[34,2,34,3],[34,4,34,16],[30,0,30,4],[31,2,31,3],[31,4,31,16],[32,2,32,3],[32,4,32,16],[34,0,35,0],[60,0,60,4],[62,2,62,3],[62,4,62,16],[33,4,33,16],[61,2,61,3],[61,4,61,16],[63,17,64,17],[64,0,65,0],[64,1,65,1],[64,2,64,3],[63,4,63,16],[64,4,64,16]]}
["(Required - Upload a Printed Copy MCAPS)"]
["List all schools in the LEA.",null,"LEA  Name:"]
[null,null,"School Year:"]
[1,2,3,4,5,null,null,null,null,null,null,null,null,null,null,null,null,6]
["School Name","Grade Span","Student Counts",null,"Enrollment Counts by Grade"]
[null,null,"Enrollment","Poverty","K",1,2,3,4,5,6,7,8,9,10,11,12,"Total"]
[null,null,null,null,null,null,null,null,null,null,null,null,null,null,null,null,null,{"$f":"SUM(E7:Q7)","v":0}]
[null,null,null,null,null,null,null,null,null,null,null,null,null,null,null,null,null,{"$f":"SUM(E8:Q8)","v":0}]
[null,null,null,null,null,null,null,null,null,null,null,null,null,null,null,null,null,0]
[null,null,null,null,null,null,null,null,null,null,null,null,null,null,null,null,null,0]
[null,null,null,null,null,null,null,null,null,null,null,null,null,null,null,null,null,0]
[null,null,null,null,null,null,null,null,null,null,null,null,null,null,null,null,null,0]
[null,null,null,null,null,null,null,null,null,null,null,null,null,null,null,null,null,0]
[null,null,null,null,null,null,null,null,null,null,null,null,null,null,null,null,null,0]
[null,null,null,null,null,null,null,null,null,null,null,null,null,null,null,null,null,0]
[null,null,null,null,null,null,null,null,null,null,null,null,null,null,null,null,null,0]
[null,null,null,null,null,null,null,null,null,null,null,null,null,null,null,null,null,0]
[null,null,null,null,null,null,null,null,null,null,null,null,null,null,null,null,null,0]
[null,null,null,null,null,null,null,null,null,null,null,null,null,null,null,null,null,0]
[null,null,null,null,null,null,null,null,null,null,null,null,null,null,null,null,null,0]
[null,null,null,null,null,null,null,null,null,null,null,null,null,null,null,null,null,0]
[null,null,null,null,null,null,null,null,null,null,null,null,null,null,null,null,null,0]
[null,null,null,null,null,null,null,null,null,null,null,null,null,null,null,null,null,0]
[null,null,null,null,null,null,null,null,null,null,null,null,null,null,null,null,null,0]
[null,null,null,null,null,null,null,null,null,null,null,null,null,null,null,null,null,0]
[null,null,null,null,null,null,null,null,null,null,null,null,null,null,null,null,null,0]
[null,null,null,null,null,null,null,null,null,null,null,null,null,null,null,null,null,0]
[null,null,null,null,null,null,null,null,null,null,null,null,null,null,null,null,null,0]
[null,null,null,null,null,null,null,null,null,null,null,null,null,null,null,null,null,0]
[null,null,null,null,null,null,null,null,null,null,null,null,null,null,null,null,null,0]
["(Required - Upload a Printed Copy MCAPS)"]
["List all schools in the LEA.",null,"LEA  Name:",null,{"$f":"$E$2","v":0}]
[null,null,"School Year:",null,{"$f":"$E$3","v":0}]
[1,2,3,4,5,null,null,null,null,null,null,null,null,null,null,null,null,6]
["School Name","Grade Span","Student Counts",null,"Enrollment Counts by Grade"]
[null,null,"Enrollment","Poverty","K",1,2,3,4,5,6,7,8,9,10,11,12,"Total"]
[null,null,null,null,null,null,null,null,null,null,null,null,null,null,null,null,null,0]
[null,null,null,null,null,null,null,null,null,null,null,null,null,null,null,null,null,0]
[null,null,null,null,null,null,null,null,null,null,null,null,null,null,null,null,null,0]
[null,null,null,null,null,null,null,null,null,null,null,null,null,null,null,null,null,0]
[null,null,null,null,null,null,null,null,null,null,null,null,null,null,null,null,null,0]
[null,null,null,null,null,null,null,null,null,null,null,null,null,null,null,null,null,0]
[null,null,null,null,null,null,null,null,null,null,null,null,null,null,null,null,null,0]
[null,null,null,null,null,null,null,null,null,null,null,null,null,null,null,null,null,0]
[null,null,null,null,null,null,null,null,null,null,null,null,null,null,null,null,null,0]
[null,null,null,null,null,null,null,null,null,null,null,null,null,null,null,null,null,0]
[null,null,null,null,null,null,null,null,null,null,null,null,null,null,null,null,null,0]
[null,null,null,null,null,null,null,null,null,null,null,null,null,null,null,null,null,0]
[null,null,null,null,null,null,null,null,null,null,null,null,null,null,null,null,null,0]
[null,null,null,null,null,null,null,null,null,null,null,null,null,null,null,null,null,0]
[null,null,null,null,null,null,null,null,null,null,null,null,null,null,null,null,null,0]
[null,null,null,null,null,null,null,null,null,null,null,null,null,null,null,null,null,0]
[null,null,null,null,null,null,null,null,null,null,null,null,null,null,null,null,null,0]
[null,null,null,null,null,null,null,null,null,null,null,null,null,null,null,null,null,0]
[null,null,null,null,null,null,null,null,null,null,null,null,null,null,null,null,null,0]
[null,null,null,null,null,null,null,null,null,null,null,null,null,null,null,null,null,0]
[null,null,null,null,null,null,null,null,null,null,null,null,null,null,null,null,null,0]
[null,null,null,null,null,null,null,null,null,null,null,null,null,null,null,null,null,0]
[null,null,null,null,null,null,null,null,null,null,null,null,null,null,null,null,null,0]
[null,null,null,null,null,null,null,null,null,null,null,null,null,null,null,null,null,0]
["(Required - Upload a Printed Copy MCAPS)"]
["List all schools in the LEA.",null,"LEA  Name:",null,{"$f":"$E$2","v":0}]
[null,null,"School Year:",null,{"$f":"$E$3","v":0}]
[1,2,3,4,5,null,null,null,null,null,null,null,null,null,null,null,null,6]
["School Name","Grade Span","Student Counts",null,"Enrollment Counts by Grade"]
[null,null,"Enrollment","Poverty","K",1,2,3,4,5,6,7,8,9,10,11,12,"Total"]
[null,null,null,null,null,null,null,null,null,null,null,null,null,null,null,null,null,{"$f":"SUM(E67:Q67)","v":0}]
[null,null,null,null,null,null,null,null,null,null,null,null,null,null,null,null,null,{"$f":"SUM(E68:Q68)","v":0}]
[null,null,null,null,null,null,null,null,null,null,null,null,null,null,null,null,null,0]
[null,null,null,null,null,null,null,null,null,null,null,null,null,null,null,null,null,0]
[null,null,null,null,null,null,null,null,null,null,null,null,null,null,null,null,null,0]
[null,null,null,null,null,null,null,null,null,null,null,null,null,null,null,null,null,0]
[null,null,null,null,null,null,null,null,null,null,null,null,null,null,null,null,null,0]
[null,null,null,null,null,null,null,null,null,null,null,null,null,null,null,null,null,0]
[null,null,null,null,null,null,null,null,null,null,null,null,null,null,null,null,null,0]
[null,null,null,null,null,null,null,null,null,null,null,null,null,null,null,null,null,0]
[null,null,null,null,null,null,null,null,null,null,null,null,null,null,null,null,null,0]

{"sheet":"Comparability Report Salary","index":1,"n_rows":84,"n_cols":8,"rows_kept":84,"cut":false,"hidden":false,"merged":[[82,6,82,7],[66,6,66,7],[67,6,67,7],[62,5,62,7],[63,0,63,7],[72,6,72,7],[64,0,65,4],[77,6,77,7],[78,6,78,7],[79,6,79,7],[83,6,83,7],[48,6,48,7],[58,6,58,7],[59,6,59,7],[52,6,52,7],[53,6,53,7],[56,6,56,7],[57,6,57,7],[68,6,68,7],[65,5,65,6],[73,6,73,7],[74,6,74,7],[75,6,75,7],[76,6,76,7],[49,6,49,7],[50,6,50,7],[37,6,37,7],[28,6,28,7],[40,6,40,7],[36,6,36,7],[25,6,25,7],[45,6,45,7],[46,6,46,7],[43,6,43,7],[38,6,38,7],[39,6,39,7],[41,6,41,7],[42,6,42,7],[44,6,44,7],[0,0,0,7],[2,5,2,7],[6,6,6,7],[7,6,7,7],[8,6,8,7],[1,5,1,7],[3,0,3,7],[4,0,5,4],[4,5,4,6],[5,5,5,6],[34,5,34,6],[35,5,35,6],[23,6,23,7],[30,0,30,7],[31,5,31,7],[32,5,32,7],[33,0,33,7],[26,6,26,7],[34,0,35,4],[24,6,24,7],[27,6,27,7],[29,6,29,7],[9,6,9,7],[10,6,10,7],[22,6,22,7],[11,6,11,7],[12,6,12,7],[13,6,13,7],[15,6,15,7],[14,6,14,7],[16,6,16,7],[21,6,21,7],[17,6,17,7],[18,6,18,7],[19,6,19,7],[20,6,20,7],[54,6,54,7],[55,6,55,7],[80,6,80,7],[81,6,81,7],[47,6,47,7],[51,6,51,7],[69,6,69,7],[70,6,70,7],[71,6,71,7],[64,5,64,6],[60,0,60,7],[61,5,61,7]]}
["(Required - Upload a Printed Copy to the LEA Document Library's Comparability folder in MCAPS)"]
["List all schools in the LEA.",null,null,null,"LEA  Name:",{"$f":"Schools!E2","v":0}]
[null,null,null,null,"School Year:",{"$f":"Schools!E3","v":0}]
["ALL Served Title I Schools"]
["NOTE: Each Title I School's ratio must fall between 90 and 110 percent of the average ratio for all schools.",null,null,null,null,"90% of Student/Instructional Salary Ratio",null,{"$f":"ROUND(+F84*0.9,1)","v":{"$error":"#DIV/0!"}}]
[null,null,null,null,null,"110% of Student Instructional Salary Ratio",null,{"$f":"ROUND(+F84*1.1,1)","v":{"$error":"#DIV/0!"}}]
[1,2,3,"4","5","6","7"]
["Schools","Grade Span","Student Enrollment","Poverty Percentage","Instructional Salary","Instructional Salary/ Student Ratio"," Comparable?"]
[{"$f":"Schools!A7","v":0},{"$f":"Schools!B7","v":0},{"$f":"Schools!C7","v":0},{"$f":"Schools!D7/Schools!C7","v":{"$error":"#DIV/0!"}},{"$f":"'Instructional Salary School 1'!$E$94","v":0},{"$f":"E9/C9","v":{"$error":"#DIV/0!"}},{"$f":"IF(ISNUMBER(F9),IF(AND(F9>=CompA,F9<=CompB),\"Yes\",\"No\"),\"\")","v":""}]
[{"$f":"Schools!A8","v":0},{"$f":"Schools!B8","v":0},{"$f":"Schools!C8","v":0},{"$f":"Schools!D8/Schools!C8","v":{"$error":"#DIV/0!"}},{"$f":"'Instructional Salary School 2'!$E$94","v":0},{"$f":"E10/C10","v":{"$error":"#DIV/0!"}},{"$f":"IF(ISNUMBER(F10),IF(AND(F10>=CompA,F10<=CompB),\"Yes\",\"No\"),\"\")","v":""}]
[{"$f":"Schools!A9","v":0},{"$f":"Schools!B9","v":0},{"$f":"Schools!C9","v":0},{"$f":"Schools!D9/Schools!C9","v":{"$error":"#DIV/0!"}},{"$f":"'Instructional Salary School 3'!$E$94","v":0},{"$error":"#DIV/0!"},""]
[{"$f":"Schools!A10","v":0},{"$f":"Schools!B10","v":0},{"$f":"Schools!C10","v":0},{"$f":"Schools!D10/Schools!C10","v":{"$error":"#DIV/0!"}},{"$f":"'Instructional Salary School 4'!$E$94","v":0},{"$error":"#DIV/0!"},""]
[{"$f":"Schools!A11","v":0},{"$f":"Schools!B11","v":0},{"$f":"Schools!C11","v":0},{"$f":"Schools!D11/Schools!C11","v":{"$error":"#DIV/0!"}},{"$f":"'Instructional Salary School 5'!$E$94","v":0},{"$error":"#DIV/0!"},""]
[{"$f":"Schools!A12","v":0},{"$f":"Schools!B12","v":0},{"$f":"Schools!C12","v":0},{"$f":"Schools!D12/Schools!C12","v":{"$error":"#DIV/0!"}},{"$f":"'Instructional Salary School 6'!$E$94","v":0},{"$error":"#DIV/0!"},""]
[{"$f":"Schools!A13","v":0},{"$f":"Schools!B13","v":0},{"$f":"Schools!C13","v":0},{"$f":"Schools!D13/Schools!C13","v":{"$error":"#DIV/0!"}},{"$f":"'Instructional Salary School 7'!$E$94","v":0},{"$error":"#DIV/0!"},""]
[{"$f":"Schools!A14","v":0},{"$f":"Schools!B14","v":0},{"$f":"Schools!C14","v":0},{"$f":"Schools!D14/Schools!C14","v":{"$error":"#DIV/0!"}},{"$f":"'Instructional Salary School 8'!$E$94","v":0},{"$error":"#DIV/0!"},""]
[{"$f":"Schools!A15","v":0},{"$f":"Schools!B15","v":0},{"$f":"Schools!C15","v":0},{"$f":"Schools!D15/Schools!C15","v":{"$error":"#DIV/0!"}},{"$f":"'Instructional Salary School 9'!$E$94","v":0},{"$error":"#DIV/0!"},""]
[{"$f":"Schools!A16","v":0},{"$f":"Schools!B16","v":0},{"$f":"Schools!C16","v":0},{"$f":"Schools!D16/Schools!C16","v":{"$error":"#DIV/0!"}},{"$f":"'Instructional Salary School 10'!$E$94","v":0},{"$error":"#DIV/0!"},""]
[{"$f":"Schools!A17","v":0},{"$f":"Schools!B17","v":0},{"$f":"Schools!C17","v":0},{"$f":"Schools!D17/Schools!C17","v":{"$error":"#DIV/0!"}},{"$f":"'Instructional Salary School 11'!$E$94","v":0},{"$error":"#DIV/0!"},""]
[{"$f":"Schools!A18","v":0},{"$f":"Schools!B18","v":0},{"$f":"Schools!C18","v":0},{"$f":"Schools!D18/Schools!C18","v":{"$error":"#DIV/0!"}},{"$f":"'Instructional Salary School 12'!$E$94","v":0},{"$error":"#DIV/0!"},""]
[{"$f":"Schools!A19","v":0},{"$f":"Schools!B19","v":0},{"$f":"Schools!C19","v":0},{"$f":"Schools!D19/Schools!C19","v":{"$error":"#DIV/0!"}},{"$f":"'Instructional Salary School 13'!$E$94","v":0},{"$error":"#DIV/0!"},""]
[{"$f":"Schools!A20","v":0},{"$f":"Schools!B20","v":0},{"$f":"Schools!C20","v":0},{"$f":"Schools!D20/Schools!C20","v":{"$error":"#DIV/0!"}},{"$f":"'Instructional Salary School 14'!$E$94","v":0},{"$error":"#DIV/0!"},""]
[{"$f":"Schools!A21","v":0},{"$f":"Schools!B21","v":0},{"$f":"Schools!C21","v":0},{"$f":"Schools!D21/Schools!C21","v":{"$error":"#DIV/0!"}},{"$f":"'Instructional Salary School 15'!$E$94","v":0},{"$error":"#DIV/0!"},""]
[{"$f":"Schools!A22","v":0},{"$f":"Schools!B22","v":0},{"$f":"Schools!C22","v":0},{"$f":"Schools!D22/Schools!C22","v":{"$error":"#DIV/0!"}},{"$f":"'Instructional Salary School 16'!$E$94","v":0},{"$error":"#DIV/0!"},{"$f":"IF(ISNUMBER(F24),IF(AND(F24>=CompA,F24<=CompB),\"Yes\",\"No\"),\"\")","v":""}]
[{"$f":"Schools!A23","v":0},{"$f":"Schools!B23","v":0},{"$f":"Schools!C23","v":0},{"$f":"Schools!D23/Schools!C23","v":{"$error":"#DIV/0!"}},{"$f":"'Instructional Salary School 17'!$E$94","v":0},{"$error":"#DIV/0!"},""]
[{"$f":"Schools!A24","v":0},{"$f":"Schools!B24","v":0},{"$f":"Schools!C24","v":0},{"$f":"Schools!D24/Schools!C24","v":{"$error":"#DIV/0!"}},{"$f":"'Instructional Salary School 18'!$E$94","v":0},{"$error":"#DIV/0!"},""]
[{"$f":"Schools!A25","v":0},{"$f":"Schools!B25","v":0},{"$f":"Schools!C25","v":0},{"$f":"Schools!D25/Schools!C25","v":{"$error":"#DIV/0!"}},{"$f":"'Instructional Salary School 19'!$E$94","v":0},{"$error":"#DIV/0!"},""]
[{"$f":"Schools!A26","v":0},{"$f":"Schools!B26","v":0},{"$f":"Schools!C26","v":0},{"$f":"Schools!D26/Schools!C26","v":{"$error":"#DIV/0!"}},{"$f":"'Instructional Salary School 20'!$E$94","v":0},{"$error":"#DIV/0!"},""]
[{"$f":"Schools!A27","v":0},{"$f":"Schools!B27","v":0},{"$f":"Schools!C27","v":0},{"$f":"Schools!D27/Schools!C27","v":{"$error":"#DIV/0!"}},{"$f":"'Instructional Salary School 21'!$E$94","v":0},{"$error":"#DIV/0!"},""]
[{"$f":"Schools!A28","v":0},{"$f":"Schools!B28","v":0},{"$f":"Schools!C28","v":0},{"$f":"Schools!D28/Schools!C28","v":{"$error":"#DIV/0!"}},{"$f":"'Instructional Salary School 22'!$E$94","v":0},{"$error":"#DIV/0!"},""]
["(Required - Upload a Printed Copy to the LEA Document Library's Comparability folder in MCAPS)"]
["List all schools in the LEA.",null,null,null,"LEA  Name:",{"$f":"F2","v":0}]
[null,null,null,null,"School Year:",{"$f":"F3","v":0}]
["ALL Served Title I Schools"]
["NOTE: Each Title I School's ratio must fall between 90 and 110 percent of the average ratio for all schools.",null,null,null,null,"90% of Student/Instructional Salary Ratio",null,{"$f":"H5","v":{"$error":"#DIV/0!"}}]
[null,null,null,null,null,"110% of Student Instructional Salary Ratio",null,{"$f":"H6","v":{"$error":"#DIV/0!"}}]
[1,2,3,"4","5","6","7"]
["Schools","Grade Span","Student Enrollment","Poverty Percentage","Instructional Salary","Instructional Salary/ Student Ratio"," Comparable?"]
[{"$f":"Schools!A29","v":0},{"$f":"Schools!B29","v":0},{"$f":"Schools!C29","v":0},{"$f":"Schools!D29/Schools!C29","v":{"$error":"#DIV/0!"}},{"$f":"'Instructional Salary School 23'!$E$94","v":0},{"$f":"E39/C39","v":{"$error":"#DIV/0!"}},{"$f":"IF(ISNUMBER(F39),IF(AND(F39>=CompA,F39<=CompB),\"Yes\",\"No\"),\"\")","v":""}]
[{"$f":"Schools!A30","v":0},{"$f":"Schools!B30","v":0},{"$f":"Schools!C30","v":0},{"$f":"Schools!D30/Schools!C30","v":{"$error":"#DIV/0!"}},{"$f":"'Instructional Salary School 24'!$E$94","v":0},{"$f":"E40/C40","v":{"$error":"#DIV/0!"}},""]
[{"$f":"Schools!A37","v":0},{"$f":"Schools!B37","v":0},{"$f":"Schools!C37","v":0},{"$f":"Schools!D37/Schools!C37","v":{"$error":"#DIV/0!"}},{"$f":"'Instructional Salary School 25'!$E$94","v":0},{"$error":"#DIV/0!"},""]
[{"$f":"Schools!A38","v":0},{"$f":"Schools!B38","v":0},{"$f":"Schools!C38","v":0},{"$f":"Schools!D38/Schools!C38","v":{"$error":"#DIV/0!"}},{"$f":"'Instructional Salary School 26'!$E$94","v":0},{"$error":"#DIV/0!"},""]
[{"$f":"Schools!A39","v":0},{"$f":"Schools!B39","v":0},{"$f":"Schools!C39","v":0},{"$f":"Schools!D39/Schools!C39","v":{"$error":"#DIV/0!"}},{"$f":"'Instructional Salary School 27'!$E$94","v":0},{"$error":"#DIV/0!"},""]
[{"$f":"Schools!A40","v":0},{"$f":"Schools!B40","v":0},{"$f":"Schools!C40","v":0},{"$f":"Schools!D40/Schools!C40","v":{"$error":"#DIV/0!"}},{"$f":"'Instructional Salary School 28'!$E$94","v":0},{"$error":"#DIV/0!"},""]
[{"$f":"Schools!A41","v":0},{"$f":"Schools!B41","v":0},{"$f":"Schools!C41","v":0},{"$f":"Schools!D41/Schools!C41","v":{"$error":"#DIV/0!"}},{"$f":"'Instructional Salary School 29'!$E$94","v":0},{"$error":"#DIV/0!"},""]
[{"$f":"Schools!A42","v":0},{"$f":"Schools!B42","v":0},{"$f":"Schools!C42","v":0},{"$f":"Schools!D42/Schools!C42","v":{"$error":"#DIV/0!"}},{"$f":"'Instructional Salary School 30'!$E$94","v":0},{"$error":"#DIV/0!"},""]
[{"$f":"Schools!A43","v":0},{"$f":"Schools!B43","v":0},{"$f":"Schools!C43","v":0},{"$f":"Schools!D43/Schools!C43","v":{"$error":"#DIV/0!"}},{"$f":"'Instructional Salary School 31'!$E$94","v":0},{"$error":"#DIV/0!"},""]
[{"$f":"Schools!A44","v":0},{"$f":"Schools!B44","v":0},{"$f":"Schools!C44","v":0},{"$f":"Schools!D44/Schools!C44","v":{"$error":"#DIV/0!"}},{"$f":"'Instructional Salary School 32'!$E$94","v":0},{"$error":"#DIV/0!"},""]
[{"$f":"Schools!A45","v":0},{"$f":"Schools!B45","v":0},{"$f":"Schools!C45","v":0},{"$f":"Schools!D45/Schools!C45","v":{"$error":"#DIV/0!"}},{"$f":"'Instructional Salary School 33'!$E$94","v":0},{"$error":"#DIV/0!"},""]
[{"$f":"Schools!A46","v":0},{"$f":"Schools!B46","v":0},{"$f":"Schools!C46","v":0},{"$f":"Schools!D46/Schools!C46","v":{"$error":"#DIV/0!"}},{"$f":"'Instructional Salary School 34'!$E$94","v":0},{"$error":"#DIV/0!"},""]
[{"$f":"Schools!A47","v":0},{"$f":"Schools!B47","v":0},{"$f":"Schools!C47","v":0},{"$f":"Schools!D47/Schools!C47","v":{"$error":"#DIV/0!"}},{"$f":"'Instructional Salary School 35'!$E$94","v":0},{"$error":"#DIV/0!"},""]
[{"$f":"Schools!A48","v":0},{"$f":"Schools!B48","v":0},{"$f":"Schools!C48","v":0},{"$f":"Schools!D48/Schools!C48","v":{"$error":"#DIV/0!"}},{"$f":"'Instructional Salary School 36'!$E$94","v":0},{"$error":"#DIV/0!"},""]
[{"$f":"Schools!A49","v":0},{"$f":"Schools!B49","v":0},{"$f":"Schools!C49","v":0},{"$f":"Schools!D49/Schools!C49","v":{"$error":"#DIV/0!"}},{"$f":"'Instructional Salary School 37'!$E$94","v":0},{"$error":"#DIV/0!"},""]
[{"$f":"Schools!A50","v":0},{"$f":"Schools!B50","v":0},{"$f":"Schools!C50","v":0},{"$f":"Schools!D50/Schools!C50","v":{"$error":"#DIV/0!"}},{"$f":"'Instructional Salary School 38'!$E$94","v":0},{"$error":"#DIV/0!"},""]
[{"$f":"Schools!A51","v":0},{"$f":"Schools!B51","v":0},{"$f":"Schools!C51","v":0},{"$f":"Schools!D51/Schools!C51","v":{"$error":"#DIV/0!"}},{"$f":"'Instructional Salary School 39'!$E$94","v":0},{"$error":"#DIV/0!"},""]
[{"$f":"Schools!A52","v":0},{"$f":"Schools!B52","v":0},{"$f":"Schools!C52","v":0},{"$f":"Schools!D52/Schools!C52","v":{"$error":"#DIV/0!"}},{"$f":"'Instructional Salary School 40'!$E$94","v":0},{"$error":"#DIV/0!"},""]
[{"$f":"Schools!A53","v":0},{"$f":"Schools!B53","v":0},{"$f":"Schools!C53","v":0},{"$f":"Schools!D53/Schools!C53","v":{"$error":"#DIV/0!"}},{"$f":"'Instructional Salary School 41'!$E$94","v":0},{"$error":"#DIV/0!"},""]
[{"$f":"Schools!A54","v":0},{"$f":"Schools!B54","v":0},{"$f":"Schools!C54","v":0},{"$f":"Schools!D54/Schools!C54","v":{"$error":"#DIV/0!"}},{"$f":"'Instructional Salary School 42'!$E$94","v":0},{"$error":"#DIV/0!"},""]
[{"$f":"Schools!A55","v":0},{"$f":"Schools!B55","v":0},{"$f":"Schools!C55","v":0},{"$f":"Schools!D55/Schools!C55","v":{"$error":"#DIV/0!"}},{"$f":"'Instructional Salary School 43'!$E$94","v":0},{"$error":"#DIV/0!"},""]
[{"$f":"Schools!A56","v":0},{"$f":"Schools!B56","v":0},{"$f":"Schools!C56","v":0},{"$f":"Schools!D56/Schools!C56","v":{"$error":"#DIV/0!"}},{"$f":"'Instructional Salary School 44'!$E$94","v":0},{"$error":"#DIV/0!"},""]
["(Required - Upload a Printed Copy to the LEA Document Library's Comparability folder in MCAPS)"]
["List all schools in the LEA.",null,null,null,"LEA  Name:",{"$f":"F2","v":0}]
[null,null,null,null,"School Year:",{"$f":"F3","v":0}]
["ALL Served Title I Schools"]
["NOTE: Each Title I School's ratio must fall between 90 and 110 percent of the average ratio for all schools.",null,null,null,null,"90% of Student/Instructional Salaries Ratio",null,{"$f":"H5","v":{"$error":"#DIV/0!"}}]
[null,null,null,null,null,"110% of Student Instructional Salaries Ratio",null,{"$f":"H6","v":{"$error":"#DIV/0!"}}]
[1,2,3,"4","5","6","7"]
["Schools","Grade Span","Student Enrollment","Poverty Percentage","Instructional Salaries","Student/ Instructional Salaries Ratio"," Comparable?"]
[{"$f":"Schools!$A$57","v":0},{"$f":"Schools!B57","v":0},{"$f":"Schools!C57","v":0},{"$f":"Schools!D55/Schools!C55","v":{"$error":"#DIV/0!"}},{"$f":"'Instructional Salary School 45'!$E$94","v":0},{"$f":"E69/C69","v":{"$error":"#DIV/0!"}},{"$f":"IF(ISNUMBER(F69),IF(AND(F69>=CompA,F69<=CompB),\"Yes\",\"No\"),\"\")","v":""}]
[{"$f":"Schools!A58","v":0},{"$f":"Schools!B58","v":0},{"$f":"Schools!C58","v":0},{"$f":"Schools!D58/Schools!C58","v":{"$error":"#DIV/0!"}},{"$f":"'Instructional Salary School 46'!$E$94","v":0},{"$error":"#DIV/0!"},""]
[{"$f":"Schools!A59","v":0},{"$f":"Schools!B59","v":0},{"$f":"Schools!C59","v":0},{"$f":"Schools!D59/Schools!C59","v":{"$error":"#DIV/0!"}},{"$f":"'Instructional Salary School 47'!$E$94","v":0},{"$error":"#DIV/0!"},""]
[{"$f":"Schools!A60","v":0},{"$f":"Schools!B60","v":0},{"$f":"Schools!C60","v":0},{"$f":"Schools!D60/Schools!C60","v":{"$error":"#DIV/0!"}},{"$f":"'Instructional Salary School 48'!$E$94","v":0},{"$error":"#DIV/0!"},""]
[{"$f":"Schools!A67","v":0},{"$f":"Schools!B67","v":0},{"$f":"Schools!C67","v":0},{"$f":"Schools!D67/Schools!C67","v":{"$error":"#DIV/0!"}},{"$f":"'Instructional Salary School 49'!$E$94","v":0},{"$error":"#DIV/0!"},""]
[{"$f":"Schools!A68","v":0},{"$f":"Schools!B68","v":0},{"$f":"Schools!C68","v":0},{"$f":"Schools!D68/Schools!C68","v":{"$error":"#DIV/0!"}},{"$f":"'Instructional Salary School 50'!$E$94","v":0},{"$error":"#DIV/0!"},""]
[{"$f":"Schools!A69","v":0},{"$f":"Schools!B69","v":0},{"$f":"Schools!C69","v":0},{"$f":"Schools!D69/Schools!C69","v":{"$error":"#DIV/0!"}},{"$f":"'Instructional Salary School 51'!$E$94","v":0},{"$error":"#DIV/0!"},""]
[{"$f":"Schools!A70","v":0},{"$f":"Schools!B70","v":0},{"$f":"Schools!C70","v":0},{"$f":"Schools!D70/Schools!C70","v":{"$error":"#DIV/0!"}},{"$f":"'Instructional Salary School 52'!$E$94","v":0},{"$error":"#DIV/0!"},""]
[{"$f":"Schools!A71","v":0},{"$f":"Schools!B71","v":0},{"$f":"Schools!C71","v":0},{"$f":"Schools!D71/Schools!C71","v":{"$error":"#DIV/0!"}},{"$f":"'Instructional Salary School 53'!$E$94","v":0},{"$error":"#DIV/0!"},""]
[{"$f":"Schools!A72","v":0},{"$f":"Schools!B72","v":0},{"$f":"Schools!C72","v":0},{"$f":"Schools!D72/Schools!C72","v":{"$error":"#DIV/0!"}},{"$f":"'Instructional Salary School 54'!$E$94","v":0},{"$error":"#DIV/0!"},""]
[{"$f":"Schools!A73","v":0},{"$f":"Schools!B73","v":0},{"$f":"Schools!C73","v":0},{"$f":"Schools!D73/Schools!C73","v":{"$error":"#DIV/0!"}},{"$f":"'Instructional Salary School 55'!$E$94","v":0},{"$error":"#DIV/0!"},""]
[{"$f":"Schools!A74","v":0},{"$f":"Schools!B74","v":0},{"$f":"Schools!C74","v":0},{"$f":"Schools!D74/Schools!C74","v":{"$error":"#DIV/0!"}},{"$f":"'Instructional Salary School 56'!$E$94","v":0},{"$error":"#DIV/0!"},""]
[{"$f":"Schools!$A$75","v":0},{"$f":"Schools!B75","v":0},{"$f":"Schools!C75","v":0},{"$f":"Schools!D75/Schools!C75","v":{"$error":"#DIV/0!"}},{"$f":"'Instructional Salary School 57'!$E$94","v":0},{"$error":"#DIV/0!"},""]
[{"$f":"Schools!$A$76","v":0},{"$f":"Schools!B76","v":0},{"$f":"Schools!C76","v":0},{"$f":"Schools!D76/Schools!C76","v":{"$error":"#DIV/0!"}},{"$f":"'Instructional Salary School 58'!$E$94","v":0},{"$error":"#DIV/0!"},""]
[{"$f":"Schools!$A$77","v":0},{"$f":"Schools!B77","v":0},{"$f":"Schools!C77","v":0},{"$f":"Schools!D77/Schools!C77","v":{"$error":"#DIV/0!"}},{"$f":"'Instructional Salary School 59'!$E$94","v":0},{"$error":"#DIV/0!"},""]
["Total",null,{"$f":"SUM(C69:C83,C39:C60,C9:C30)","v":0},null,{"$f":"SUM(E69:E83,E39:E60,E9:E30)","v":0},{"$f":"E84/C84","v":{"$error":"#DIV/0!"}}]

{"sheet":"Instructional Salary School 1","index":2,"n_rows":94,"n_cols":5,"rows_kept":94,"cut":false,"hidden":false,"merged":[[7,0,7,4],[8,0,8,1],[54,0,54,4]]}
["Instructional Personnel- Salaries"]
["(REQUIRED to be kept on file for monitoring purposes)"]
[]
["LEA Name:  ",{"$f":"Schools!$E$2","v":0}]
["School Name:",{"$f":"Schools!$A$7","v":0}]
["School Grade Span:",{"$f":"Schools!$B$7","v":0}]
["School Year:",{"$f":"Schools!$E$3","v":0}]
["Instructional personnel includes all licensed classroom teachers and other licensed personnel assigned to the school who provide services that support instruction: principals, assistant principals, instructional coaches, librarians, music, art, and physical education teachers, guidance counselors, speech therapists and licensed social workers and psychological personnel.  Other personnel directly supporting instruction assigned to the school may include paraprofessionals and other personnel such as non-licensed social workers.  Personnel not involved in providing instructional support MAY NOT be included.   Other personnel that MAY NOT be included are clerical, custodial, food service, transportation, and any other personnel not providing instructional support. Do not include any PreK personnel or 100% federally funded personnel.  Please remember that federally funded would include Title I, II, III, IV, V, Homeless, CTE, SPED, etc.  If personnel is paid from federal and state/local funds indicate the portion of the salary for each personnel in the appropriate column 3 or column 4."]
[1,null,2,3,4]
["LAST Name of \nEmployee","FIRST Name of Employee","Position\n(please be specific)","Federally Funded Salary","State/Local Funded Salary"]
[]
[]
[]
[]
[]
[]
[]
[]
[]
[]
[]
[]
[]
[]
[]
[]
[]
[]
[]
[]
[]
[]
[]
[]
[]
[]
[]
[]
[]
[]
[]
[]
[]
[]
[]
[]
[]
["Instructional Personnel- Salaries"]
["(REQUIRED to be kept on file for monitoring purposes)"]
[]
["LEA Name:  ",{"$f":"Schools!$E$2","v":0}]
["School Name:",{"$f":"Schools!$A$7","v":0}]
["School Grade Span:",{"$f":"Schools!$B$7","v":0}]
["School Year:",{"$f":"Schools!$E$3","v":0}]
["Instructional personnel includes all licensed classroom teachers and other licensed personnel assigned to the school who provide services that support instruction: principals, assistant principals, instructional coaches, librarians, music, art, and physical education teachers, guidance counselors, speech therapists and licensed social workers and psychological personnel.  Other personnel directly supporting instruction assigned to the school may include paraprofessionals and other personnel such as non-licensed social workers.  Personnel not involved in providing instructional support MAY NOT be included.   Other personnel that MAY NOT be included are clerical, custodial, food service, transportation, and any other personnel not providing instructional support. Do not include any PreK personnel or 100% federally funded personnel.  Please remember that federally funded would include Title I, II, III, IV, V, Homeless, CTE, SPED, etc.  If personnel is paid from federal and state/local funds indicate the portion of the salary for each personnel in the appropriate column 3 or column 4."]
[1,null,2,3,4]
["LAST Name of \nEmployee","FIRST Name of Employee","Position\n(please be specific)","Federally Funded Salary","State/Local Funded Salary"]
[]
[]
[]
[]
[]
[]
[]
[]
[]
[]
[]
[]
[]
[]
[]
[]
[]
[]
[]
[]
[]
[]
[]
[]
[]
[]
[]
[]
[]
[]
[]
[]
[]
[]
[]
[]
[null,null,null,"TOTAL",{"$f":"SUM(E11:E47,E58:E93)","v":0}]

{"sheet":"Instructional Salary School 2","index":3,"n_rows":94,"n_cols":5,"rows_kept":94,"cut":false,"hidden":false,"merged":[[8,0,8,1],[54,0,54,4],[55,0,55,1],[7,0,7,4]]}
["Instructional Personnel- Salaries"]
["(REQUIRED to be kept on file for monitoring purposes)"]
[]
["LEA Name:  ",{"$f":"Schools!$E$2","v":0}]
["School Name:",{"$f":"Schools!$A$8","v":0}]
["School Grade Span:",{"$f":"Schools!$B$8","v":0}]
["School Year:",{"$f":"Schools!$E$3","v":0}]
["Instructional personnel includes all licensed classroom teachers and other licensed personnel assigned to the school who provide services that support instruction: principals, assistant principals, instructional coaches, librarians, music, art, and physical education teachers, guidance counselors, speech therapists and licensed social workers and psychological personnel.  Other personnel directly supporting instruction assigned to the school may include paraprofessionals and other personnel such as non-licensed social workers.  Personnel not involved in providing instructional support MAY NOT be included.   Other personnel that MAY NOT be included are clerical, custodial, food service, transportation, and any other personnel not providing instructional support. Do not include any PreK personnel or 100% federally funded personnel.  Please remember that federally funded would include Title I, II, III, IV, V, Homeless, CTE, SPED, etc.  If personnel is paid from federal and state/local funds indicate the portion of the salary for each personnel in the appropriate column 3 or column 4."]
[1,null,2,3,4]
["LAST Name of \nEmployee","FIRST Name of Employee","Position\n(please be specific)","Federally Funded Salary","State/Local Funded Salary"]
[]
[]
[]
[]
[]
[]
[]
[]
[]
[]
[]
[]
[]
[]
[]
[]
[]
[]
[]
[]
[]
[]
[]
[]
[]
[]
[]
[]
[]
[]
[]
[]
[]
[]
[]
[]
[]
["Instructional Personnel- Salaries"]
["(REQUIRED to be kept on file for monitoring purposes)"]
[]
["LEA Name:  ",{"$f":"Schools!$E$2","v":0}]
["School Name:",{"$f":"Schools!$A$8","v":0}]
["School Grade Span:",{"$f":"Schools!$B$8","v":0}]
["School Year:",{"$f":"Schools!$E$3","v":0}]
["Instructional personnel includes all licensed classroom teachers and other licensed personnel assigned to the school who provide services that support instruction: principals, assistant principals, instructional coaches, librarians, music, art, and physical education teachers, guidance counselors, speech therapists and licensed social workers and psychological personnel.  Other personnel directly supporting instruction assigned to the school may include paraprofessionals and other personnel such as non-licensed social workers.  Personnel not involved in providing instructional support MAY NOT be included.   Other personnel that MAY NOT be included are clerical, custodial, food service, transportation, and any other personnel not providing instructional support. Do not include any PreK personnel or 100% federally funded personnel.  Please remember that federally funded would include Title I, II, III, IV, V, Homeless, CTE, SPED, etc.  If personnel is paid from federal and state/local funds indicate the portion of the salary for each personnel in the appropriate column 3 or column 4."]
[1,null,2,3,4]
["LAST Name of \nEmployee","FIRST Name of Employee","Position\n(please be specific)","Federally Funded Salary","State/Local Funded Salary"]
[]
[]
[]
[]
[]
[]
[]
[]
[]
[]
[]
[]
[]
[]
[]
[]
[]
[]
[]
[]
[]
[]
[]
[]
[]
[]
[]
[]
[]
[]
[]
[]
[]
[]
[]
[]
[null,null,null,"TOTAL",{"$f":"SUM(E11:E47,E58:E93)","v":0}]

{"sheet":"Instructional Salary School 3","index":4,"n_rows":94,"n_cols":5,"rows_kept":94,"cut":false,"hidden":false,"merged":[[54,0,54,4],[55,0,55,1],[7,0,7,4],[8,0,8,1]]}
["Instructional Personnel- Salaries"]
["(REQUIRED to be kept on file for monitoring purposes)"]
[]
["LEA Name:  ",{"$f":"Schools!$E$2","v":0}]
["School Name:",{"$f":"Schools!$A$9","v":0}]
["School Grade Span:",{"$f":"Schools!$B$9","v":0}]
["School Year:",{"$f":"Schools!$E$3","v":0}]
["Instructional personnel includes all licensed classroom teachers and other licensed personnel assigned to the school who provide services that support instruction: principals, assistant principals, instructional coaches, librarians, music, art, and physical education teachers, guidance counselors, speech therapists and licensed social workers and psychological personnel.  Other personnel directly supporting instruction assigned to the school may include paraprofessionals and other personnel such as non-licensed social workers.  Personnel not involved in providing instructional support MAY NOT be included.   Other personnel that MAY NOT be included are clerical, custodial, food service, transportation, and any other personnel not providing instructional support. Do not include any PreK personnel or 100% federally funded personnel.  Please remember that federally funded would include Title I, II, III, IV, V, Homeless, CTE, SPED, etc.  If personnel is paid from federal and state/local funds indicate the portion of the salary for each personnel in the appropriate column 3 or column 4."]
[1,null,2,3,4]
["LAST Name of \nEmployee","FIRST Name of Employee","Position\n(please be specific)","Federally Funded Salary","State/Local Funded Salary"]
[]
[]
[]
[]
[]
[]
[]
[]
[]
[]
[]
[]
[]
[]
[]
[]
[]
[]
[]
[]
[]
[]
[]
[]
[]
[]
[]
[]
[]
[]
[]
[]
[]
[]
[]
[]
[]
["Instructional Personnel- Salaries"]
["(REQUIRED to be kept on file for monitoring purposes)"]
[]
["LEA Name:  ",{"$f":"Schools!$E$2","v":0}]
["School Name:",{"$f":"Schools!$A$9","v":0}]
["School Grade Span:",{"$f":"Schools!$B$9","v":0}]
["School Year:",{"$f":"Schools!$E$3","v":0}]
["Instructional personnel includes all licensed classroom teachers and other licensed personnel assigned to the school who provide services that support instruction: principals, assistant principals, instructional coaches, librarians, music, art, and physical education teachers, guidance counselors, speech therapists and licensed social workers and psychological personnel.  Other personnel directly supporting instruction assigned to the school may include paraprofessionals and other personnel such as non-licensed social workers.  Personnel not involved in providing instructional support MAY NOT be included.   Other personnel that MAY NOT be included are clerical, custodial, food service, transportation, and any other personnel not providing instructional support. Do not include any PreK personnel or 100% federally funded personnel.  Please remember that federally funded would include Title I, II, III, IV, V, Homeless, CTE, SPED, etc.  If personnel is paid from federal and state/local funds indicate the portion of the salary for each personnel in the appropriate column 3 or column 4."]
[1,null,2,3,4]
["LAST Name of \nEmployee","FIRST Name of Employee","Position\n(please be specific)","Federally Funded Salary","State/Local Funded Salary"]
[]
[]
[]
[]
[]
[]
[]
[]
[]
[]
[]
[]
[]
[]
[]
[]
[]
[]
[]
[]
[]
[]
[]
[]
[]
[]
[]
[]
[]
[]
[]
[]
[]
[]
[]
[]
[null,null,null,"TOTAL",{"$f":"SUM(E11:E47,E58:E93)","v":0}]

{"sheet":"Instructional Salary School 4","index":5,"n_rows":94,"n_cols":5,"rows_kept":94,"cut":false,"hidden":false,"merged":[[54,0,54,4],[55,0,55,1],[7,0,7,4],[8,0,8,1]]}
["Instructional Personnel- Salaries"]
["(REQUIRED to be kept on file for monitoring purposes)"]
[]
["LEA Name:  ",{"$f":"Schools!$E$2","v":0}]
["School Name:",{"$f":"Schools!$A$10","v":0}]
["School Grade Span:",{"$f":"Schools!$B$10","v":0}]
["School Year:",{"$f":"Schools!$E$3","v":0}]
["Instructional personnel includes all licensed classroom teachers and other licensed personnel assigned to the school who provide services that support instruction: principals, assistant principals, instructional coaches, librarians, music, art, and physical education teachers, guidance counselors, speech therapists and licensed social workers and psychological personnel.  Other personnel directly supporting instruction assigned to the school may include paraprofessionals and other personnel such as non-licensed social workers.  Personnel not involved in providing instructional support MAY NOT be included.   Other personnel that MAY NOT be included are clerical, custodial, food service, transportation, and any other personnel not providing instructional support. Do not include any PreK personnel or 100% federally funded personnel.  Please remember that federally funded would include Title I, II, III, IV, V, Homeless, CTE, SPED, etc.  If personnel is paid from federal and state/local funds indicate the portion of the salary for each personnel in the appropriate column 3 or column 4."]
[1,null,2,3,4]
["LAST Name of \nEmployee","FIRST Name of Employee","Position\n(please be specific)","Federally Funded Salary","State/Local Funded Salary"]
[]
[]
[]
[]
[]
[]
[]
[]
[]
[]
[]
[]
[]
[]
[]
[]
[]
[]
[]
[]
[]
[]
[]
[]
[]
[]
[]
[]
[]
[]
[]
[]
[]
[]
[]
[]
[]
["Instructional Personnel- Salaries"]
["(REQUIRED to be kept on file for monitoring purposes)"]
[]
["LEA Name:  ",{"$f":"Schools!$E$2","v":0}]
["School Name:",{"$f":"Schools!$A$10","v":0}]
["School Grade Span:",{"$f":"Schools!$B$10","v":0}]
["School Year:",{"$f":"Schools!$E$3","v":0}]
["Instructional personnel includes all licensed classroom teachers and other licensed personnel assigned to the school who provide services that support instruction: principals, assistant principals, instructional coaches, librarians, music, art, and physical education teachers, guidance counselors, speech therapists and licensed social workers and psychological personnel.  Other personnel directly supporting instruction assigned to the school may include paraprofessionals and other personnel such as non-licensed social workers.  Personnel not involved in providing instructional support MAY NOT be included.   Other personnel that MAY NOT be included are clerical, custodial, food service, transportation, and any other personnel not providing instructional support. Do not include any PreK personnel or 100% federally funded personnel.  Please remember that federally funded would include Title I, II, III, IV, V, Homeless, CTE, SPED, etc.  If personnel is paid from federal and state/local funds indicate the portion of the salary for each personnel in the appropriate column 3 or column 4."]
[1,null,2,3,4]
["LAST Name of \nEmployee","FIRST Name of Employee","Position\n(please be specific)","Federally Funded Salary","State/Local Funded Salary"]
[]
[]
[]
[]
[]
[]
[]
[]
[]
[]
[]
[]
[]
[]
[]
[]
[]
[]
[]
[]
[]
[]
[]
[]
[]
[]
[]
[]
[]
[]
[]
[]
[]
[]
[]
[]
[null,null,null,"TOTAL",{"$f":"SUM(E11:E47,E58:E93)","v":0}]

{"sheet":"Instructional Salary School 5","index":6,"n_rows":94,"n_cols":5,"rows_kept":94,"cut":false,"hidden":false,"merged":[[54,0,54,4],[55,0,55,1],[7,0,7,4],[8,0,8,1]]}
["Instructional Personnel- Salaries"]
["(REQUIRED to be kept on file for monitoring purposes)"]
[]
["LEA Name:  ",{"$f":"Schools!$E$2","v":0}]
["School Name:",{"$f":"Schools!$A$11","v":0}]
["School Grade Span:",{"$f":"Schools!$B$11","v":0}]
["School Year:",{"$f":"Schools!$E$3","v":0}]
["Instructional personnel includes all licensed classroom teachers and other licensed personnel assigned to the school who provide services that support instruction: principals, assistant principals, instructional coaches, librarians, music, art, and physical education teachers, guidance counselors, speech therapists and licensed social workers and psychological personnel.  Other personnel directly supporting instruction assigned to the school may include paraprofessionals and other personnel such as non-licensed social workers.  Personnel not involved in providing instructional support MAY NOT be included.   Other personnel that MAY NOT be included are clerical, custodial, food service, transportation, and any other personnel not providing instructional support. Do not include any PreK personnel or 100% federally funded personnel.  Please remember that federally funded would include Title I, II, III, IV, V, Homeless, CTE, SPED, etc.  If personnel is paid from federal and state/local funds indicate the portion of the salary for each personnel in the appropriate column 3 or column 4."]
[1,null,2,3,4]
["LAST Name of \nEmployee","FIRST Name of Employee","Position\n(please be specific)","Federally Funded Salary","State/Local Funded Salary"]
[]
[]
[]
[]
[]
[]
[]
[]
[]
[]
[]
[]
[]
[]
[]
[]
[]
[]
[]
[]
[]
[]
[]
[]
[]
[]
[]
[]
[]
[]
[]
[]
[]
[]
[]
[]
[]
["Instructional Personnel- Salaries"]
["(REQUIRED to be kept on file for monitoring purposes)"]
[]
["LEA Name:  ",{"$f":"Schools!$E$2","v":0}]
["School Name:",{"$f":"Schools!$A$11","v":0}]
["School Grade Span:",{"$f":"Schools!$B$11","v":0}]
["School Year:",{"$f":"Schools!$E$3","v":0}]
["Instructional personnel includes all licensed classroom teachers and other licensed personnel assigned to the school who provide services that support instruction: principals, assistant principals, instructional coaches, librarians, music, art, and physical education teachers, guidance counselors, speech therapists and licensed social workers and psychological personnel.  Other personnel directly supporting instruction assigned to the school may include paraprofessionals and other personnel such as non-licensed social workers.  Personnel not involved in providing instructional support MAY NOT be included.   Other personnel that MAY NOT be included are clerical, custodial, food service, transportation, and any other personnel not providing instructional support. Do not include any PreK personnel or 100% federally funded personnel.  Please remember that federally funded would include Title I, II, III, IV, V, Homeless, CTE, SPED, etc.  If personnel is paid from federal and state/local funds indicate the portion of the salary for each personnel in the appropriate column 3 or column 4."]
[1,null,2,3,4]
["LAST Name of \nEmployee","FIRST Name of Employee","Position\n(please be specific)","Federally Funded Salary","State/Local Funded Salary"]
[]
[]
[]
[]
[]
[]
[]
[]
[]
[]
[]
[]
[]
[]
[]
[]
[]
[]
[]
[]
[]
[]
[]
[]
[]
[]
[]
[]
[]
[]
[]
[]
[]
[]
[]
[]
[null,null,null,"TOTAL",{"$f":"SUM(E11:E47,E58:E93)","v":0}]

{"sheet":"Instructional Salary School 6","index":7,"n_rows":94,"n_cols":5,"rows_kept":94,"cut":false,"hidden":false,"merged":[[54,0,54,4],[55,0,55,1],[7,0,7,4],[8,0,8,1]]}
["Instructional Personnel- Salaries"]
["(REQUIRED to be kept on file for monitoring purposes)"]
[]
["LEA Name:  ",{"$f":"Schools!$E$2","v":0}]
["School Name:",{"$f":"Schools!$A$12","v":0}]
["School Grade Span:",{"$f":"Schools!$B$12","v":0}]
["School Year:",{"$f":"Schools!$E$3","v":0}]
["Instructional personnel includes all licensed classroom teachers and other licensed personnel assigned to the school who provide services that support instruction: principals, assistant principals, instructional coaches, librarians, music, art, and physical education teachers, guidance counselors, speech therapists and licensed social workers and psychological personnel.  Other personnel directly supporting instruction assigned to the school may include paraprofessionals and other personnel such as non-licensed social workers.  Personnel not involved in providing instructional support MAY NOT be included.   Other personnel that MAY NOT be included are clerical, custodial, food service, transportation, and any other personnel not providing instructional support. Do not include any PreK personnel or 100% federally funded personnel.  Please remember that federally funded would include Title I, II, III, IV, V, Homeless, CTE, SPED, etc.  If personnel is paid from federal and state/local funds indicate the portion of the salary for each personnel in the appropriate column 3 or column 4."]
[1,null,2,3,4]
["LAST Name of \nEmployee","FIRST Name of Employee","Position\n(please be specific)","Federally Funded Salary","State/Local Funded Salary"]
[]
[]
[]
[]
[]
[]
[]
[]
[]
[]
[]
[]
[]
[]
[]
[]
[]
[]
[]
[]
[]
[]
[]
[]
[]
[]
[]
[]
[]
[]
[]
[]
[]
[]
[]
[]
[]
["Instructional Personnel- Salaries"]
["(REQUIRED to be kept on file for monitoring purposes)"]
[]
["LEA Name:  ",{"$f":"Schools!$E$2","v":0}]
["School Name:",{"$f":"Schools!$A$12","v":0}]
["School Grade Span:",{"$f":"Schools!$B$12","v":0}]
["School Year:",{"$f":"Schools!$E$3","v":0}]
["Instructional personnel includes all licensed classroom teachers and other licensed personnel assigned to the school who provide services that support instruction: principals, assistant principals, instructional coaches, librarians, music, art, and physical education teachers, guidance counselors, speech therapists and licensed social workers and psychological personnel.  Other personnel directly supporting instruction assigned to the school may include paraprofessionals and other personnel such as non-licensed social workers.  Personnel not involved in providing instructional support MAY NOT be included.   Other personnel that MAY NOT be included are clerical, custodial, food service, transportation, and any other personnel not providing instructional support. Do not include any PreK personnel or 100% federally funded personnel.  Please remember that federally funded would include Title I, II, III, IV, V, Homeless, CTE, SPED, etc.  If personnel is paid from federal and state/local funds indicate the portion of the salary for each personnel in the appropriate column 3 or column 4."]
[1,null,2,3,4]
["LAST Name of \nEmployee","FIRST Name of Employee","Position\n(please be specific)","Federally Funded Salary","State/Local Funded Salary"]
[]
[]
[]
[]
[]
[]
[]
[]
[]
[]
[]
[]
[]
[]
[]
[]
[]
[]
[]
[]
[]
[]
[]
[]
[]
[]
[]
[]
[]
[]
[]
[]
[]
[]
[]
[]
[null,null,null,"TOTAL",{"$f":"SUM(E11:E47,E58:E93)","v":0}]

{"sheet":"Instructional Salary School 7","index":8,"n_rows":94,"n_cols":5,"rows_kept":94,"cut":false,"hidden":false,"merged":[[54,0,54,4],[55,0,55,1],[7,0,7,4],[8,0,8,1]]}
["Instructional Personnel- Salaries"]
["(REQUIRED to be kept on file for monitoring purposes)"]
[]
["LEA Name:  ",{"$f":"Schools!$E$2","v":0}]
["School Name:",{"$f":"Schools!$A$13","v":0}]
["School Grade Span:",{"$f":"Schools!$B$13","v":0}]
["School Year:",{"$f":"Schools!$E$3","v":0}]
["Instructional personnel includes all licensed classroom teachers and other licensed personnel assigned to the school who provide services that support instruction: principals, assistant principals, instructional coaches, librarians, music, art, and physical education teachers, guidance counselors, speech therapists and licensed social workers and psychological personnel.  Other personnel directly supporting instruction assigned to the school may include paraprofessionals and other personnel such as non-licensed social workers.  Personnel not involved in providing instructional support MAY NOT be included.   Other personnel that MAY NOT be included are clerical, custodial, food service, transportation, and any other personnel not providing instructional support. Do not include any PreK personnel or 100% federally funded personnel.  Please remember that federally funded would include Title I, II, III, IV, V, Homeless, CTE, SPED, etc.  If personnel is paid from federal and state/local funds indicate the portion of the salary for each personnel in the appropriate column 3 or column 4."]
[1,null,2,3,4]
["LAST Name of \nEmployee","FIRST Name of Employee","Position\n(please be specific)","Federally Funded Salary","State/Local Funded Salary"]
[]
[]
[]
[]
[]
[]
[]
[]
[]
[]
[]
[]
[]
[]
[]
[]
[]
[]
[]
[]
[]
[]
[]
[]
[]
[]
[]
[]
[]
[]
[]
[]
[]
[]
[]
[]
[]
["Instructional Personnel- Salaries"]
["(REQUIRED to be kept on file for monitoring purposes)"]
[]
["LEA Name:  ",{"$f":"Schools!$E$2","v":0}]
["School Name:",{"$f":"Schools!$A$13","v":0}]
["School Grade Span:",{"$f":"Schools!$B$13","v":0}]
["School Year:",{"$f":"Schools!$E$3","v":0}]
["Instructional personnel includes all licensed classroom teachers and other licensed personnel assigned to the school who provide services that support instruction: principals, assistant principals, instructional coaches, librarians, music, art, and physical education teachers, guidance counselors, speech therapists and licensed social workers and psychological personnel.  Other personnel directly supporting instruction assigned to the school may include paraprofessionals and other personnel such as non-licensed social workers.  Personnel not involved in providing instructional support MAY NOT be included.   Other personnel that MAY NOT be included are clerical, custodial, food service, transportation, and any other personnel not providing instructional support. Do not include any PreK personnel or 100% federally funded personnel.  Please remember that federally funded would include Title I, II, III, IV, V, Homeless, CTE, SPED, etc.  If personnel is paid from federal and state/local funds indicate the portion of the salary for each personnel in the appropriate column 3 or column 4."]
[1,null,2,3,4]
["LAST Name of \nEmployee","FIRST Name of Employee","Position\n(please be specific)","Federally Funded Salary","State/Local Funded Salary"]
[]
[]
[]
[]
[]
[]
[]
[]
[]
[]
[]
[]
[]
[]
[]
[]
[]
[]
[]
[]
[]
[]
[]
[]
[]
[]
[]
[]
[]
[]
[]
[]
[]
[]
[]
[]
[null,null,null,"TOTAL",{"$f":"SUM(E11:E47,E58:E93)","v":0}]

{"sheet":"Instructional Salary School 8","index":9,"n_rows":94,"n_cols":5,"rows_kept":94,"cut":false,"hidden":false,"merged":[[54,0,54,4],[55,0,55,1],[7,0,7,4],[8,0,8,1]]}
["Instructional Personnel- Salaries"]
["(REQUIRED to be kept on file for monitoring purposes)"]
[]
["LEA Name:  ",{"$f":"Schools!$E$2","v":0}]
["School Name:",{"$f":"Schools!$A$14","v":0}]
["School Grade Span:",{"$f":"Schools!$B$14","v":0}]
["School Year:",{"$f":"Schools!$E$3","v":0}]
["Instructional personnel includes all licensed classroom teachers and other licensed personnel assigned to the school who provide services that support instruction: principals, assistant principals, instructional coaches, librarians, music, art, and physical education teachers, guidance counselors, speech therapists and licensed social workers and psychological personnel.  Other personnel directly supporting instruction assigned to the school may include paraprofessionals and other personnel such as non-licensed social workers.  Personnel not involved in providing instructional support MAY NOT be included.   Other personnel that MAY NOT be included are clerical, custodial, food service, transportation, and any other personnel not providing instructional support. Do not include any PreK personnel or 100% federally funded personnel.  Please remember that federally funded would include Title I, II, III, IV, V, Homeless, CTE, SPED, etc.  If personnel is paid from federal and state/local funds indicate the portion of the salary for each personnel in the appropriate column 3 or column 4."]
[1,null,2,3,4]
["LAST Name of \nEmployee","FIRST Name of Employee","Position\n(please be specific)","Federally Funded Salary","State/Local Funded Salary"]
[]
[]
[]
[]
[]
[]
[]
[]
[]
[]
[]
[]
[]
[]
[]
[]
[]
[]
[]
[]
[]
[]
[]
[]
[]
[]
[]
[]
[]
[]
[]
[]
[]
[]
[]
[]
[]
["Instructional Personnel- Salaries"]
["(REQUIRED to be kept on file for monitoring purposes)"]
[]
["LEA Name:  ",{"$f":"Schools!$E$2","v":0}]
["School Name:",{"$f":"Schools!$A$14","v":0}]
["School Grade Span:",{"$f":"Schools!$B$14","v":0}]
["School Year:",{"$f":"Schools!$E$3","v":0}]
["Instructional personnel includes all licensed classroom teachers and other licensed personnel assigned to the school who provide services that support instruction: principals, assistant principals, instructional coaches, librarians, music, art, and physical education teachers, guidance counselors, speech therapists and licensed social workers and psychological personnel.  Other personnel directly supporting instruction assigned to the school may include paraprofessionals and other personnel such as non-licensed social workers.  Personnel not involved in providing instructional support MAY NOT be included.   Other personnel that MAY NOT be included are clerical, custodial, food service, transportation, and any other personnel not providing instructional support. Do not include any PreK personnel or 100% federally funded personnel.  Please remember that federally funded would include Title I, II, III, IV, V, Homeless, CTE, SPED, etc.  If personnel is paid from federal and state/local funds indicate the portion of the salary for each personnel in the appropriate column 3 or column 4."]
[1,null,2,3,4]
["LAST Name of \nEmployee","FIRST Name of Employee","Position\n(please be specific)","Federally Funded Salary","State/Local Funded Salary"]
[]
[]
[]
[]
[]
[]
[]
[]
[]
[]
[]
[]
[]
[]
[]
[]
[]
[]
[]
[]
[]
[]
[]
[]
[]
[]
[]
[]
[]
[]
[]
[]
[]
[]
[]
[]
[null,null,null,"TOTAL",{"$f":"SUM(E11:E47,E58:E93)","v":0}]

{"sheet":"Instructional Salary School 9","index":10,"n_rows":94,"n_cols":5,"rows_kept":94,"cut":false,"hidden":false,"merged":[[54,0,54,4],[55,0,55,1],[8,0,8,1],[7,0,7,4]]}
["Instructional Personnel- Salaries"]
["(REQUIRED to be kept on file for monitoring purposes)"]
[]
["LEA Name:  ",{"$f":"Schools!$E$2","v":0}]
["School Name:",{"$f":"Schools!$A$15","v":0}]
["School Grade Span:",{"$f":"Schools!$B$15","v":0}]
["School Year:",{"$f":"Schools!$E$3","v":0}]
["Instructional personnel includes all licensed classroom teachers and other licensed personnel assigned to the school who provide services that support instruction: principals, assistant principals, instructional coaches, librarians, music, art, and physical education teachers, guidance counselors, speech therapists and licensed social workers and psychological personnel.  Other personnel directly supporting instruction assigned to the school may include paraprofessionals and other personnel such as non-licensed social workers.  Personnel not involved in providing instructional support MAY NOT be included.   Other personnel that MAY NOT be included are clerical, custodial, food service, transportation, and any other personnel not providing instructional support. Do not include any PreK personnel or 100% federally funded personnel.  Please remember that federally funded would include Title I, II, III, IV, V, Homeless, CTE, SPED, etc.  If personnel is paid from federal and state/local funds indicate the portion of the salary for each personnel in the appropriate column 3 or column 4."]
[1,null,2,3,4]
["LAST Name of \nEmployee","FIRST Name of Employee","Position\n(please be specific)","Federally Funded Salary","State/Local Funded Salary"]
[]
[]
[]
[]
[]
[]
[]
[]
[]
[]
[]
[]
[]
[]
[]
[]
[]
[]
[]
[]
[]
[]
[]
[]
[]
[]
[]
[]
[]
[]
[]
[]
[]
[]
[]
[]
[]
["Instructional Personnel- Salaries"]
["(REQUIRED to be kept on file for monitoring purposes)"]
[]
["LEA Name:  ",{"$f":"Schools!$E$2","v":0}]
["School Name:",{"$f":"Schools!$A$15","v":0}]
["School Grade Span:",{"$f":"Schools!$B$15","v":0}]
["School Year:",{"$f":"Schools!$E$3","v":0}]
["Instructional personnel includes all licensed classroom teachers and other licensed personnel assigned to the school who provide services that support instruction: principals, assistant principals, instructional coaches, librarians, music, art, and physical education teachers, guidance counselors, speech therapists and licensed social workers and psychological personnel.  Other personnel directly supporting instruction assigned to the school may include paraprofessionals and other personnel such as non-licensed social workers.  Personnel not involved in providing instructional support MAY NOT be included.   Other personnel that MAY NOT be included are clerical, custodial, food service, transportation, and any other personnel not providing instructional support. Do not include any PreK personnel or 100% federally funded personnel.  Please remember that federally funded would include Title I, II, III, IV, V, Homeless, CTE, SPED, etc.  If personnel is paid from federal and state/local funds indicate the portion of the salary for each personnel in the appropriate column 3 or column 4."]
[1,null,2,3,4]
["LAST Name of \nEmployee","FIRST Name of Employee","Position\n(please be specific)","Federally Funded Salary","State/Local Funded Salary"]
[]
[]
[]
[]
[]
[]
[]
[]
[]
[]
[]
[]
[]
[]
[]
[]
[]
[]
[]
[]
[]
[]
[]
[]
[]
[]
[]
[]
[]
[]
[]
[]
[]
[]
[]
[]
[null,null,null,"TOTAL",{"$f":"SUM(E11:E47,E58:E93)","v":0}]

{"sheet":"Instructional Salary School 10","index":11,"n_rows":94,"n_cols":5,"rows_kept":94,"cut":false,"hidden":false,"merged":[[8,0,8,1],[54,0,54,4],[55,0,55,1],[7,0,7,4]]}
["Instructional Personnel- Salaries"]
["(REQUIRED to be kept on file for monitoring purposes)"]
[]
["LEA Name:  ",{"$f":"Schools!$E$2","v":0}]
["School Name:",{"$f":"Schools!$A$16","v":0}]
["School Grade Span:",{"$f":"Schools!$B$16","v":0}]
["School Year:",{"$f":"Schools!$E$3","v":0}]
["Instructional personnel includes all licensed classroom teachers and other licensed personnel assigned to the school who provide services that support instruction: principals, assistant principals, instructional coaches, librarians, music, art, and physical education teachers, guidance counselors, speech therapists and licensed social workers and psychological personnel.  Other personnel directly supporting instruction assigned to the school may include paraprofessionals and other personnel such as non-licensed social workers.  Personnel not involved in providing instructional support MAY NOT be included.   Other personnel that MAY NOT be included are clerical, custodial, food service, transportation, and any other personnel not providing instructional support. Do not include any PreK personnel or 100% federally funded personnel.  Please remember that federally funded would include Title I, II, III, IV, V, Homeless, CTE, SPED, etc.  If personnel is paid from federal and state/local funds indicate the portion of the salary for each personnel in the appropriate column 3 or column 4."]
[1,null,2,3,4]
["LAST Name of \nEmployee","FIRST Name of Employee","Position\n(please be specific)","Federally Funded Salary","State/Local Funded Salary"]
[]
[]
[]
[]
[]
[]
[]
[]
[]
[]
[]
[]
[]
[]
[]
[]
[]
[]
[]
[]
[]
[]
[]
[]
[]
[]
[]
[]
[]
[]
[]
[]
[]
[]
[]
[]
[]
["Instructional Personnel- Salaries"]
["(REQUIRED to be kept on file for monitoring purposes)"]
[]
["LEA Name:  ",{"$f":"Schools!$E$2","v":0}]
["School Name:",{"$f":"Schools!$A$16","v":0}]
["School Grade Span:",{"$f":"Schools!$B$16","v":0}]
["School Year:",{"$f":"Schools!$E$3","v":0}]
["Instructional personnel includes all licensed classroom teachers and other licensed personnel assigned to the school who provide services that support instruction: principals, assistant principals, instructional coaches, librarians, music, art, and physical education teachers, guidance counselors, speech therapists and licensed social workers and psychological personnel.  Other personnel directly supporting instruction assigned to the school may include paraprofessionals and other personnel such as non-licensed social workers.  Personnel not involved in providing instructional support MAY NOT be included.   Other personnel that MAY NOT be included are clerical, custodial, food service, transportation, and any other personnel not providing instructional support. Do not include any PreK personnel or 100% federally funded personnel.  Please remember that federally funded would include Title I, II, III, IV, V, Homeless, CTE, SPED, etc.  If personnel is paid from federal and state/local funds indicate the portion of the salary for each personnel in the appropriate column 3 or column 4."]
[1,null,2,3,4]
["LAST Name of \nEmployee","FIRST Name of Employee","Position\n(please be specific)","Federally Funded Salary","State/Local Funded Salary"]
[]
[]
[]
[]
[]
[]
[]
[]
[]
[]
[]
[]
[]
[]
[]
[]
[]
[]
[]
[]
[]
[]
[]
[]
[]
[]
[]
[]
[]
[]
[]
[]
[]
[]
[]
[]
[null,null,null,"TOTAL",{"$f":"SUM(E11:E47,E58:E93)","v":0}]

{"sheet":"Instructional Salary School 11","index":12,"n_rows":94,"n_cols":5,"rows_kept":94,"cut":false,"hidden":false,"merged":[[8,0,8,1],[54,0,54,4],[55,0,55,1],[7,0,7,4]]}
["Instructional Personnel- Salaries"]
["(REQUIRED to be kept on file for monitoring purposes)"]
[]
["LEA Name:  ",{"$f":"Schools!$E$2","v":0}]
["School Name:",{"$f":"Schools!$A$17","v":0}]
["School Grade Span:",{"$f":"Schools!$B$17","v":0}]
["School Year:",{"$f":"Schools!$E$3","v":0}]
["Instructional personnel includes all licensed classroom teachers and other licensed personnel assigned to the school who provide services that support instruction: principals, assistant principals, instructional coaches, librarians, music, art, and physical education teachers, guidance counselors, speech therapists and licensed social workers and psychological personnel.  Other personnel directly supporting instruction assigned to the school may include paraprofessionals and other personnel such as non-licensed social workers.  Personnel not involved in providing instructional support MAY NOT be included.   Other personnel that MAY NOT be included are clerical, custodial, food service, transportation, and any other personnel not providing instructional support. Do not include any PreK personnel or 100% federally funded personnel.  Please remember that federally funded would include Title I, II, III, IV, V, Homeless, CTE, SPED, etc.  If personnel is paid from federal and state/local funds indicate the portion of the salary for each personnel in the appropriate column 3 or column 4."]
[1,null,2,3,4]
["LAST Name of \nEmployee","FIRST Name of Employee","Position\n(please be specific)","Federally Funded Salary","State/Local Funded Salary"]
[]
[]
[]
[]
[]
[]
[]
[]
[]
[]
[]
[]
[]
[]
[]
[]
[]
[]
[]
[]
[]
[]
[]
[]
[]
[]
[]
[]
[]
[]
[]
[]
[]
[]
[]
[]
[]
["Instructional Personnel- Salaries"]
["(REQUIRED to be kept on file for monitoring purposes)"]
[]
["LEA Name:  ",{"$f":"Schools!$E$2","v":0}]
["School Name:",{"$f":"Schools!$A$17","v":0}]
["School Grade Span:",{"$f":"Schools!$B$17","v":0}]
["School Year:",{"$f":"Schools!$E$3","v":0}]
["Instructional personnel includes all licensed classroom teachers and other licensed personnel assigned to the school who provide services that support instruction: principals, assistant principals, instructional coaches, librarians, music, art, and physical education teachers, guidance counselors, speech therapists and licensed social workers and psychological personnel.  Other personnel directly supporting instruction assigned to the school may include paraprofessionals and other personnel such as non-licensed social workers.  Personnel not involved in providing instructional support MAY NOT be included.   Other personnel that MAY NOT be included are clerical, custodial, food service, transportation, and any other personnel not providing instructional support. Do not include any PreK personnel or 100% federally funded personnel.  Please remember that federally funded would include Title I, II, III, IV, V, Homeless, CTE, SPED, etc.  If personnel is paid from federal and state/local funds indicate the portion of the salary for each personnel in the appropriate column 3 or column 4."]
[1,null,2,3,4]
["LAST Name of \nEmployee","FIRST Name of Employee","Position\n(please be specific)","Federally Funded Salary","State/Local Funded Salary"]
[]
[]
[]
[]
[]
[]
[]
[]
[]
[]
[]
[]
[]
[]
[]
[]
[]
[]
[]
[]
[]
[]
[]
[]
[]
[]
[]
[]
[]
[]
[]
[]
[]
[]
[]
[]
[null,null,null,"TOTAL",{"$f":"SUM(E11:E47,E58:E93)","v":0}]

{"sheet":"Instructional Salary School 12","index":13,"n_rows":94,"n_cols":5,"rows_kept":94,"cut":false,"hidden":false,"merged":[[8,0,8,1],[54,0,54,4],[55,0,55,1],[7,0,7,4]]}
["Instructional Personnel- Salaries"]
["(REQUIRED to be kept on file for monitoring purposes)"]
[]
["LEA Name:  ",{"$f":"Schools!$E$2","v":0}]
["School Name:",{"$f":"Schools!$A$18","v":0}]
["School Grade Span:",{"$f":"Schools!$B$18","v":0}]
["School Year:",{"$f":"Schools!$E$3","v":0}]
["Instructional personnel includes all licensed classroom teachers and other licensed personnel assigned to the school who provide services that support instruction: principals, assistant principals, instructional coaches, librarians, music, art, and physical education teachers, guidance counselors, speech therapists and licensed social workers and psychological personnel.  Other personnel directly supporting instruction assigned to the school may include paraprofessionals and other personnel such as non-licensed social workers.  Personnel not involved in providing instructional support MAY NOT be included.   Other personnel that MAY NOT be included are clerical, custodial, food service, transportation, and any other personnel not providing instructional support. Do not include any PreK personnel or 100% federally funded personnel.  Please remember that federally funded would include Title I, II, III, IV, V, Homeless, CTE, SPED, etc.  If personnel is paid from federal and state/local funds indicate the portion of the salary for each personnel in the appropriate column 3 or column 4."]
[1,null,2,3,4]
["LAST Name of \nEmployee","FIRST Name of Employee","Position\n(please be specific)","Federally Funded Salary","State/Local Funded Salary"]
[]
[]
[]
[]
[]
[]
[]
[]
[]
[]
[]
[]
[]
[]
[]
[]
[]
[]
[]
[]
[]
[]
[]
[]
[]
[]
[]
[]
[]
[]
[]
[]
[]
[]
[]
[]
[]
["Instructional Personnel- Salaries"]
["(REQUIRED to be kept on file for monitoring purposes)"]
[]
["LEA Name:  ",{"$f":"Schools!$E$2","v":0}]
["School Name:",{"$f":"Schools!$A$18","v":0}]
["School Grade Span:",{"$f":"Schools!$B$18","v":0}]
["School Year:",{"$f":"Schools!$E$3","v":0}]
["Instructional personnel includes all licensed classroom teachers and other licensed personnel assigned to the school who provide services that support instruction: principals, assistant principals, instructional coaches, librarians, music, art, and physical education teachers, guidance counselors, speech therapists and licensed social workers and psychological personnel.  Other personnel directly supporting instruction assigned to the school may include paraprofessionals and other personnel such as non-licensed social workers.  Personnel not involved in providing instructional support MAY NOT be included.   Other personnel that MAY NOT be included are clerical, custodial, food service, transportation, and any other personnel not providing instructional support. Do not include any PreK personnel or 100% federally funded personnel.  Please remember that federally funded would include Title I, II, III, IV, V, Homeless, CTE, SPED, etc.  If personnel is paid from federal and state/local funds indicate the portion of the salary for each personnel in the appropriate column 3 or column 4."]
[1,null,2,3,4]
["LAST Name of \nEmployee","FIRST Name of Employee","Position\n(please be specific)","Federally Funded Salary","State/Local Funded Salary"]
[]
[]
[]
[]
[]
[]
[]
[]
[]
[]
[]
[]
[]
[]
[]
[]
[]
[]
[]
[]
[]
[]
[]
[]
[]
[]
[]
[]
[]
[]
[]
[]
[]
[]
[]
[]
[null,null,null,"TOTAL",{"$f":"SUM(E11:E47,E58:E93)","v":0}]

{"sheet":"Instructional Salary School 13","index":14,"n_rows":94,"n_cols":5,"rows_kept":94,"cut":false,"hidden":false,"merged":[[8,0,8,1],[54,0,54,4],[55,0,55,1],[7,0,7,4]]}
["Instructional Personnel- Salaries"]
["(REQUIRED to be kept on file for monitoring purposes)"]
[]
["LEA Name:  ",{"$f":"Schools!$E$2","v":0}]
["School Name:",{"$f":"Schools!$A$19","v":0}]
["School Grade Span:",{"$f":"Schools!$B$19","v":0}]
["School Year:",{"$f":"Schools!$E$3","v":0}]
["Instructional personnel includes all licensed classroom teachers and other licensed personnel assigned to the school who provide services that support instruction: principals, assistant principals, instructional coaches, librarians, music, art, and physical education teachers, guidance counselors, speech therapists and licensed social workers and psychological personnel.  Other personnel directly supporting instruction assigned to the school may include paraprofessionals and other personnel such as non-licensed social workers.  Personnel not involved in providing instructional support MAY NOT be included.   Other personnel that MAY NOT be included are clerical, custodial, food service, transportation, and any other personnel not providing instructional support. Do not include any PreK personnel or 100% federally funded personnel.  Please remember that federally funded would include Title I, II, III, IV, V, Homeless, CTE, SPED, etc.  If personnel is paid from federal and state/local funds indicate the portion of the salary for each personnel in the appropriate column 3 or column 4."]
[1,null,2,3,4]
["LAST Name of \nEmployee","FIRST Name of Employee","Position\n(please be specific)","Federally Funded Salary","State/Local Funded Salary"]
[]
[]
[]
[]
[]
[]
[]
[]
[]
[]
[]
[]
[]
[]
[]
[]
[]
[]
[]
[]
[]
[]
[]
[]
[]
[]
[]
[]
[]
[]
[]
[]
[]
[]
[]
[]
[]
["Instructional Personnel- Salaries"]
["(REQUIRED to be kept on file for monitoring purposes)"]
[]
["LEA Name:  ",{"$f":"Schools!$E$2","v":0}]
["School Name:",{"$f":"Schools!$A$19","v":0}]
["School Grade Span:",{"$f":"Schools!$B$19","v":0}]
["School Year:",{"$f":"Schools!$E$3","v":0}]
[{"$f":"'Instructional Salary School 1'!$A$8","v":"Instructional personnel includes all licensed classroom teachers and other licensed personnel assigned to the school who provide services that support instruction: principals, assistant principals, instructional coaches, librarians, music, art, and physical education teachers, guidance counselors, speech therapists and licensed social workers and psychological personnel.  Other personnel directly supporting instruction assigned to the school may include paraprofessionals and other personnel such as non-licensed social workers.  Personnel not involved in providing instructional support MAY NOT be included.   Other personnel that MAY NOT be included are clerical, custodial, food service, transportation, and any other personnel not providing instructional support. Do not include any PreK personnel or 100% federally funded personnel.  Please remember that federally funded would include Title I, II, III, IV, V, Homeless, CTE, SPED, etc.  If personnel is paid from federal and state/local funds indicate the portion of the salary for each personnel in the appropriate column 3 or column 4."}]
[1,null,2,3,4]
["LAST Name of \nEmployee","FIRST Name of Employee","Position\n(please be specific)","Federally Funded Salary","State/Local Funded Salary"]
[]
[]
[]
[]
[]
[]
[]
[]
[]
[]
[]
[]
[]
[]
[]
[]
[]
[]
[]
[]
[]
[]
[]
[]
[]
[]
[]
[]
[]
[]
[]
[]
[]
[]
[]
[]
[null,null,null,"TOTAL",{"$f":"SUM(E11:E47,E58:E93)","v":0}]

{"sheet":"Instructional Salary School 14","index":15,"n_rows":94,"n_cols":5,"rows_kept":94,"cut":false,"hidden":false,"merged":[[8,0,8,1],[54,0,54,4],[55,0,55,1],[7,0,7,4]]}
["Instructional Personnel- Salaries"]
["(REQUIRED to be kept on file for monitoring purposes)"]
[]
["LEA Name:  ",{"$f":"Schools!$E$2","v":0}]
["School Name:",{"$f":"Schools!$A$20","v":0}]
["School Grade Span:",{"$f":"Schools!$B20","v":0}]
["School Year:",{"$f":"Schools!$E$3","v":0}]
["Instructional personnel includes all licensed classroom teachers and other licensed personnel assigned to the school who provide services that support instruction: principals, assistant principals, instructional coaches, librarians, music, art, and physical education teachers, guidance counselors, speech therapists and licensed social workers and psychological personnel.  Other personnel directly supporting instruction assigned to the school may include paraprofessionals and other personnel such as non-licensed social workers.  Personnel not involved in providing instructional support MAY NOT be included.   Other personnel that MAY NOT be included are clerical, custodial, food service, transportation, and any other personnel not providing instructional support. Do not include any PreK personnel or 100% federally funded personnel.  Please remember that federally funded would include Title I, II, III, IV, V, Homeless, CTE, SPED, etc.  If personnel is paid from federal and state/local funds indicate the portion of the salary for each personnel in the appropriate column 3 or column 4."]
[1,null,2,3,4]
["LAST Name of \nEmployee","FIRST Name of Employee","Position\n(please be specific)","Federally Funded Salary","State/Local Funded Salary"]
[]
[]
[]
[]
[]
[]
[]
[]
[]
[]
[]
[]
[]
[]
[]
[]
[]
[]
[]
[]
[]
[]
[]
[]
[]
[]
[]
[]
[]
[]
[]
[]
[]
[]
[]
[]
[]
["Instructional Personnel- Salaries"]
["(REQUIRED to be kept on file for monitoring purposes)"]
[]
["LEA Name:  ",{"$f":"Schools!$E$2","v":0}]
["School Name:",{"$f":"Schools!$A$20","v":0}]
["School Grade Span:",{"$f":"Schools!$B67","v":0}]
["School Year:",{"$f":"Schools!$E$3","v":0}]
["Instructional personnel includes all licensed classroom teachers and other licensed personnel assigned to the school who provide services that support instruction: principals, assistant principals, instructional coaches, librarians, music, art, and physical education teachers, guidance counselors, speech therapists and licensed social workers and psychological personnel.  Other personnel directly supporting instruction assigned to the school may include paraprofessionals and other personnel such as non-licensed social workers.  Personnel not involved in providing instructional support MAY NOT be included.   Other personnel that MAY NOT be included are clerical, custodial, food service, transportation, and any other personnel not providing instructional support. Do not include any PreK personnel or 100% federally funded personnel.  Please remember that federally funded would include Title I, II, III, IV, V, Homeless, CTE, SPED, etc.  If personnel is paid from federal and state/local funds indicate the portion of the salary for each personnel in the appropriate column 3 or column 4."]
[1,null,2,3,4]
["LAST Name of \nEmployee","FIRST Name of Employee","Position\n(please be specific)","Federally Funded Salary","State/Local Funded Salary"]
[]
[]
[]
[]
[]
[]
[]
[]
[]
[]
[]
[]
[]
[]
[]
[]
[]
[]
[]
[]
[]
[]
[]
[]
[]
[]
[]
[]
[]
[]
[]
[]
[]
[]
[]
[]
[null,null,null,"TOTAL",{"$f":"SUM(E11:E47,E58:E93)","v":0}]

{"sheet":"Instructional Salary School 15","index":16,"n_rows":94,"n_cols":5,"rows_kept":94,"cut":false,"hidden":false,"merged":[[8,0,8,1],[54,0,54,4],[55,0,55,1],[7,0,7,4]]}
["Instructional Personnel- Salaries"]
["(REQUIRED to be kept on file for monitoring purposes)"]
[]
["LEA Name:  ",{"$f":"Schools!$E$2","v":0}]
["School Name:",{"$f":"Schools!$A$21","v":0}]
["School Grade Span:",{"$f":"Schools!$B$21","v":0}]
["School Year:",{"$f":"Schools!$E$3","v":0}]
["Instructional personnel includes all licensed classroom teachers and other licensed personnel assigned to the school who provide services that support instruction: principals, assistant principals, instructional coaches, librarians, music, art, and physical education teachers, guidance counselors, speech therapists and licensed social workers and psychological personnel.  Other personnel directly supporting instruction assigned to the school may include paraprofessionals and other personnel such as non-licensed social workers.  Personnel not involved in providing instructional support MAY NOT be included.   Other personnel that MAY NOT be included are clerical, custodial, food service, transportation, and any other personnel not providing instructional support. Do not include any PreK personnel or 100% federally funded personnel.  Please remember that federally funded would include Title I, II, III, IV, V, Homeless, CTE, SPED, etc.  If personnel is paid from federal and state/local funds indicate the portion of the salary for each personnel in the appropriate column 3 or column 4."]
[1,null,2,3,4]
["LAST Name of \nEmployee","FIRST Name of Employee","Position\n(please be specific)","Federally Funded Salary","State/Local Funded Salary"]
[]
[]
[]
[]
[]
[]
[]
[]
[]
[]
[]
[]
[]
[]
[]
[]
[]
[]
[]
[]
[]
[]
[]
[]
[]
[]
[]
[]
[]
[]
[]
[]
[]
[]
[]
[]
[]
["Instructional Personnel- Salaries"]
["(REQUIRED to be kept on file for monitoring purposes)"]
[]
["LEA Name:  ",{"$f":"Schools!$E$2","v":0}]
["School Name:",{"$f":"Schools!$A$21","v":0}]
["School Grade Span:",{"$f":"Schools!$B$21","v":0}]
["School Year:",{"$f":"Schools!$E$3","v":0}]
["Instructional personnel includes all licensed classroom teachers and other licensed personnel assigned to the school who provide services that support instruction: principals, assistant principals, instructional coaches, librarians, music, art, and physical education teachers, guidance counselors, speech therapists and licensed social workers and psychological personnel.  Other personnel directly supporting instruction assigned to the school may include paraprofessionals and other personnel such as non-licensed social workers.  Personnel not involved in providing instructional support MAY NOT be included.   Other personnel that MAY NOT be included are clerical, custodial, food service, transportation, and any other personnel not providing instructional support. Do not include any PreK personnel or 100% federally funded personnel.  Please remember that federally funded would include Title I, II, III, IV, V, Homeless, CTE, SPED, etc.  If personnel is paid from federal and state/local funds indicate the portion of the salary for each personnel in the appropriate column 3 or column 4."]
[1,null,2,3,4]
["LAST Name of \nEmployee","FIRST Name of Employee","Position\n(please be specific)","Federally Funded Salary","State/Local Funded Salary"]
[]
[]
[]
[]
[]
[]
[]
[]
[]
[]
[]
[]
[]
[]
[]
[]
[]
[]
[]
[]
[]
[]
[]
[]
[]
[]
[]
[]
[]
[]
[]
[]
[]
[]
[]
[]
[null,null,null,"TOTAL",{"$f":"SUM(E11:E47,E58:E93)","v":0}]

{"sheet":"Instructional Salary School 16","index":17,"n_rows":94,"n_cols":5,"rows_kept":94,"cut":false,"hidden":false,"merged":[[8,0,8,1],[54,0,54,4],[55,0,55,1],[7,0,7,4]]}
["Instructional Personnel- Salaries"]
["(REQUIRED to be kept on file for monitoring purposes)"]
[]
["LEA Name:  ",{"$f":"Schools!$E$2","v":0}]
["School Name:",{"$f":"Schools!$A$22","v":0}]
["School Grade Span:",{"$f":"Schools!$B$22","v":0}]
["School Year:",{"$f":"Schools!$E$3","v":0}]
["Instructional personnel includes all licensed classroom teachers and other licensed personnel assigned to the school who provide services that support instruction: principals, assistant principals, instructional coaches, librarians, music, art, and physical education teachers, guidance counselors, speech therapists and licensed social workers and psychological personnel.  Other personnel directly supporting instruction assigned to the school may include paraprofessionals and other personnel such as non-licensed social workers.  Personnel not involved in providing instructional support MAY NOT be included.   Other personnel that MAY NOT be included are clerical, custodial, food service, transportation, and any other personnel not providing instructional support. Do not include any PreK personnel or 100% federally funded personnel.  Please remember that federally funded would include Title I, II, III, IV, V, Homeless, CTE, SPED, etc.  If personnel is paid from federal and state/local funds indicate the portion of the salary for each personnel in the appropriate column 3 or column 4."]
[1,null,2,3,4]
["LAST Name of \nEmployee","FIRST Name of Employee","Position\n(please be specific)","Federally Funded Salary","State/Local Funded Salary"]
[]
[]
[]
[]
[]
[]
[]
[]
[]
[]
[]
[]
[]
[]
[]
[]
[]
[]
[]
[]
[]
[]
[]
[]
[]
[]
[]
[]
[]
[]
[]
[]
[]
[]
[]
[]
[]
["Instructional Personnel- Salaries"]
["(REQUIRED to be kept on file for monitoring purposes)"]
[]
["LEA Name:  ",{"$f":"Schools!$E$2","v":0}]
["School Name:",{"$f":"Schools!$A$22","v":0}]
["School Grade Span:",{"$f":"Schools!$B$22","v":0}]
["School Year:",{"$f":"Schools!$E$3","v":0}]
["Instructional personnel includes all licensed classroom teachers and other licensed personnel assigned to the school who provide services that support instruction: principals, assistant principals, instructional coaches, librarians, music, art, and physical education teachers, guidance counselors, speech therapists and licensed social workers and psychological personnel.  Other personnel directly supporting instruction assigned to the school may include paraprofessionals and other personnel such as non-licensed social workers.  Personnel not involved in providing instructional support MAY NOT be included.   Other personnel that MAY NOT be included are clerical, custodial, food service, transportation, and any other personnel not providing instructional support. Do not include any PreK personnel or 100% federally funded personnel.  Please remember that federally funded would include Title I, II, III, IV, V, Homeless, CTE, SPED, etc.  If personnel is paid from federal and state/local funds indicate the portion of the salary for each personnel in the appropriate column 3 or column 4."]
[1,null,2,3,4]
["LAST Name of \nEmployee","FIRST Name of Employee","Position\n(please be specific)","Federally Funded Salary","State/Local Funded Salary"]
[]
[]
[]
[]
[]
[]
[]
[]
[]
[]
[]
[]
[]
[]
[]
[]
[]
[]
[]
[]
[]
[]
[]
[]
[]
[]
[]
[]
[]
[]
[]
[]
[]
[]
[]
[]
[null,null,null,"TOTAL",{"$f":"SUM(E11:E47,E58:E93)","v":0}]

{"sheet":"Instructional Salary School 17","index":18,"n_rows":94,"n_cols":5,"rows_kept":94,"cut":false,"hidden":false,"merged":[[8,0,8,1],[54,0,54,4],[55,0,55,1],[7,0,7,4]]}
["Instructional Personnel- Salaries"]
["(REQUIRED to be kept on file for monitoring purposes)"]
[]
["LEA Name:  ",{"$f":"Schools!$E$2","v":0}]
["School Name:",{"$f":"Schools!$A$23","v":0}]
["School Grade Span:",{"$f":"Schools!$B$23","v":0}]
["School Year:",{"$f":"Schools!$E$3","v":0}]
["Instructional personnel includes all licensed classroom teachers and other licensed personnel assigned to the school who provide services that support instruction: principals, assistant principals, instructional coaches, librarians, music, art, and physical education teachers, guidance counselors, speech therapists and licensed social workers and psychological personnel.  Other personnel directly supporting instruction assigned to the school may include paraprofessionals and other personnel such as non-licensed social workers.  Personnel not involved in providing instructional support MAY NOT be included.   Other personnel that MAY NOT be included are clerical, custodial, food service, transportation, and any other personnel not providing instructional support. Do not include any PreK personnel or 100% federally funded personnel.  Please remember that federally funded would include Title I, II, III, IV, V, Homeless, CTE, SPED, etc.  If personnel is paid from federal and state/local funds indicate the portion of the salary for each personnel in the appropriate column 3 or column 4."]
[1,null,2,3,4]
["LAST Name of \nEmployee","FIRST Name of Employee","Position\n(please be specific)","Federally Funded Salary","State/Local Funded Salary"]
[]
[]
[]
[]
[]
[]
[]
[]
[]
[]
[]
[]
[]
[]
[]
[]
[]
[]
[]
[]
[]
[]
[]
[]
[]
[]
[]
[]
[]
[]
[]
[]
[]
[]
[]
[]
[]
["Instructional Personnel- Salaries"]
["(REQUIRED to be kept on file for monitoring purposes)"]
[]
["LEA Name:  ",{"$f":"Schools!$E$2","v":0}]
["School Name:",{"$f":"Schools!$A$23","v":0}]
["School Grade Span:",{"$f":"Schools!$B$23","v":0}]
["School Year:",{"$f":"Schools!$E$3","v":0}]
["Instructional personnel includes all licensed classroom teachers and other licensed personnel assigned to the school who provide services that support instruction: principals, assistant principals, instructional coaches, librarians, music, art, and physical education teachers, guidance counselors, speech therapists and licensed social workers and psychological personnel.  Other personnel directly supporting instruction assigned to the school may include paraprofessionals and other personnel such as non-licensed social workers.  Personnel not involved in providing instructional support MAY NOT be included.   Other personnel that MAY NOT be included are clerical, custodial, food service, transportation, and any other personnel not providing instructional support. Do not include any PreK personnel or 100% federally funded personnel.  Please remember that federally funded would include Title I, II, III, IV, V, Homeless, CTE, SPED, etc.  If personnel is paid from federal and state/local funds indicate the portion of the salary for each personnel in the appropriate column 3 or column 4."]
[1,null,2,3,4]
["LAST Name of \nEmployee","FIRST Name of Employee","Position\n(please be specific)","Federally Funded Salary","State/Local Funded Salary"]
[]
[]
[]
[]
[]
[]
[]
[]
[]
[]
[]
[]
[]
[]
[]
[]
[]
[]
[]
[]
[]
[]
[]
[]
[]
[]
[]
[]
[]
[]
[]
[]
[]
[]
[]
[]
[null,null,null,"TOTAL",{"$f":"SUM(E11:E47,E58:E93)","v":0}]

{"sheet":"Instructional Salary School 18","index":19,"n_rows":94,"n_cols":5,"rows_kept":94,"cut":false,"hidden":false,"merged":[[8,0,8,1],[54,0,54,4],[55,0,55,1],[7,0,7,4]]}
["Instructional Personnel- Salaries"]
["(REQUIRED to be kept on file for monitoring purposes)"]
[]
["LEA Name:  ",{"$f":"Schools!$E$2","v":0}]
["School Name:",{"$f":"Schools!$A$24","v":0}]
["School Grade Span:",{"$f":"Schools!$B$24","v":0}]
["School Year:",{"$f":"Schools!$E$3","v":0}]
["Instructional personnel includes all licensed classroom teachers and other licensed personnel assigned to the school who provide services that support instruction: principals, assistant principals, instructional coaches, librarians, music, art, and physical education teachers, guidance counselors, speech therapists and licensed social workers and psychological personnel.  Other personnel directly supporting instruction assigned to the school may include paraprofessionals and other personnel such as non-licensed social workers.  Personnel not involved in providing instructional support MAY NOT be included.   Other personnel that MAY NOT be included are clerical, custodial, food service, transportation, and any other personnel not providing instructional support. Do not include any PreK personnel or 100% federally funded personnel.  Please remember that federally funded would include Title I, II, III, IV, V, Homeless, CTE, SPED, etc.  If personnel is paid from federal and state/local funds indicate the portion of the salary for each personnel in the appropriate column 3 or column 4."]
[1,null,2,3,4]
["LAST Name of \nEmployee","FIRST Name of Employee","Position\n(please be specific)","Federally Funded Salary","State/Local Funded Salary"]
[]
[]
[]
[]
[]
[]
[]
[]
[]
[]
[]
[]
[]
[]
[]
[]
[]
[]
[]
[]
[]
[]
[]
[]
[]
[]
[]
[]
[]
[]
[]
[]
[]
[]
[]
[]
[]
["Instructional Personnel- Salaries"]
["(REQUIRED to be kept on file for monitoring purposes)"]
[]
["LEA Name:  ",{"$f":"Schools!$E$2","v":0}]
["School Name:",{"$f":"Schools!$A$24","v":0}]
["School Grade Span:",{"$f":"Schools!$B$24","v":0}]
["School Year:",{"$f":"Schools!$E$3","v":0}]
["Instructional personnel includes all licensed classroom teachers and other licensed personnel assigned to the school who provide services that support instruction: principals, assistant principals, instructional coaches, librarians, music, art, and physical education teachers, guidance counselors, speech therapists and licensed social workers and psychological personnel.  Other personnel directly supporting instruction assigned to the school may include paraprofessionals and other personnel such as non-licensed social workers.  Personnel not involved in providing instructional support MAY NOT be included.   Other personnel that MAY NOT be included are clerical, custodial, food service, transportation, and any other personnel not providing instructional support. Do not include any PreK personnel or 100% federally funded personnel.  Please remember that federally funded would include Title I, II, III, IV, V, Homeless, CTE, SPED, etc.  If personnel is paid from federal and state/local funds indicate the portion of the salary for each personnel in the appropriate column 3 or column 4."]
[1,null,2,3,4]
["LAST Name of \nEmployee","FIRST Name of Employee","Position\n(please be specific)","Federally Funded Salary","State/Local Funded Salary"]
[]
[]
[]
[]
[]
[]
[]
[]
[]
[]
[]
[]
[]
[]
[]
[]
[]
[]
[]
[]
[]
[]
[]
[]
[]
[]
[]
[]
[]
[]
[]
[]
[]
[]
[]
[]
[null,null,null,"TOTAL",{"$f":"SUM(E11:E47,E58:E93)","v":0}]

{"sheet":"Instructional Salary School 19","index":20,"n_rows":94,"n_cols":5,"rows_kept":94,"cut":false,"hidden":false,"merged":[[8,0,8,1],[54,0,54,4],[55,0,55,1],[7,0,7,4]]}
["Instructional Personnel- Salaries"]
["(REQUIRED to be kept on file for monitoring purposes)"]
[]
["LEA Name:  ",{"$f":"Schools!$E$2","v":0}]
["School Name:",{"$f":"Schools!$A$25","v":0}]
["School Grade Span:",{"$f":"Schools!$B$25","v":0}]
["School Year:",{"$f":"Schools!$E$3","v":0}]
["Instructional personnel includes all licensed classroom teachers and other licensed personnel assigned to the school who provide services that support instruction: principals, assistant principals, instructional coaches, librarians, music, art, and physical education teachers, guidance counselors, speech therapists and licensed social workers and psychological personnel.  Other personnel directly supporting instruction assigned to the school may include paraprofessionals and other personnel such as non-licensed social workers.  Personnel not involved in providing instructional support MAY NOT be included.   Other personnel that MAY NOT be included are clerical, custodial, food service, transportation, and any other personnel not providing instructional support. Do not include any PreK personnel or 100% federally funded personnel.  Please remember that federally funded would include Title I, II, III, IV, V, Homeless, CTE, SPED, etc.  If personnel is paid from federal and state/local funds indicate the portion of the salary for each personnel in the appropriate column 3 or column 4."]
[1,null,2,3,4]
["LAST Name of \nEmployee","FIRST Name of Employee","Position\n(please be specific)","Federally Funded Salary","State/Local Funded Salary"]
[]
[]
[]
[]
[]
[]
[]
[]
[]
[]
[]
[]
[]
[]
[]
[]
[]
[]
[]
[]
[]
[]
[]
[]
[]
[]
[]
[]
[]
[]
[]
[]
[]
[]
[]
[]
[]
["Instructional Personnel- Salaries"]
["(REQUIRED to be kept on file for monitoring purposes)"]
[]
["LEA Name:  ",{"$f":"Schools!$E$2","v":0}]
["School Name:",{"$f":"Schools!$A$25","v":0}]
["School Grade Span:",{"$f":"Schools!$B$25","v":0}]
["School Year:",{"$f":"Schools!$E$3","v":0}]
["Instructional personnel includes all licensed classroom teachers and other licensed personnel assigned to the school who provide services that support instruction: principals, assistant principals, instructional coaches, librarians, music, art, and physical education teachers, guidance counselors, speech therapists and licensed social workers and psychological personnel.  Other personnel directly supporting instruction assigned to the school may include paraprofessionals and other personnel such as non-licensed social workers.  Personnel not involved in providing instructional support MAY NOT be included.   Other personnel that MAY NOT be included are clerical, custodial, food service, transportation, and any other personnel not providing instructional support. Do not include any PreK personnel or 100% federally funded personnel.  Please remember that federally funded would include Title I, II, III, IV, V, Homeless, CTE, SPED, etc.  If personnel is paid from federal and state/local funds indicate the portion of the salary for each personnel in the appropriate column 3 or column 4."]
[1,null,2,3,4]
["LAST Name of \nEmployee","FIRST Name of Employee","Position\n(please be specific)","Federally Funded Salary","State/Local Funded Salary"]
[]
[]
[]
[]
[]
[]
[]
[]
[]
[]
[]
[]
[]
[]
[]
[]
[]
[]
[]
[]
[]
[]
[]
[]
[]
[]
[]
[]
[]
[]
[]
[]
[]
[]
[]
[]
[null,null,null,"TOTAL",{"$f":"SUM(E11:E47,E58:E93)","v":0}]

{"sheet":"Instructional Salary School 20","index":21,"n_rows":95,"n_cols":5,"rows_kept":95,"cut":false,"hidden":false,"merged":[[54,0,54,4],[8,0,8,1],[55,0,55,1],[7,0,7,4]]}
["Instructional Personnel- Salaries"]
["(REQUIRED to be kept on file for monitoring purposes)"]
[]
["LEA Name:  ",{"$f":"Schools!$E$2","v":0}]
["School Name:",{"$f":"Schools!$A$26","v":0}]
["School Grade Span:",{"$f":"Schools!$B$26","v":0}]
["School Year:",{"$f":"Schools!$E$3","v":0}]
["Instructional personnel includes all licensed classroom teachers and other licensed personnel assigned to the school who provide services that support instruction: principals, assistant principals, instructional coaches, librarians, music, art, and physical education teachers, guidance counselors, speech therapists and licensed social workers and psychological personnel.  Other personnel directly supporting instruction assigned to the school may include paraprofessionals and other personnel such as non-licensed social workers.  Personnel not involved in providing instructional support MAY NOT be included.   Other personnel that MAY NOT be included are clerical, custodial, food service, transportation, and any other personnel not providing instructional support. Do not include any PreK personnel or 100% federally funded personnel.  Please remember that federally funded would include Title I, II, III, IV, V, Homeless, CTE, SPED, etc.  If personnel is paid from federal and state/local funds indicate the portion of the salary for each personnel in the appropriate column 3 or column 4."]
[1,null,2,3,4]
["LAST Name of \nEmployee","FIRST Name of Employee","Position\n(please be specific)","Federally Funded Salary","State/Local Funded Salary"]
[]
[]
[]
[]
[]
[]
[]
[]
[]
[]
[]
[]
[]
[]
[]
[]
[]
[]
[]
[]
[]
[]
[]
[]
[]
[]
[]
[]
[]
[]
[]
[]
[]
[]
[]
[]
[]
["Instructional Personnel- Salaries"]
["(REQUIRED to be kept on file for monitoring purposes)"]
[]
["LEA Name:  ",{"$f":"B4","v":0}]
["School Name:",0]
["School Grade Span:",0]
["School Year:",0]
["Instructional personnel includes all licensed classroom teachers and other licensed personnel assigned to the school who provide services that support instruction: principals, assistant principals, instructional coaches, librarians, music, art, and physical education teachers, guidance counselors, speech therapists and licensed social workers and psychological personnel.  Other personnel directly supporting instruction assigned to the school may include paraprofessionals and other personnel such as non-licensed social workers.  Personnel not involved in providing instructional support MAY NOT be included.   Other personnel that MAY NOT be included are clerical, custodial, food service, transportation, and any other personnel not providing instructional support. Do not include any PreK personnel or 100% federally funded personnel.  Please remember that federally funded would include Title I, II, III, IV, V, Homeless, CTE, SPED, etc.  If personnel is paid from federal and state/local funds indicate the portion of the salary for each personnel in the appropriate column 3 or column 4."]
[1,null,2,3,4]
["LAST Name of \nEmployee","FIRST Name of Employee","Position\n(please be specific)","Federally Funded Salary","State/Local Funded Salary"]
[]
[]
[]
[]
[]
[]
[]
[]
[]
[]
[]
[]
[]
[]
[]
[]
[]
[]
[]
[]
[]
[]
[]
[]
[]
[]
[]
[]
[]
[]
[]
[]
[]
[]
[]
[]
[]
[null,null,null,"TOTAL",{"$f":"SUM(E11:E47,E58:E94)","v":0}]

{"sheet":"Instructional Salary School 21","index":22,"n_rows":94,"n_cols":5,"rows_kept":94,"cut":false,"hidden":false,"merged":[[54,0,54,4],[55,0,55,1],[8,0,8,1],[7,0,7,4]]}
["Instructional Personnel- Salaries"]
["(REQUIRED to be kept on file for monitoring purposes)"]
[]
["LEA Name:  ",{"$f":"Schools!$E$2","v":0}]
["School Name:",{"$f":"Schools!$A$27","v":0}]
["School Grade Span:",{"$f":"Schools!$B$27","v":0}]
["School Year:",{"$f":"Schools!$E$3","v":0}]
["Instructional personnel includes all licensed classroom teachers and other licensed personnel assigned to the school who provide services that support instruction: principals, assistant principals, instructional coaches, librarians, music, art, and physical education teachers, guidance counselors, speech therapists and licensed social workers and psychological personnel.  Other personnel directly supporting instruction assigned to the school may include paraprofessionals and other personnel such as non-licensed social workers.  Personnel not involved in providing instructional support MAY NOT be included.   Other personnel that MAY NOT be included are clerical, custodial, food service, transportation, and any other personnel not providing instructional support. Do not include any PreK personnel or 100% federally funded personnel.  Please remember that federally funded would include Title I, II, III, IV, V, Homeless, CTE, SPED, etc.  If personnel is paid from federal and state/local funds indicate the portion of the salary for each personnel in the appropriate column 3 or column 4."]
[1,null,2,3,4]
["LAST Name of \nEmployee","FIRST Name of Employee","Position\n(please be specific)","Federally Funded Salary","State/Local Funded Salary"]
[]
[]
[]
[]
[]
[]
[]
[]
[]
[]
[]
[]
[]
[]
[]
[]
[]
[]
[]
[]
[]
[]
[]
[]
[]
[]
[]
[]
[]
[]
[]
[]
[]
[]
[]
[]
[]
["Instructional Personnel- Salaries"]
["(REQUIRED to be kept on file for monitoring purposes)"]
[]
["LEA Name:  ",{"$f":"B4","v":0}]
["School Name:",0]
["School Grade Span:",0]
["School Year:",0]
["Instructional personnel includes all licensed classroom teachers and other licensed personnel assigned to the school who provide services that support instruction: principals, assistant principals, instructional coaches, librarians, music, art, and physical education teachers, guidance counselors, speech therapists and licensed social workers and psychological personnel.  Other personnel directly supporting instruction assigned to the school may include paraprofessionals and other personnel such as non-licensed social workers.  Personnel not involved in providing instructional support MAY NOT be included.   Other personnel that MAY NOT be included are clerical, custodial, food service, transportation, and any other personnel not providing instructional support. Do not include any PreK personnel or 100% federally funded personnel.  Please remember that federally funded would include Title I, II, III, IV, V, Homeless, CTE, SPED, etc.  If personnel is paid from federal and state/local funds indicate the portion of the salary for each personnel in the appropriate column 3 or column 4."]
[1,null,2,3,4]
["LAST Name of \nEmployee","FIRST Name of Employee","Position\n(please be specific)","Federally Funded Salary","State/Local Funded Salary"]
[]
[]
[]
[]
[]
[]
[]
[]
[]
[]
[]
[]
[]
[]
[]
[]
[]
[]
[]
[]
[]
[]
[]
[]
[]
[]
[]
[]
[]
[]
[]
[]
[]
[]
[]
[]
[null,null,null,"TOTAL",{"$f":"SUM(E11:E47,E58:E93)","v":0}]

{"sheet":"Instructional Salary School 22","index":23,"n_rows":94,"n_cols":5,"rows_kept":94,"cut":false,"hidden":false,"merged":[[54,0,54,4],[55,0,55,1],[8,0,8,1],[7,0,7,4]]}
["Instructional Personnel- Salaries"]
["(REQUIRED to be kept on file for monitoring purposes)"]
[]
["LEA Name:  ",{"$f":"Schools!$E$2","v":0}]
["School Name:",{"$f":"Schools!$A$28","v":0}]
["School Grade Span:",{"$f":"Schools!$B$28","v":0}]
["School Year:",{"$f":"Schools!$E$3","v":0}]
["Instructional personnel includes all licensed classroom teachers and other licensed personnel assigned to the school who provide services that support instruction: principals, assistant principals, instructional coaches, librarians, music, art, and physical education teachers, guidance counselors, speech therapists and licensed social workers and psychological personnel.  Other personnel directly supporting instruction assigned to the school may include paraprofessionals and other personnel such as non-licensed social workers.  Personnel not involved in providing instructional support MAY NOT be included.   Other personnel that MAY NOT be included are clerical, custodial, food service, transportation, and any other personnel not providing instructional support. Do not include any PreK personnel or 100% federally funded personnel.  Please remember that federally funded would include Title I, II, III, IV, V, Homeless, CTE, SPED, etc.  If personnel is paid from federal and state/local funds indicate the portion of the salary for each personnel in the appropriate column 3 or column 4."]
[1,null,2,3,4]
["LAST Name of \nEmployee","FIRST Name of Employee","Position\n(please be specific)","Federally Funded Salary","State/Local Funded Salary"]
[]
[]
[]
[]
[]
[]
[]
[]
[]
[]
[]
[]
[]
[]
[]
[]
[]
[]
[]
[]
[]
[]
[]
[]
[]
[]
[]
[]
[]
[]
[]
[]
[]
[]
[]
[]
[]
["Instructional Personnel- Salaries"]
["(REQUIRED to be kept on file for monitoring purposes)"]
[]
["LEA Name:  ",{"$f":"B4","v":0}]
["School Name:",0]
["School Grade Span:",0]
["School Year:",0]
["Instructional personnel includes all licensed classroom teachers and other licensed personnel assigned to the school who provide services that support instruction: principals, assistant principals, instructional coaches, librarians, music, art, and physical education teachers, guidance counselors, speech therapists and licensed social workers and psychological personnel.  Other personnel directly supporting instruction assigned to the school may include paraprofessionals and other personnel such as non-licensed social workers.  Personnel not involved in providing instructional support MAY NOT be included.   Other personnel that MAY NOT be included are clerical, custodial, food service, transportation, and any other personnel not providing instructional support. Do not include any PreK personnel or 100% federally funded personnel.  Please remember that federally funded would include Title I, II, III, IV, V, Homeless, CTE, SPED, etc.  If personnel is paid from federal and state/local funds indicate the portion of the salary for each personnel in the appropriate column 3 or column 4."]
[1,null,2,3,4]
["LAST Name of \nEmployee","FIRST Name of Employee","Position\n(please be specific)","Federally Funded Salary","State/Local Funded Salary"]
[]
[]
[]
[]
[]
[]
[]
[]
[]
[]
[]
[]
[]
[]
[]
[]
[]
[]
[]
[]
[]
[]
[]
[]
[]
[]
[]
[]
[]
[]
[]
[]
[]
[]
[]
[]
[null,null,null,"TOTAL",{"$f":"SUM(E11:E47,E58:E93)","v":0}]

{"sheet":"Instructional Salary School 23","index":24,"n_rows":94,"n_cols":5,"rows_kept":94,"cut":false,"hidden":false,"merged":[[54,0,54,4],[55,0,55,1],[8,0,8,1],[7,0,7,4]]}
["Instructional Personnel- Salaries"]
["(REQUIRED to be kept on file for monitoring purposes)"]
[]
["LEA Name:  ",{"$f":"Schools!$E$2","v":0}]
["School Name:",{"$f":"Schools!A29","v":0}]
["School Grade Span:",{"$f":"Schools!B29","v":0}]
["School Year:",{"$f":"Schools!$E$3","v":0}]
["Instructional personnel includes all licensed classroom teachers and other licensed personnel assigned to the school who provide services that support instruction: principals, assistant principals, instructional coaches, librarians, music, art, and physical education teachers, guidance counselors, speech therapists and licensed social workers and psychological personnel.  Other personnel directly supporting instruction assigned to the school may include paraprofessionals and other personnel such as non-licensed social workers.  Personnel not involved in providing instructional support MAY NOT be included.   Other personnel that MAY NOT be included are clerical, custodial, food service, transportation, and any other personnel not providing instructional support. Do not include any PreK personnel or 100% federally funded personnel.  Please remember that federally funded would include Title I, II, III, IV, V, Homeless, CTE, SPED, etc.  If personnel is paid from federal and state/local funds indicate the portion of the salary for each personnel in the appropriate column 3 or column 4."]
[1,null,2,3,4]
["LAST Name of \nEmployee","FIRST Name of Employee","Position\n(please be specific)","Federally Funded Salary","State/Local Funded Salary"]
[]
[]
[]
[]
[]
[]
[]
[]
[]
[]
[]
[]
[]
[]
[]
[]
[]
[]
[]
[]
[]
[]
[]
[]
[]
[]
[]
[]
[]
[]
[]
[]
[]
[]
[]
[]
[]
["Instructional Personnel- Salaries"]
["(REQUIRED to be kept on file for monitoring purposes)"]
[]
["LEA Name:  ",{"$f":"B4","v":0}]
["School Name:",0]
["School Grade Span:",0]
["School Year:",0]
["Instructional personnel includes all licensed classroom teachers and other licensed personnel assigned to the school who provide services that support instruction: principals, assistant principals, instructional coaches, librarians, music, art, and physical education teachers, guidance counselors, speech therapists and licensed social workers and psychological personnel.  Other personnel directly supporting instruction assigned to the school may include paraprofessionals and other personnel such as non-licensed social workers.  Personnel not involved in providing instructional support MAY NOT be included.   Other personnel that MAY NOT be included are clerical, custodial, food service, transportation, and any other personnel not providing instructional support. Do not include any PreK personnel or 100% federally funded personnel.  Please remember that federally funded would include Title I, II, III, IV, V, Homeless, CTE, SPED, etc.  If personnel is paid from federal and state/local funds indicate the portion of the salary for each personnel in the appropriate column 3 or column 4."]
[1,null,2,3,4]
["LAST Name of \nEmployee","FIRST Name of Employee","Position\n(please be specific)","Federally Funded Salary","State/Local Funded Salary"]
[]
[]
[]
[]
[]
[]
[]
[]
[]
[]
[]
[]
[]
[]
[]
[]
[]
[]
[]
[]
[]
[]
[]
[]
[]
[]
[]
[]
[]
[]
[]
[]
[]
[]
[]
[]
[null,null,null,"TOTAL",{"$f":"SUM(E11:E47,E58:E93)","v":0}]

{"sheet":"Instructional Salary School 24","index":25,"n_rows":94,"n_cols":5,"rows_kept":94,"cut":false,"hidden":false,"merged":[[54,0,54,4],[55,0,55,1],[8,0,8,1],[3,1,3,4],[4,1,4,4],[5,1,5,4],[7,0,7,4],[6,1,6,4]]}
["Instructional Personnel- Salaries"]
["(REQUIRED to be kept on file for monitoring purposes)"]
[]
["LEA Name:  ",{"$f":"Schools!$E$2","v":0}]
["School Name:",{"$f":"Schools!A30","v":0}]
["School Grade Span:",{"$f":"Schools!B30","v":0}]
["School Year:",{"$f":"Schools!$E$3","v":0}]
["Instructional personnel includes all licensed classroom teachers and other licensed personnel assigned to the school who provide services that support instruction: principals, assistant principals, instructional coaches, librarians, music, art, and physical education teachers, guidance counselors, speech therapists and licensed social workers and psychological personnel.  Other personnel directly supporting instruction assigned to the school may include paraprofessionals and other personnel such as non-licensed social workers.  Personnel not involved in providing instructional support MAY NOT be included.   Other personnel that MAY NOT be included are clerical, custodial, food service, transportation, and any other personnel not providing instructional support. Do not include any PreK personnel or 100% federally funded personnel.  Please remember that federally funded would include Title I, II, III, IV, V, Homeless, CTE, SPED, etc.  If personnel is paid from federal and state/local funds indicate the portion of the salary for each personnel in the appropriate column 3 or column 4."]
[1,null,2,3,4]
["LAST Name of \nEmployee","FIRST Name of Employee","Position\n(please be specific)","Federally Funded Salary","State/Local Funded Salary"]
[]
[]
[]
[]
[]
[]
[]
[]
[]
[]
[]
[]
[]
[]
[]
[]
[]
[]
[]
[]
[]
[]
[]
[]
[]
[]
[]
[]
[]
[]
[]
[]
[]
[]
[]
[]
[]
["Instructional Personnel- Salaries"]
["(REQUIRED to be kept on file for monitoring purposes)"]
[]
["LEA Name:  ",{"$f":"B4","v":0}]
["School Name:",0]
["School Grade Span:",0]
["School Year:",0]
["Instructional personnel includes all licensed classroom teachers and other licensed personnel assigned to the school who provide services that support instruction: principals, assistant principals, instructional coaches, librarians, music, art, and physical education teachers, guidance counselors, speech therapists and licensed social workers and psychological personnel.  Other personnel directly supporting instruction assigned to the school may include paraprofessionals and other personnel such as non-licensed social workers.  Personnel not involved in providing instructional support MAY NOT be included.   Other personnel that MAY NOT be included are clerical, custodial, food service, transportation, and any other personnel not providing instructional support. Do not include any PreK personnel or 100% federally funded personnel.  Please remember that federally funded would include Title I, II, III, IV, V, Homeless, CTE, SPED, etc.  If personnel is paid from federal and state/local funds indicate the portion of the salary for each personnel in the appropriate column 3 or column 4."]
[1,null,2,3,4]
["LAST Name of \nEmployee","FIRST Name of Employee","Position\n(please be specific)","Federally Funded Salary","State/Local Funded Salary"]
[]
[]
[]
[]
[]
[]
[]
[]
[]
[]
[]
[]
[]
[]
[]
[]
[]
[]
[]
[]
[]
[]
[]
[]
[]
[]
[]
[]
[]
[]
[]
[]
[]
[]
[]
[]
[null,null,null,"TOTAL",{"$f":"SUM(E11:E47,E58:E93)","v":0}]

{"sheet":"Instructional Salary School 25","index":26,"n_rows":94,"n_cols":5,"rows_kept":94,"cut":false,"hidden":false,"merged":[[54,0,54,4],[55,0,55,1],[8,0,8,1],[7,0,7,4]]}
["Instructional Personnel- Salaries"]
["(REQUIRED to be kept on file for monitoring purposes)"]
[]
["LEA Name:  ",{"$f":"Schools!$E$2","v":0}]
["School Name:",{"$f":"Schools!$A$37","v":0}]
["School Grade Span:",{"$f":"Schools!$B$37","v":0}]
["School Year:",{"$f":"Schools!$E$3","v":0}]
["Instructional personnel includes all licensed classroom teachers and other licensed personnel assigned to the school who provide services that support instruction: principals, assistant principals, instructional coaches, librarians, music, art, and physical education teachers, guidance counselors, speech therapists and licensed social workers and psychological personnel.  Other personnel directly supporting instruction assigned to the school may include paraprofessionals and other personnel such as non-licensed social workers.  Personnel not involved in providing instructional support MAY NOT be included.   Other personnel that MAY NOT be included are clerical, custodial, food service, transportation, and any other personnel not providing instructional support. Do not include any PreK personnel or 100% federally funded personnel.  Please remember that federally funded would include Title I, II, III, IV, V, Homeless, CTE, SPED, etc.  If personnel is paid from federal and state/local funds indicate the portion of the salary for each personnel in the appropriate column 3 or column 4."]
[1,null,2,3,4]
["LAST Name of \nEmployee","FIRST Name of Employee","Position\n(please be specific)","Federally Funded Salary","State/Local Funded Salary"]
[]
[]
[]
[]
[]
[]
[]
[]
[]
[]
[]
[]
[]
[]
[]
[]
[]
[]
[]
[]
[]
[]
[]
[]
[]
[]
[]
[]
[]
[]
[]
[]
[]
[]
[]
[]
[]
["Instructional Personnel- Salaries"]
["(REQUIRED to be kept on file for monitoring purposes)"]
[]
["LEA Name:  ",{"$f":"B4","v":0}]
["School Name:",0]
["School Grade Span:",0]
["School Year:",0]
["Instructional personnel includes all licensed classroom teachers and other licensed personnel assigned to the school who provide services that support instruction: principals, assistant principals, instructional coaches, librarians, music, art, and physical education teachers, guidance counselors, speech therapists and licensed social workers and psychological personnel.  Other personnel directly supporting instruction assigned to the school may include paraprofessionals and other personnel such as non-licensed social workers.  Personnel not involved in providing instructional support MAY NOT be included.   Other personnel that MAY NOT be included are clerical, custodial, food service, transportation, and any other personnel not providing instructional support. Do not include any PreK personnel or 100% federally funded personnel.  Please remember that federally funded would include Title I, II, III, IV, V, Homeless, CTE, SPED, etc.  If personnel is paid from federal and state/local funds indicate the portion of the salary for each personnel in the appropriate column 3 or column 4."]
[1,null,2,3,4]
["LAST Name of \nEmployee","FIRST Name of Employee","Position\n(please be specific)","Federally Funded Salary","State/Local Funded Salary"]
[]
[]
[]
[]
[]
[]
[]
[]
[]
[]
[]
[]
[]
[]
[]
[]
[]
[]
[]
[]
[]
[]
[]
[]
[]
[]
[]
[]
[]
[]
[]
[]
[]
[]
[]
[]
[null,null,null,"TOTAL",{"$f":"SUM(E11:E47,E58:E93)","v":0}]

{"sheet":"Instructional Salary School 26","index":27,"n_rows":94,"n_cols":5,"rows_kept":94,"cut":false,"hidden":false,"merged":[[54,0,54,4],[55,0,55,1],[8,0,8,1],[7,0,7,4]]}
["Instructional Personnel- Salaries"]
["(REQUIRED to be kept on file for monitoring purposes)"]
[]
["LEA Name:  ",{"$f":"Schools!$E$2","v":0}]
["School Name:",{"$f":"Schools!A38","v":0}]
["School Grade Span:",{"$f":"Schools!$B$38","v":0}]
["School Year:",{"$f":"Schools!$E$3","v":0}]
["Instructional personnel includes all licensed classroom teachers and other licensed personnel assigned to the school who provide services that support instruction: principals, assistant principals, instructional coaches, librarians, music, art, and physical education teachers, guidance counselors, speech therapists and licensed social workers and psychological personnel.  Other personnel directly supporting instruction assigned to the school may include paraprofessionals and other personnel such as non-licensed social workers.  Personnel not involved in providing instructional support MAY NOT be included.   Other personnel that MAY NOT be included are clerical, custodial, food service, transportation, and any other personnel not providing instructional support. Do not include any PreK personnel or 100% federally funded personnel.  Please remember that federally funded would include Title I, II, III, IV, V, Homeless, CTE, SPED, etc.  If personnel is paid from federal and state/local funds indicate the portion of the salary for each personnel in the appropriate column 3 or column 4."]
[1,null,2,3,4]
["LAST Name of \nEmployee","FIRST Name of Employee","Position\n(please be specific)","Federally Funded Salary","State/Local Funded Salary"]
[]
[]
[]
[]
[]
[]
[]
[]
[]
[]
[]
[]
[]
[]
[]
[]
[]
[]
[]
[]
[]
[]
[]
[]
[]
[]
[]
[]
[]
[]
[]
[]
[]
[]
[]
[]
[]
["Instructional Personnel- Salaries"]
["(REQUIRED to be kept on file for monitoring purposes)"]
[]
["LEA Name:  ",{"$f":"B4","v":0}]
["School Name:",0]
["School Grade Span:",0]
["School Year:",0]
["Instructional personnel includes all licensed classroom teachers and other licensed personnel assigned to the school who provide services that support instruction: principals, assistant principals, instructional coaches, librarians, music, art, and physical education teachers, guidance counselors, speech therapists and licensed social workers and psychological personnel.  Other personnel directly supporting instruction assigned to the school may include paraprofessionals and other personnel such as non-licensed social workers.  Personnel not involved in providing instructional support MAY NOT be included.   Other personnel that MAY NOT be included are clerical, custodial, food service, transportation, and any other personnel not providing instructional support. Do not include any PreK personnel or 100% federally funded personnel.  Please remember that federally funded would include Title I, II, III, IV, V, Homeless, CTE, SPED, etc.  If personnel is paid from federal and state/local funds indicate the portion of the salary for each personnel in the appropriate column 3 or column 4."]
[1,null,2,3,4]
["LAST Name of \nEmployee","FIRST Name of Employee","Position\n(please be specific)","Federally Funded Salary","State/Local Funded Salary"]
[]
[]
[]
[]
[]
[]
[]
[]
[]
[]
[]
[]
[]
[]
[]
[]
[]
[]
[]
[]
[]
[]
[]
[]
[]
[]
[]
[]
[]
[]
[]
[]
[]
[]
[]
[]
[null,null,null,"TOTAL",{"$f":"SUM(E11:E47,E58:E93)","v":0}]

{"sheet":"Instructional Salary School 27","index":28,"n_rows":94,"n_cols":5,"rows_kept":94,"cut":false,"hidden":false,"merged":[[54,0,54,4],[55,0,55,1],[8,0,8,1],[7,0,7,4]]}
["Instructional Personnel- Salaries"]
["(REQUIRED to be kept on file for monitoring purposes)"]
[]
["LEA Name:  ",{"$f":"Schools!$E$2","v":0}]
["School Name:",{"$f":"Schools!$A$39","v":0}]
["School Grade Span:",{"$f":"Schools!$B$39","v":0}]
["School Year:",{"$f":"Schools!$E$3","v":0}]
["Instructional personnel includes all licensed classroom teachers and other licensed personnel assigned to the school who provide services that support instruction: principals, assistant principals, instructional coaches, librarians, music, art, and physical education teachers, guidance counselors, speech therapists and licensed social workers and psychological personnel.  Other personnel directly supporting instruction assigned to the school may include paraprofessionals and other personnel such as non-licensed social workers.  Personnel not involved in providing instructional support MAY NOT be included.   Other personnel that MAY NOT be included are clerical, custodial, food service, transportation, and any other personnel not providing instructional support. Do not include any PreK personnel or 100% federally funded personnel.  Please remember that federally funded would include Title I, II, III, IV, V, Homeless, CTE, SPED, etc.  If personnel is paid from federal and state/local funds indicate the portion of the salary for each personnel in the appropriate column 3 or column 4."]
[1,null,2,3,4]
["LAST Name of \nEmployee","FIRST Name of Employee","Position\n(please be specific)","Federally Funded Salary","State/Local Funded Salary"]
[]
[]
[]
[]
[]
[]
[]
[]
[]
[]
[]
[]
[]
[]
[]
[]
[]
[]
[]
[]
[]
[]
[]
[]
[]
[]
[]
[]
[]
[]
[]
[]
[]
[]
[]
[]
[]
["Instructional Personnel- Salaries"]
["(REQUIRED to be kept on file for monitoring purposes)"]
[]
["LEA Name:  ",{"$f":"B4","v":0}]
["School Name:",0]
["School Grade Span:",0]
["School Year:",0]
["Instructional personnel includes all licensed classroom teachers and other licensed personnel assigned to the school who provide services that support instruction: principals, assistant principals, instructional coaches, librarians, music, art, and physical education teachers, guidance counselors, speech therapists and licensed social workers and psychological personnel.  Other personnel directly supporting instruction assigned to the school may include paraprofessionals and other personnel such as non-licensed social workers.  Personnel not involved in providing instructional support MAY NOT be included.   Other personnel that MAY NOT be included are clerical, custodial, food service, transportation, and any other personnel not providing instructional support. Do not include any PreK personnel or 100% federally funded personnel.  Please remember that federally funded would include Title I, II, III, IV, V, Homeless, CTE, SPED, etc.  If personnel is paid from federal and state/local funds indicate the portion of the salary for each personnel in the appropriate column 3 or column 4."]
[1,null,2,3,4]
["LAST Name of \nEmployee","FIRST Name of Employee","Position\n(please be specific)","Federally Funded Salary","State/Local Funded Salary"]
[]
[]
[]
[]
[]
[]
[]
[]
[]
[]
[]
[]
[]
[]
[]
[]
[]
[]
[]
[]
[]
[]
[]
[]
[]
[]
[]
[]
[]
[]
[]
[]
[]
[]
[]
[]
[null,null,null,"TOTAL",{"$f":"SUM(E11:E47,E58:E93)","v":0}]

{"sheet":"Instructional Salary School 28","index":29,"n_rows":94,"n_cols":5,"rows_kept":94,"cut":false,"hidden":false,"merged":[[54,0,54,4],[55,0,55,1],[8,0,8,1],[7,0,7,4]]}
["Instructional Personnel- Salaries"]
["(REQUIRED to be kept on file for monitoring purposes)"]
[]
["LEA Name:  ",{"$f":"Schools!$E$2","v":0}]
["School Name:",{"$f":"Schools!$A$40","v":0}]
["School Grade Span:",{"$f":"Schools!$B$40","v":0}]
["School Year:",{"$f":"Schools!$E$3","v":0}]
["Instructional personnel includes all licensed classroom teachers and other licensed personnel assigned to the school who provide services that support instruction: principals, assistant principals, instructional coaches, librarians, music, art, and physical education teachers, guidance counselors, speech therapists and licensed social workers and psychological personnel.  Other personnel directly supporting instruction assigned to the school may include paraprofessionals and other personnel such as non-licensed social workers.  Personnel not involved in providing instructional support MAY NOT be included.   Other personnel that MAY NOT be included are clerical, custodial, food service, transportation, and any other personnel not providing instructional support. Do not include any PreK personnel or 100% federally funded personnel.  Please remember that federally funded would include Title I, II, III, IV, V, Homeless, CTE, SPED, etc.  If personnel is paid from federal and state/local funds indicate the portion of the salary for each personnel in the appropriate column 3 or column 4."]
[1,null,2,3,4]
["LAST Name of \nEmployee","FIRST Name of Employee","Position\n(please be specific)","Federally Funded Salary","State/Local Funded Salary"]
[]
[]
[]
[]
[]
[]
[]
[]
[]
[]
[]
[]
[]
[]
[]
[]
[]
[]
[]
[]
[]
[]
[]
[]
[]
[]
[]
[]
[]
[]
[]
[]
[]
[]
[]
[]
[]
["Instructional Personnel- Salaries"]
["(REQUIRED to be kept on file for monitoring purposes)"]
[]
["LEA Name:  ",{"$f":"B4","v":0}]
["School Name:",0]
["School Grade Span:",0]
["School Year:",0]
["Instructional personnel includes all licensed classroom teachers and other licensed personnel assigned to the school who provide services that support instruction: principals, assistant principals, instructional coaches, librarians, music, art, and physical education teachers, guidance counselors, speech therapists and licensed social workers and psychological personnel.  Other personnel directly supporting instruction assigned to the school may include paraprofessionals and other personnel such as non-licensed social workers.  Personnel not involved in providing instructional support MAY NOT be included.   Other personnel that MAY NOT be included are clerical, custodial, food service, transportation, and any other personnel not providing instructional support. Do not include any PreK personnel or 100% federally funded personnel.  Please remember that federally funded would include Title I, II, III, IV, V, Homeless, CTE, SPED, etc.  If personnel is paid from federal and state/local funds indicate the portion of the salary for each personnel in the appropriate column 3 or column 4."]
[1,null,2,3,4]
["LAST Name of \nEmployee","FIRST Name of Employee","Position\n(please be specific)","Federally Funded Salary","State/Local Funded Salary"]
[]
[]
[]
[]
[]
[]
[]
[]
[]
[]
[]
[]
[]
[]
[]
[]
[]
[]
[]
[]
[]
[]
[]
[]
[]
[]
[]
[]
[]
[]
[]
[]
[]
[]
[]
[]
[null,null,null,"TOTAL",{"$f":"SUM(E11:E47,E58:E93)","v":0}]

{"sheet":"Instructional Salary School 29","index":30,"n_rows":94,"n_cols":5,"rows_kept":94,"cut":false,"hidden":false,"merged":[[54,0,54,4],[55,0,55,1],[8,0,8,1],[7,0,7,4]]}
["Instructional Personnel- Salaries"]
["(REQUIRED to be kept on file for monitoring purposes)"]
[]
["LEA Name:  ",{"$f":"Schools!$E$2","v":0}]
["School Name:",{"$f":"Schools!$A$41","v":0}]
["School Grade Span:",{"$f":"Schools!$B$41","v":0}]
["School Year:",{"$f":"Schools!$E$3","v":0}]
["Instructional personnel includes all licensed classroom teachers and other licensed personnel assigned to the school who provide services that support instruction: principals, assistant principals, instructional coaches, librarians, music, art, and physical education teachers, guidance counselors, speech therapists and licensed social workers and psychological personnel.  Other personnel directly supporting instruction assigned to the school may include paraprofessionals and other personnel such as non-licensed social workers.  Personnel not involved in providing instructional support MAY NOT be included.   Other personnel that MAY NOT be included are clerical, custodial, food service, transportation, and any other personnel not providing instructional support. Do not include any PreK personnel or 100% federally funded personnel.  Please remember that federally funded would include Title I, II, III, IV, V, Homeless, CTE, SPED, etc.  If personnel is paid from federal and state/local funds indicate the portion of the salary for each personnel in the appropriate column 3 or column 4."]
[1,null,2,3,4]
["LAST Name of \nEmployee","FIRST Name of Employee","Position\n(please be specific)","Federally Funded Salary","State/Local Funded Salary"]
[]
[]
[]
[]
[]
[]
[]
[]
[]
[]
[]
[]
[]
[]
[]
[]
[]
[]
[]
[]
[]
[]
[]
[]
[]
[]
[]
[]
[]
[]
[]
[]
[]
[]
[]
[]
[]
["Instructional Personnel- Salaries"]
["(REQUIRED to be kept on file for monitoring purposes)"]
[]
["LEA Name:  ",{"$f":"B4","v":0}]
["School Name:",0]
["School Grade Span:",0]
["School Year:",0]
["Instructional personnel includes all licensed classroom teachers and other licensed personnel assigned to the school who provide services that support instruction: principals, assistant principals, instructional coaches, librarians, music, art, and physical education teachers, guidance counselors, speech therapists and licensed social workers and psychological personnel.  Other personnel directly supporting instruction assigned to the school may include paraprofessionals and other personnel such as non-licensed social workers.  Personnel not involved in providing instructional support MAY NOT be included.   Other personnel that MAY NOT be included are clerical, custodial, food service, transportation, and any other personnel not providing instructional support. Do not include any PreK personnel or 100% federally funded personnel.  Please remember that federally funded would include Title I, II, III, IV, V, Homeless, CTE, SPED, etc.  If personnel is paid from federal and state/local funds indicate the portion of the salary for each personnel in the appropriate column 3 or column 4."]
[1,null,2,3,4]
["LAST Name of \nEmployee","FIRST Name of Employee","Position\n(please be specific)","Federally Funded Salary","State/Local Funded Salary"]
[]
[]
[]
[]
[]
[]
[]
[]
[]
[]
[]
[]
[]
[]
[]
[]
[]
[]
[]
[]
[]
[]
[]
[]
[]
[]
[]
[]
[]
[]
[]
[]
[]
[]
[]
[]
[null,null,null,"TOTAL",{"$f":"SUM(E11:E47,E58:E93)","v":0}]

{"sheet":"Instructional Salary School 30","index":31,"n_rows":94,"n_cols":5,"rows_kept":94,"cut":false,"hidden":false,"merged":[[54,0,54,4],[55,0,55,1],[8,0,8,1],[7,0,7,4]]}
["Instructional Personnel- Salaries"]
["(REQUIRED to be kept on file for monitoring purposes)"]
[]
["LEA Name:  ",{"$f":"Schools!$E$2","v":0}]
["School Name:",{"$f":"Schools!$A$42","v":0}]
["School Grade Span:",{"$f":"Schools!$B$42","v":0}]
["School Year:",{"$f":"Schools!$E$3","v":0}]
["Instructional personnel includes all licensed classroom teachers and other licensed personnel assigned to the school who provide services that support instruction: principals, assistant principals, instructional coaches, librarians, music, art, and physical education teachers, guidance counselors, speech therapists and licensed social workers and psychological personnel.  Other personnel directly supporting instruction assigned to the school may include paraprofessionals and other personnel such as non-licensed social workers.  Personnel not involved in providing instructional support MAY NOT be included.   Other personnel that MAY NOT be included are clerical, custodial, food service, transportation, and any other personnel not providing instructional support. Do not include any PreK personnel or 100% federally funded personnel.  Please remember that federally funded would include Title I, II, III, IV, V, Homeless, CTE, SPED, etc.  If personnel is paid from federal and state/local funds indicate the portion of the salary for each personnel in the appropriate column 3 or column 4."]
[1,null,2,3,4]
["LAST Name of \nEmployee","FIRST Name of Employee","Position\n(please be specific)","Federally Funded Salary","State/Local Funded Salary"]
[]
[]
[]
[]
[]
[]
[]
[]
[]
[]
[]
[]
[]
[]
[]
[]
[]
[]
[]
[]
[]
[]
[]
[]
[]
[]
[]
[]
[]
[]
[]
[]
[]
[]
[]
[]
[]
["Instructional Personnel- Salaries"]
["(REQUIRED to be kept on file for monitoring purposes)"]
[]
["LEA Name:  ",{"$f":"B4","v":0}]
["School Name:",0]
["School Grade Span:",0]
["School Year:",0]
["Instructional personnel includes all licensed classroom teachers and other licensed personnel assigned to the school who provide services that support instruction: principals, assistant principals, instructional coaches, librarians, music, art, and physical education teachers, guidance counselors, speech therapists and licensed social workers and psychological personnel.  Other personnel directly supporting instruction assigned to the school may include paraprofessionals and other personnel such as non-licensed social workers.  Personnel not involved in providing instructional support MAY NOT be included.   Other personnel that MAY NOT be included are clerical, custodial, food service, transportation, and any other personnel not providing instructional support. Do not include any PreK personnel or 100% federally funded personnel.  Please remember that federally funded would include Title I, II, III, IV, V, Homeless, CTE, SPED, etc.  If personnel is paid from federal and state/local funds indicate the portion of the salary for each personnel in the appropriate column 3 or column 4."]
[1,null,2,3,4]
["LAST Name of \nEmployee","FIRST Name of Employee","Position\n(please be specific)","Federally Funded Salary","State/Local Funded Salary"]
[]
[]
[]
[]
[]
[]
[]
[]
[]
[]
[]
[]
[]
[]
[]
[]
[]
[]
[]
[]
[]
[]
[]
[]
[]
[]
[]
[]
[]
[]
[]
[]
[]
[]
[]
[]
[null,null,null,"TOTAL",{"$f":"SUM(E11:E47,E58:E93)","v":0}]

{"sheet":"Instructional Salary School 31","index":32,"n_rows":94,"n_cols":5,"rows_kept":94,"cut":false,"hidden":false,"merged":[[54,0,54,4],[55,0,55,1],[8,0,8,1],[7,0,7,4]]}
["Instructional Personnel- Salaries"]
["(REQUIRED to be kept on file for monitoring purposes)"]
[]
["LEA Name:  ",{"$f":"Schools!$E$2","v":0}]
["School Name:",{"$f":"Schools!$A$43","v":0}]
["School Grade Span:",{"$f":"Schools!$B$43","v":0}]
["School Year:",{"$f":"Schools!$E$3","v":0}]
["Instructional personnel includes all licensed classroom teachers and other licensed personnel assigned to the school who provide services that support instruction: principals, assistant principals, instructional coaches, librarians, music, art, and physical education teachers, guidance counselors, speech therapists and licensed social workers and psychological personnel.  Other personnel directly supporting instruction assigned to the school may include paraprofessionals and other personnel such as non-licensed social workers.  Personnel not involved in providing instructional support MAY NOT be included.   Other personnel that MAY NOT be included are clerical, custodial, food service, transportation, and any other personnel not providing instructional support. Do not include any PreK personnel or 100% federally funded personnel.  Please remember that federally funded would include Title I, II, III, IV, V, Homeless, CTE, SPED, etc.  If personnel is paid from federal and state/local funds indicate the portion of the salary for each personnel in the appropriate column 3 or column 4."]
[1,null,2,3,4]
["LAST Name of \nEmployee","FIRST Name of Employee","Position\n(please be specific)","Federally Funded Salary","State/Local Funded Salary"]
[]
[]
[]
[]
[]
[]
[]
[]
[]
[]
[]
[]
[]
[]
[]
[]
[]
[]
[]
[]
[]
[]
[]
[]
[]
[]
[]
[]
[]
[]
[]
[]
[]
[]
[]
[]
[]
["Instructional Personnel- Salaries"]
["(REQUIRED to be kept on file for monitoring purposes)"]
[]
["LEA Name:  ",{"$f":"B4","v":0}]
["School Name:",0]
["School Grade Span:",0]
["School Year:",0]
["Instructional personnel includes all licensed classroom teachers and other licensed personnel assigned to the school who provide services that support instruction: principals, assistant principals, instructional coaches, librarians, music, art, and physical education teachers, guidance counselors, speech therapists and licensed social workers and psychological personnel.  Other personnel directly supporting instruction assigned to the school may include paraprofessionals and other personnel such as non-licensed social workers.  Personnel not involved in providing instructional support MAY NOT be included.   Other personnel that MAY NOT be included are clerical, custodial, food service, transportation, and any other personnel not providing instructional support. Do not include any PreK personnel or 100% federally funded personnel.  Please remember that federally funded would include Title I, II, III, IV, V, Homeless, CTE, SPED, etc.  If personnel is paid from federal and state/local funds indicate the portion of the salary for each personnel in the appropriate column 3 or column 4."]
[1,null,2,3,4]
["LAST Name of \nEmployee","FIRST Name of Employee","Position\n(please be specific)","Federally Funded Salary","State/Local Funded Salary"]
[]
[]
[]
[]
[]
[]
[]
[]
[]
[]
[]
[]
[]
[]
[]
[]
[]
[]
[]
[]
[]
[]
[]
[]
[]
[]
[]
[]
[]
[]
[]
[]
[]
[]
[]
[]
[null,null,null,"TOTAL",{"$f":"SUM(E11:E47,E58:E93)","v":0}]

{"sheet":"Instructional Salary School 32","index":33,"n_rows":94,"n_cols":5,"rows_kept":94,"cut":false,"hidden":false,"merged":[[54,0,54,4],[55,0,55,1],[8,0,8,1],[7,0,7,4]]}
["Instructional Personnel- Salaries"]
["(REQUIRED to be kept on file for monitoring purposes)"]
[]
["LEA Name:  ",{"$f":"Schools!$E$2","v":0}]
["School Name:",{"$f":"Schools!$A$44","v":0}]
["School Grade Span:",{"$f":"Schools!$B$44","v":0}]
["School Year:",{"$f":"Schools!$E$3","v":0}]
["Instructional personnel includes all licensed classroom teachers and other licensed personnel assigned to the school who provide services that support instruction: principals, assistant principals, instructional coaches, librarians, music, art, and physical education teachers, guidance counselors, speech therapists and licensed social workers and psychological personnel.  Other personnel directly supporting instruction assigned to the school may include paraprofessionals and other personnel such as non-licensed social workers.  Personnel not involved in providing instructional support MAY NOT be included.   Other personnel that MAY NOT be included are clerical, custodial, food service, transportation, and any other personnel not providing instructional support. Do not include any PreK personnel or 100% federally funded personnel.  Please remember that federally funded would include Title I, II, III, IV, V, Homeless, CTE, SPED, etc.  If personnel is paid from federal and state/local funds indicate the portion of the salary for each personnel in the appropriate column 3 or column 4."]
[1,null,2,3,4]
["LAST Name of \nEmployee","FIRST Name of Employee","Position\n(please be specific)","Federally Funded Salary","State/Local Funded Salary"]
[]
[]
[]
[]
[]
[]
[]
[]
[]
[]
[]
[]
[]
[]
[]
[]
[]
[]
[]
[]
[]
[]
[]
[]
[]
[]
[]
[]
[]
[]
[]
[]
[]
[]
[]
[]
[]
["Instructional Personnel- Salaries"]
["(REQUIRED to be kept on file for monitoring purposes)"]
[]
["LEA Name:  ",{"$f":"B4","v":0}]
["School Name:",0]
["School Grade Span:",0]
["School Year:",0]
["Instructional personnel includes all licensed classroom teachers and other licensed personnel assigned to the school who provide services that support instruction: principals, assistant principals, instructional coaches, librarians, music, art, and physical education teachers, guidance counselors, speech therapists and licensed social workers and psychological personnel.  Other personnel directly supporting instruction assigned to the school may include paraprofessionals and other personnel such as non-licensed social workers.  Personnel not involved in providing instructional support MAY NOT be included.   Other personnel that MAY NOT be included are clerical, custodial, food service, transportation, and any other personnel not providing instructional support. Do not include any PreK personnel or 100% federally funded personnel.  Please remember that federally funded would include Title I, II, III, IV, V, Homeless, CTE, SPED, etc.  If personnel is paid from federal and state/local funds indicate the portion of the salary for each personnel in the appropriate column 3 or column 4."]
[1,null,2,3,4]
["LAST Name of \nEmployee","FIRST Name of Employee","Position\n(please be specific)","Federally Funded Salary","State/Local Funded Salary"]
[]
[]
[]
[]
[]
[]
[]
[]
[]
[]
[]
[]
[]
[]
[]
[]
[]
[]
[]
[]
[]
[]
[]
[]
[]
[]
[]
[]
[]
[]
[]
[]
[]
[]
[]
[]
[null,null,null,"TOTAL",{"$f":"SUM(E11:E47,E58:E93)","v":0}]

{"sheet":"Instructional Salary School 33","index":34,"n_rows":94,"n_cols":5,"rows_kept":94,"cut":false,"hidden":false,"merged":[[54,0,54,4],[55,0,55,1],[8,0,8,1],[7,0,7,4]]}
["Instructional Personnel- Salaries"]
["(REQUIRED to be kept on file for monitoring purposes)"]
[]
["LEA Name:  ",{"$f":"Schools!$E$2","v":0}]
["School Name:",{"$f":"Schools!$A$45","v":0}]
["School Grade Span:",{"$f":"Schools!$B$45","v":0}]
["School Year:",{"$f":"Schools!$E$3","v":0}]
["Instructional personnel includes all licensed classroom teachers and other licensed personnel assigned to the school who provide services that support instruction: principals, assistant principals, instructional coaches, librarians, music, art, and physical education teachers, guidance counselors, speech therapists and licensed social workers and psychological personnel.  Other personnel directly supporting instruction assigned to the school may include paraprofessionals and other personnel such as non-licensed social workers.  Personnel not involved in providing instructional support MAY NOT be included.   Other personnel that MAY NOT be included are clerical, custodial, food service, transportation, and any other personnel not providing instructional support. Do not include any PreK personnel or 100% federally funded personnel.  Please remember that federally funded would include Title I, II, III, IV, V, Homeless, CTE, SPED, etc.  If personnel is paid from federal and state/local funds indicate the portion of the salary for each personnel in the appropriate column 3 or column 4."]
[1,null,2,3,4]
["LAST Name of \nEmployee","FIRST Name of Employee","Position\n(please be specific)","Federally Funded Salary","State/Local Funded Salary"]
[]
[]
[]
[]
[]
[]
[]
[]
[]
[]
[]
[]
[]
[]
[]
[]
[]
[]
[]
[]
[]
[]
[]
[]
[]
[]
[]
[]
[]
[]
[]
[]
[]
[]
[]
[]
[]
["Instructional Personnel- Salaries"]
["(REQUIRED to be kept on file for monitoring purposes)"]
[]
["LEA Name:  ",{"$f":"B4","v":0}]
["School Name:",0]
["School Grade Span:",0]
["School Year:",0]
["Instructional personnel includes all licensed classroom teachers and other licensed personnel assigned to the school who provide services that support instruction: principals, assistant principals, instructional coaches, librarians, music, art, and physical education teachers, guidance counselors, speech therapists and licensed social workers and psychological personnel.  Other personnel directly supporting instruction assigned to the school may include paraprofessionals and other personnel such as non-licensed social workers.  Personnel not involved in providing instructional support MAY NOT be included.   Other personnel that MAY NOT be included are clerical, custodial, food service, transportation, and any other personnel not providing instructional support. Do not include any PreK personnel or 100% federally funded personnel.  Please remember that federally funded would include Title I, II, III, IV, V, Homeless, CTE, SPED, etc.  If personnel is paid from federal and state/local funds indicate the portion of the salary for each personnel in the appropriate column 3 or column 4."]
[1,null,2,3,4]
["LAST Name of \nEmployee","FIRST Name of Employee","Position\n(please be specific)","Federally Funded Salary","State/Local Funded Salary"]
[]
[]
[]
[]
[]
[]
[]
[]
[]
[]
[]
[]
[]
[]
[]
[]
[]
[]
[]
[]
[]
[]
[]
[]
[]
[]
[]
[]
[]
[]
[]
[]
[]
[]
[]
[]
[null,null,null,"TOTAL",{"$f":"SUM(E11:E47,E58:E93)","v":0}]

{"sheet":"Instructional Salary School 34","index":35,"n_rows":94,"n_cols":5,"rows_kept":94,"cut":false,"hidden":false,"merged":[[54,0,54,4],[55,0,55,1],[8,0,8,1],[7,0,7,4]]}
["Instructional Personnel- Salaries"]
["(REQUIRED to be kept on file for monitoring purposes)"]
[]
["LEA Name:  ",{"$f":"Schools!$E$2","v":0}]
["School Name:",{"$f":"Schools!$A$46","v":0}]
["School Grade Span:",{"$f":"Schools!$B$46","v":0}]
["School Year:",{"$f":"Schools!$E$3","v":0}]
["Instructional personnel includes all licensed classroom teachers and other licensed personnel assigned to the school who provide services that support instruction: principals, assistant principals, instructional coaches, librarians, music, art, and physical education teachers, guidance counselors, speech therapists and licensed social workers and psychological personnel.  Other personnel directly supporting instruction assigned to the school may include paraprofessionals and other personnel such as non-licensed social workers.  Personnel not involved in providing instructional support MAY NOT be included.   Other personnel that MAY NOT be included are clerical, custodial, food service, transportation, and any other personnel not providing instructional support. Do not include any PreK personnel or 100% federally funded personnel.  Please remember that federally funded would include Title I, II, III, IV, V, Homeless, CTE, SPED, etc.  If personnel is paid from federal and state/local funds indicate the portion of the salary for each personnel in the appropriate column 3 or column 4."]
[1,null,2,3,4]
["LAST Name of \nEmployee","FIRST Name of Employee","Position\n(please be specific)","Federally Funded Salary","State/Local Funded Salary"]
[]
[]
[]
[]
[]
[]
[]
[]
[]
[]
[]
[]
[]
[]
[]
[]
[]
[]
[]
[]
[]
[]
[]
[]
[]
[]
[]
[]
[]
[]
[]
[]
[]
[]
[]
[]
[]
["Instructional Personnel- Salaries"]
["(REQUIRED to be kept on file for monitoring purposes)"]
[]
["LEA Name:  ",{"$f":"B4","v":0}]
["School Name:",0]
["School Grade Span:",0]
["School Year:",0]
["Instructional personnel includes all licensed classroom teachers and other licensed personnel assigned to the school who provide services that support instruction: principals, assistant principals, instructional coaches, librarians, music, art, and physical education teachers, guidance counselors, speech therapists and licensed social workers and psychological personnel.  Other personnel directly supporting instruction assigned to the school may include paraprofessionals and other personnel such as non-licensed social workers.  Personnel not involved in providing instructional support MAY NOT be included.   Other personnel that MAY NOT be included are clerical, custodial, food service, transportation, and any other personnel not providing instructional support. Do not include any PreK personnel or 100% federally funded personnel.  Please remember that federally funded would include Title I, II, III, IV, V, Homeless, CTE, SPED, etc.  If personnel is paid from federal and state/local funds indicate the portion of the salary for each personnel in the appropriate column 3 or column 4."]
[1,null,2,3,4]
["LAST Name of \nEmployee","FIRST Name of Employee","Position\n(please be specific)","Federally Funded Salary","State/Local Funded Salary"]
[]
[]
[]
[]
[]
[]
[]
[]
[]
[]
[]
[]
[]
[]
[]
[]
[]
[]
[]
[]
[]
[]
[]
[]
[]
[]
[]
[]
[]
[]
[]
[]
[]
[]
[]
[]
[null,null,null,"TOTAL",{"$f":"SUM(E11:E47,E58:E93)","v":0}]

{"sheet":"Instructional Salary School 35","index":36,"n_rows":94,"n_cols":5,"rows_kept":94,"cut":false,"hidden":false,"merged":[[54,0,54,4],[55,0,55,1],[8,0,8,1],[7,0,7,4]]}
["Instructional Personnel- Salaries"]
["(REQUIRED to be kept on file for monitoring purposes)"]
[]
["LEA Name:  ",{"$f":"Schools!$E$2","v":0}]
["School Name:",{"$f":"Schools!$A$47","v":0}]
["School Grade Span:",{"$f":"Schools!$B$47","v":0}]
["School Year:",{"$f":"Schools!$E$3","v":0}]
["Instructional personnel includes all licensed classroom teachers and other licensed personnel assigned to the school who provide services that support instruction: principals, assistant principals, instructional coaches, librarians, music, art, and physical education teachers, guidance counselors, speech therapists and licensed social workers and psychological personnel.  Other personnel directly supporting instruction assigned to the school may include paraprofessionals and other personnel such as non-licensed social workers.  Personnel not involved in providing instructional support MAY NOT be included.   Other personnel that MAY NOT be included are clerical, custodial, food service, transportation, and any other personnel not providing instructional support. Do not include any PreK personnel or 100% federally funded personnel.  Please remember that federally funded would include Title I, II, III, IV, V, Homeless, CTE, SPED, etc.  If personnel is paid from federal and state/local funds indicate the portion of the salary for each personnel in the appropriate column 3 or column 4."]
[1,null,2,3,4]
["LAST Name of \nEmployee","FIRST Name of Employee","Position\n(please be specific)","Federally Funded Salary","State/Local Funded Salary"]
[]
[]
[]
[]
[]
[]
[]
[]
[]
[]
[]
[]
[]
[]
[]
[]
[]
[]
[]
[]
[]
[]
[]
[]
[]
[]
[]
[]
[]
[]
[]
[]
[]
[]
[]
[]
[]
["Instructional Personnel- Salaries"]
["(REQUIRED to be kept on file for monitoring purposes)"]
[]
["LEA Name:  ",{"$f":"B4","v":0}]
["School Name:",0]
["School Grade Span:",0]
["School Year:",0]
["Instructional personnel includes all licensed classroom teachers and other licensed personnel assigned to the school who provide services that support instruction: principals, assistant principals, instructional coaches, librarians, music, art, and physical education teachers, guidance counselors, speech therapists and licensed social workers and psychological personnel.  Other personnel directly supporting instruction assigned to the school may include paraprofessionals and other personnel such as non-licensed social workers.  Personnel not involved in providing instructional support MAY NOT be included.   Other personnel that MAY NOT be included are clerical, custodial, food service, transportation, and any other personnel not providing instructional support. Do not include any PreK personnel or 100% federally funded personnel.  Please remember that federally funded would include Title I, II, III, IV, V, Homeless, CTE, SPED, etc.  If personnel is paid from federal and state/local funds indicate the portion of the salary for each personnel in the appropriate column 3 or column 4."]
[1,null,2,3,4]
["LAST Name of \nEmployee","FIRST Name of Employee","Position\n(please be specific)","Federally Funded Salary","State/Local Funded Salary"]
[]
[]
[]
[]
[]
[]
[]
[]
[]
[]
[]
[]
[]
[]
[]
[]
[]
[]
[]
[]
[]
[]
[]
[]
[]
[]
[]
[]
[]
[]
[]
[]
[]
[]
[]
[]
[null,null,null,"TOTAL",{"$f":"SUM(E11:E47,E58:E93)","v":0}]

{"sheet":"Instructional Salary School 36","index":37,"n_rows":94,"n_cols":5,"rows_kept":94,"cut":false,"hidden":false,"merged":[[54,0,54,4],[55,0,55,1],[8,0,8,1],[7,0,7,4]]}
["Instructional Personnel- Salaries"]
["(REQUIRED to be kept on file for monitoring purposes)"]
[]
["LEA Name:  ",{"$f":"Schools!$E$2","v":0}]
["School Name:",{"$f":"Schools!$A$48","v":0}]
["School Grade Span:",{"$f":"Schools!$B$48","v":0}]
["School Year:",{"$f":"Schools!$E$3","v":0}]
["Instructional personnel includes all licensed classroom teachers and other licensed personnel assigned to the school who provide services that support instruction: principals, assistant principals, instructional coaches, librarians, music, art, and physical education teachers, guidance counselors, speech therapists and licensed social workers and psychological personnel.  Other personnel directly supporting instruction assigned to the school may include paraprofessionals and other personnel such as non-licensed social workers.  Personnel not involved in providing instructional support MAY NOT be included.   Other personnel that MAY NOT be included are clerical, custodial, food service, transportation, and any other personnel not providing instructional support. Do not include any PreK personnel or 100% federally funded personnel.  Please remember that federally funded would include Title I, II, III, IV, V, Homeless, CTE, SPED, etc.  If personnel is paid from federal and state/local funds indicate the portion of the salary for each personnel in the appropriate column 3 or column 4."]
[1,null,2,3,4]
["LAST Name of \nEmployee","FIRST Name of Employee","Position\n(please be specific)","Federally Funded Salary","State/Local Funded Salary"]
[]
[]
[]
[]
[]
[]
[]
[]
[]
[]
[]
[]
[]
[]
[]
[]
[]
[]
[]
[]
[]
[]
[]
[]
[]
[]
[]
[]
[]
[]
[]
[]
[]
[]
[]
[]
[]
["Instructional Personnel- Salaries"]
["(REQUIRED to be kept on file for monitoring purposes)"]
[]
["LEA Name:  ",{"$f":"B4","v":0}]
["School Name:",0]
["School Grade Span:",0]
["School Year:",0]
["Instructional personnel includes all licensed classroom teachers and other licensed personnel assigned to the school who provide services that support instruction: principals, assistant principals, instructional coaches, librarians, music, art, and physical education teachers, guidance counselors, speech therapists and licensed social workers and psychological personnel.  Other personnel directly supporting instruction assigned to the school may include paraprofessionals and other personnel such as non-licensed social workers.  Personnel not involved in providing instructional support MAY NOT be included.   Other personnel that MAY NOT be included are clerical, custodial, food service, transportation, and any other personnel not providing instructional support. Do not include any PreK personnel or 100% federally funded personnel.  Please remember that federally funded would include Title I, II, III, IV, V, Homeless, CTE, SPED, etc.  If personnel is paid from federal and state/local funds indicate the portion of the salary for each personnel in the appropriate column 3 or column 4."]
[1,null,2,3,4]
["LAST Name of \nEmployee","FIRST Name of Employee","Position\n(please be specific)","Federally Funded Salary","State/Local Funded Salary"]
[]
[]
[]
[]
[]
[]
[]
[]
[]
[]
[]
[]
[]
[]
[]
[]
[]
[]
[]
[]
[]
[]
[]
[]
[]
[]
[]
[]
[]
[]
[]
[]
[]
[]
[]
[]
[null,null,null,"TOTAL",{"$f":"SUM(E11:E47,E58:E93)","v":0}]

{"sheet":"Instructional Salary School 37","index":38,"n_rows":94,"n_cols":5,"rows_kept":94,"cut":false,"hidden":false,"merged":[[54,0,54,4],[55,0,55,1],[8,0,8,1],[7,0,7,4]]}
["Instructional Personnel- Salaries"]
["(REQUIRED to be kept on file for monitoring purposes)"]
[]
["LEA Name:  ",{"$f":"Schools!$E$2","v":0}]
["School Name:",{"$f":"Schools!$A$51","v":0}]
["School Grade Span:",{"$f":"Schools!$B$51","v":0}]
["School Year:",{"$f":"Schools!$E$3","v":0}]
["Instructional personnel includes all licensed classroom teachers and other licensed personnel assigned to the school who provide services that support instruction: principals, assistant principals, instructional coaches, librarians, music, art, and physical education teachers, guidance counselors, speech therapists and licensed social workers and psychological personnel.  Other personnel directly supporting instruction assigned to the school may include paraprofessionals and other personnel such as non-licensed social workers.  Personnel not involved in providing instructional support MAY NOT be included.   Other personnel that MAY NOT be included are clerical, custodial, food service, transportation, and any other personnel not providing instructional support. Do not include any PreK personnel or 100% federally funded personnel.  Please remember that federally funded would include Title I, II, III, IV, V, Homeless, CTE, SPED, etc.  If personnel is paid from federal and state/local funds indicate the portion of the salary for each personnel in the appropriate column 3 or column 4."]
[1,null,2,3,4]
["LAST Name of \nEmployee","FIRST Name of Employee","Position\n(please be specific)","Federally Funded Salary","State/Local Funded Salary"]
[]
[]
[]
[]
[]
[]
[]
[]
[]
[]
[]
[]
[]
[]
[]
[]
[]
[]
[]
[]
[]
[]
[]
[]
[]
[]
[]
[]
[]
[]
[]
[]
[]
[]
[]
[]
[]
["Instructional Personnel- Salaries"]
["(REQUIRED to be kept on file for monitoring purposes)"]
[]
["LEA Name:  ",{"$f":"Schools!$E$2","v":0}]
["School Name:",{"$f":"Schools!$A$51","v":0}]
["School Grade Span:",{"$f":"Schools!$B$51","v":0}]
["School Year:",{"$f":"Schools!$E$3","v":0}]
["Instructional personnel includes all licensed classroom teachers and other licensed personnel assigned to the school who provide services that support instruction: principals, assistant principals, instructional coaches, librarians, music, art, and physical education teachers, guidance counselors, speech therapists and licensed social workers and psychological personnel.  Other personnel directly supporting instruction assigned to the school may include paraprofessionals and other personnel such as non-licensed social workers.  Personnel not involved in providing instructional support MAY NOT be included.   Other personnel that MAY NOT be included are clerical, custodial, food service, transportation, and any other personnel not providing instructional support. Do not include any PreK personnel or 100% federally funded personnel.  Please remember that federally funded would include Title I, II, III, IV, V, Homeless, CTE, SPED, etc.  If personnel is paid from federal and state/local funds indicate the portion of the salary for each personnel in the appropriate column 3 or column 4."]
[1,null,2,3,4]
["LAST Name of \nEmployee","FIRST Name of Employee","Position\n(please be specific)","Federally Funded Salary","State/Local Funded Salary"]
[]
[]
[]
[]
[]
[]
[]
[]
[]
[]
[]
[]
[]
[]
[]
[]
[]
[]
[]
[]
[]
[]
[]
[]
[]
[]
[]
[]
[]
[]
[]
[]
[]
[]
[]
[]
[null,null,null,"TOTAL",{"$f":"SUM(E11:E47,E58:E93)","v":0}]

{"sheet":"Instructional Salary School 38","index":39,"n_rows":94,"n_cols":5,"rows_kept":94,"cut":false,"hidden":false,"merged":[[54,0,54,4],[55,0,55,1],[8,0,8,1],[7,0,7,4]]}
["Instructional Personnel- Salaries"]
["(REQUIRED to be kept on file for monitoring purposes)"]
[]
["LEA Name:  ",{"$f":"Schools!$E$2","v":0}]
["School Name:",{"$f":"Schools!$A$50","v":0}]
["School Grade Span:",{"$f":"Schools!$B$50","v":0}]
["School Year:",{"$f":"Schools!$E$3","v":0}]
["Instructional personnel includes all licensed classroom teachers and other licensed personnel assigned to the school who provide services that support instruction: principals, assistant principals, instructional coaches, librarians, music, art, and physical education teachers, guidance counselors, speech therapists and licensed social workers and psychological personnel.  Other personnel directly supporting instruction assigned to the school may include paraprofessionals and other personnel such as non-licensed social workers.  Personnel not involved in providing instructional support MAY NOT be included.   Other personnel that MAY NOT be included are clerical, custodial, food service, transportation, and any other personnel not providing instructional support. Do not include any PreK personnel or 100% federally funded personnel.  Please remember that federally funded would include Title I, II, III, IV, V, Homeless, CTE, SPED, etc.  If personnel is paid from federal and state/local funds indicate the portion of the salary for each personnel in the appropriate column 3 or column 4."]
[1,null,2,3,4]
["LAST Name of \nEmployee","FIRST Name of Employee","Position\n(please be specific)","Federally Funded Salary","State/Local Funded Salary"]
[]
[]
[]
[]
[]
[]
[]
[]
[]
[]
[]
[]
[]
[]
[]
[]
[]
[]
[]
[]
[]
[]
[]
[]
[]
[]
[]
[]
[]
[]
[]
[]
[]
[]
[]
[]
[]
["Instructional Personnel- Salaries"]
["(REQUIRED to be kept on file for monitoring purposes)"]
[]
["LEA Name:  ",{"$f":"B4","v":0}]
["School Name:",0]
["School Grade Span:",0]
["School Year:",0]
["Instructional personnel includes all licensed classroom teachers and other licensed personnel assigned to the school who provide services that support instruction: principals, assistant principals, instructional coaches, librarians, music, art, and physical education teachers, guidance counselors, speech therapists and licensed social workers and psychological personnel.  Other personnel directly supporting instruction assigned to the school may include paraprofessionals and other personnel such as non-licensed social workers.  Personnel not involved in providing instructional support MAY NOT be included.   Other personnel that MAY NOT be included are clerical, custodial, food service, transportation, and any other personnel not providing instructional support. Do not include any PreK personnel or 100% federally funded personnel.  Please remember that federally funded would include Title I, II, III, IV, V, Homeless, CTE, SPED, etc.  If personnel is paid from federal and state/local funds indicate the portion of the salary for each personnel in the appropriate column 3 or column 4."]
[1,null,2,3,4]
["LAST Name of \nEmployee","FIRST Name of Employee","Position\n(please be specific)","Federally Funded Salary","State/Local Funded Salary"]
[]
[]
[]
[]
[]
[]
[]
[]
[]
[]
[]
[]
[]
[]
[]
[]
[]
[]
[]
[]
[]
[]
[]
[]
[]
[]
[]
[]
[]
[]
[]
[]
[]
[]
[]
[]
[null,null,null,"TOTAL",{"$f":"SUM(E11:E47,E58:E93)","v":0}]

{"sheet":"Instructional Salary School 39","index":40,"n_rows":94,"n_cols":5,"rows_kept":94,"cut":false,"hidden":false,"merged":[[54,0,54,4],[55,0,55,1],[8,0,8,1],[7,0,7,4]]}
["Instructional Personnel- Salaries"]
["(REQUIRED to be kept on file for monitoring purposes)"]
[]
["LEA Name:  ",{"$f":"Schools!$E$2","v":0}]
["School Name:",{"$f":"Schools!$A$51","v":0}]
["School Grade Span:",{"$f":"Schools!$B$51","v":0}]
["School Year:",{"$f":"Schools!$E$3","v":0}]
["Instructional personnel includes all licensed classroom teachers and other licensed personnel assigned to the school who provide services that support instruction: principals, assistant principals, instructional coaches, librarians, music, art, and physical education teachers, guidance counselors, speech therapists and licensed social workers and psychological personnel.  Other personnel directly supporting instruction assigned to the school may include paraprofessionals and other personnel such as non-licensed social workers.  Personnel not involved in providing instructional support MAY NOT be included.   Other personnel that MAY NOT be included are clerical, custodial, food service, transportation, and any other personnel not providing instructional support. Do not include any PreK personnel or 100% federally funded personnel.  Please remember that federally funded would include Title I, II, III, IV, V, Homeless, CTE, SPED, etc.  If personnel is paid from federal and state/local funds indicate the portion of the salary for each personnel in the appropriate column 3 or column 4."]
[1,null,2,3,4]
["LAST Name of \nEmployee","FIRST Name of Employee","Position\n(please be specific)","Federally Funded Salary","State/Local Funded Salary"]
[]
[]
[]
[]
[]
[]
[]
[]
[]
[]
[]
[]
[]
[]
[]
[]
[]
[]
[]
[]
[]
[]
[]
[]
[]
[]
[]
[]
[]
[]
[]
[]
[]
[]
[]
[]
[]
["Instructional Personnel- Salaries"]
["(REQUIRED to be kept on file for monitoring purposes)"]
[]
["LEA Name:  ",{"$f":"B4","v":0}]
["School Name:",0]
["School Grade Span:",0]
["School Year:",0]
["Instructional personnel includes all licensed classroom teachers and other licensed personnel assigned to the school who provide services that support instruction: principals, assistant principals, instructional coaches, librarians, music, art, and physical education teachers, guidance counselors, speech therapists and licensed social workers and psychological personnel.  Other personnel directly supporting instruction assigned to the school may include paraprofessionals and other personnel such as non-licensed social workers.  Personnel not involved in providing instructional support MAY NOT be included.   Other personnel that MAY NOT be included are clerical, custodial, food service, transportation, and any other personnel not providing instructional support. Do not include any PreK personnel or 100% federally funded personnel.  Please remember that federally funded would include Title I, II, III, IV, V, Homeless, CTE, SPED, etc.  If personnel is paid from federal and state/local funds indicate the portion of the salary for each personnel in the appropriate column 3 or column 4."]
[1,null,2,3,4]
["LAST Name of \nEmployee","FIRST Name of Employee","Position\n(please be specific)","Federally Funded Salary","State/Local Funded Salary"]
[]
[]
[]
[]
[]
[]
[]
[]
[]
[]
[]
[]
[]
[]
[]
[]
[]
[]
[]
[]
[]
[]
[]
[]
[]
[]
[]
[]
[]
[]
[]
[]
[]
[]
[]
[]
[null,null,null,"TOTAL",{"$f":"SUM(E11:E47,E58:E93)","v":0}]

{"sheet":"Instructional Salary School 40","index":41,"n_rows":94,"n_cols":5,"rows_kept":94,"cut":false,"hidden":false,"merged":[[54,0,54,4],[55,0,55,1],[8,0,8,1],[7,0,7,4]]}
["Instructional Personnel- Salaries"]
["(REQUIRED to be kept on file for monitoring purposes)"]
[]
["LEA Name:  ",{"$f":"Schools!$E$2","v":0}]
["School Name:",{"$f":"Schools!$A$52","v":0}]
["School Grade Span:",{"$f":"Schools!$B$52","v":0}]
["School Year:",{"$f":"Schools!$E$3","v":0}]
["Instructional personnel includes all licensed classroom teachers and other licensed personnel assigned to the school who provide services that support instruction: principals, assistant principals, instructional coaches, librarians, music, art, and physical education teachers, guidance counselors, speech therapists and licensed social workers and psychological personnel.  Other personnel directly supporting instruction assigned to the school may include paraprofessionals and other personnel such as non-licensed social workers.  Personnel not involved in providing instructional support MAY NOT be included.   Other personnel that MAY NOT be included are clerical, custodial, food service, transportation, and any other personnel not providing instructional support. Do not include any PreK personnel or 100% federally funded personnel.  Please remember that federally funded would include Title I, II, III, IV, V, Homeless, CTE, SPED, etc.  If personnel is paid from federal and state/local funds indicate the portion of the salary for each personnel in the appropriate column 3 or column 4."]
[1,null,2,3,4]
["LAST Name of \nEmployee","FIRST Name of Employee","Position\n(please be specific)","Federally Funded Salary","State/Local Funded Salary"]
[]
[]
[]
[]
[]
[]
[]
[]
[]
[]
[]
[]
[]
[]
[]
[]
[]
[]
[]
[]
[]
[]
[]
[]
[]
[]
[]
[]
[]
[]
[]
[]
[]
[]
[]
[]
[]
["Instructional Personnel- Salaries"]
["(REQUIRED to be kept on file for monitoring purposes)"]
[]
["LEA Name:  ",{"$f":"B4","v":0}]
["School Name:",0]
["School Grade Span:",0]
["School Year:",0]
["Instructional personnel includes all licensed classroom teachers and other licensed personnel assigned to the school who provide services that support instruction: principals, assistant principals, instructional coaches, librarians, music, art, and physical education teachers, guidance counselors, speech therapists and licensed social workers and psychological personnel.  Other personnel directly supporting instruction assigned to the school may include paraprofessionals and other personnel such as non-licensed social workers.  Personnel not involved in providing instructional support MAY NOT be included.   Other personnel that MAY NOT be included are clerical, custodial, food service, transportation, and any other personnel not providing instructional support. Do not include any PreK personnel or 100% federally funded personnel.  Please remember that federally funded would include Title I, II, III, IV, V, Homeless, CTE, SPED, etc.  If personnel is paid from federal and state/local funds indicate the portion of the salary for each personnel in the appropriate column 3 or column 4."]
[1,null,2,3,4]
["LAST Name of \nEmployee","FIRST Name of Employee","Position\n(please be specific)","Federally Funded Salary","State/Local Funded Salary"]
[]
[]
[]
[]
[]
[]
[]
[]
[]
[]
[]
[]
[]
[]
[]
[]
[]
[]
[]
[]
[]
[]
[]
[]
[]
[]
[]
[]
[]
[]
[]
[]
[]
[]
[]
[]
[null,null,null,"TOTAL",{"$f":"SUM(E11:E47,E58:E93)","v":0}]

{"sheet":"Instructional Salary School 41","index":42,"n_rows":94,"n_cols":5,"rows_kept":94,"cut":false,"hidden":false,"merged":[[54,0,54,4],[55,0,55,1],[8,0,8,1],[7,0,7,4]]}
["Instructional Personnel- Salaries"]
["(REQUIRED to be kept on file for monitoring purposes)"]
[]
["LEA Name:  ",{"$f":"Schools!$E$2","v":0}]
["School Name:",{"$f":"Schools!$A$53","v":0}]
["School Grade Span:",{"$f":"Schools!$B$53","v":0}]
["School Year:",{"$f":"Schools!$E$3","v":0}]
["Instructional personnel includes all licensed classroom teachers and other licensed personnel assigned to the school who provide services that support instruction: principals, assistant principals, instructional coaches, librarians, music, art, and physical education teachers, guidance counselors, speech therapists and licensed social workers and psychological personnel.  Other personnel directly supporting instruction assigned to the school may include paraprofessionals and other personnel such as non-licensed social workers.  Personnel not involved in providing instructional support MAY NOT be included.   Other personnel that MAY NOT be included are clerical, custodial, food service, transportation, and any other personnel not providing instructional support. Do not include any PreK personnel or 100% federally funded personnel.  Please remember that federally funded would include Title I, II, III, IV, V, Homeless, CTE, SPED, etc.  If personnel is paid from federal and state/local funds indicate the portion of the salary for each personnel in the appropriate column 3 or column 4."]
[1,null,2,3,4]
["LAST Name of \nEmployee","FIRST Name of Employee","Position\n(please be specific)","Federally Funded Salary","State/Local Funded Salary"]
[]
[]
[]
[]
[]
[]
[]
[]
[]
[]
[]
[]
[]
[]
[]
[]
[]
[]
[]
[]
[]
[]
[]
[]
[]
[]
[]
[]
[]
[]
[]
[]
[]
[]
[]
[]
[]
["Instructional Personnel- Salaries"]
["(REQUIRED to be kept on file for monitoring purposes)"]
[]
["LEA Name:  ",{"$f":"B4","v":0}]
["School Name:",0]
["School Grade Span:",0]
["School Year:",0]
["Instructional personnel includes all licensed classroom teachers and other licensed personnel assigned to the school who provide services that support instruction: principals, assistant principals, instructional coaches, librarians, music, art, and physical education teachers, guidance counselors, speech therapists and licensed social workers and psychological personnel.  Other personnel directly supporting instruction assigned to the school may include paraprofessionals and other personnel such as non-licensed social workers.  Personnel not involved in providing instructional support MAY NOT be included.   Other personnel that MAY NOT be included are clerical, custodial, food service, transportation, and any other personnel not providing instructional support. Do not include any PreK personnel or 100% federally funded personnel.  Please remember that federally funded would include Title I, II, III, IV, V, Homeless, CTE, SPED, etc.  If personnel is paid from federal and state/local funds indicate the portion of the salary for each personnel in the appropriate column 3 or column 4."]
[1,null,2,3,4]
["LAST Name of \nEmployee","FIRST Name of Employee","Position\n(please be specific)","Federally Funded Salary","State/Local Funded Salary"]
[]
[]
[]
[]
[]
[]
[]
[]
[]
[]
[]
[]
[]
[]
[]
[]
[]
[]
[]
[]
[]
[]
[]
[]
[]
[]
[]
[]
[]
[]
[]
[]
[]
[]
[]
[]
[null,null,null,"TOTAL",{"$f":"SUM(E11:E47,E58:E93)","v":0}]

{"sheet":"Instructional Salary School 42","index":43,"n_rows":94,"n_cols":5,"rows_kept":94,"cut":false,"hidden":false,"merged":[[54,0,54,4],[55,0,55,1],[8,0,8,1],[7,0,7,4]]}
["Instructional Personnel- Salaries"]
["(REQUIRED to be kept on file for monitoring purposes)"]
[]
["LEA Name:  ",{"$f":"Schools!$E$2","v":0}]
["School Name:",{"$f":"Schools!$A$54","v":0}]
["School Grade Span:",{"$f":"Schools!$B$54","v":0}]
["School Year:",{"$f":"Schools!$E$3","v":0}]
["Instructional personnel includes all licensed classroom teachers and other licensed personnel assigned to the school who provide services that support instruction: principals, assistant principals, instructional coaches, librarians, music, art, and physical education teachers, guidance counselors, speech therapists and licensed social workers and psychological personnel.  Other personnel directly supporting instruction assigned to the school may include paraprofessionals and other personnel such as non-licensed social workers.  Personnel not involved in providing instructional support MAY NOT be included.   Other personnel that MAY NOT be included are clerical, custodial, food service, transportation, and any other personnel not providing instructional support. Do not include any PreK personnel or 100% federally funded personnel.  Please remember that federally funded would include Title I, II, III, IV, V, Homeless, CTE, SPED, etc.  If personnel is paid from federal and state/local funds indicate the portion of the salary for each personnel in the appropriate column 3 or column 4."]
[1,null,2,3,4]
["LAST Name of \nEmployee","FIRST Name of Employee","Position\n(please be specific)","Federally Funded Salary","State/Local Funded Salary"]
[]
[]
[]
[]
[]
[]
[]
[]
[]
[]
[]
[]
[]
[]
[]
[]
[]
[]
[]
[]
[]
[]
[]
[]
[]
[]
[]
[]
[]
[]
[]
[]
[]
[]
[]
[]
[]
["Instructional Personnel- Salaries"]
["(REQUIRED to be kept on file for monitoring purposes)"]
[]
["LEA Name:  ",{"$f":"B4","v":0}]
["School Name:",0]
["School Grade Span:",0]
["School Year:",0]
["Instructional personnel includes all licensed classroom teachers and other licensed personnel assigned to the school who provide services that support instruction: principals, assistant principals, instructional coaches, librarians, music, art, and physical education teachers, guidance counselors, speech therapists and licensed social workers and psychological personnel.  Other personnel directly supporting instruction assigned to the school may include paraprofessionals and other personnel such as non-licensed social workers.  Personnel not involved in providing instructional support MAY NOT be included.   Other personnel that MAY NOT be included are clerical, custodial, food service, transportation, and any other personnel not providing instructional support. Do not include any PreK personnel or 100% federally funded personnel.  Please remember that federally funded would include Title I, II, III, IV, V, Homeless, CTE, SPED, etc.  If personnel is paid from federal and state/local funds indicate the portion of the salary for each personnel in the appropriate column 3 or column 4."]
[1,null,2,3,4]
["LAST Name of \nEmployee","FIRST Name of Employee","Position\n(please be specific)","Federally Funded Salary","State/Local Funded Salary"]
[]
[]
[]
[]
[]
[]
[]
[]
[]
[]
[]
[]
[]
[]
[]
[]
[]
[]
[]
[]
[]
[]
[]
[]
[]
[]
[]
[]
[]
[]
[]
[]
[]
[]
[]
[]
[null,null,null,"TOTAL",{"$f":"SUM(E11:E47,E58:E93)","v":0}]

{"sheet":"Instructional Salary School 43","index":44,"n_rows":94,"n_cols":5,"rows_kept":94,"cut":false,"hidden":false,"merged":[[54,0,54,4],[55,0,55,1],[8,0,8,1],[7,0,7,4]]}
["Instructional Personnel- Salaries"]
["(REQUIRED to be kept on file for monitoring purposes)"]
[]
["LEA Name:  ",{"$f":"Schools!$E$2","v":0}]
["School Name:",{"$f":"Schools!$A$55","v":0}]
["School Grade Span:",{"$f":"Schools!$B$55","v":0}]
["School Year:",{"$f":"Schools!$E$3","v":0}]
["Instructional personnel includes all licensed classroom teachers and other licensed personnel assigned to the school who provide services that support instruction: principals, assistant principals, instructional coaches, librarians, music, art, and physical education teachers, guidance counselors, speech therapists and licensed social workers and psychological personnel.  Other personnel directly supporting instruction assigned to the school may include paraprofessionals and other personnel such as non-licensed social workers.  Personnel not involved in providing instructional support MAY NOT be included.   Other personnel that MAY NOT be included are clerical, custodial, food service, transportation, and any other personnel not providing instructional support. Do not include any PreK personnel or 100% federally funded personnel.  Please remember that federally funded would include Title I, II, III, IV, V, Homeless, CTE, SPED, etc.  If personnel is paid from federal and state/local funds indicate the portion of the salary for each personnel in the appropriate column 3 or column 4."]
[1,null,2,3,4]
["LAST Name of \nEmployee","FIRST Name of Employee","Position\n(please be specific)","Federally Funded Salary","State/Local Funded Salary"]
[]
[]
[]
[]
[]
[]
[]
[]
[]
[]
[]
[]
[]
[]
[]
[]
[]
[]
[]
[]
[]
[]
[]
[]
[]
[]
[]
[]
[]
[]
[]
[]
[]
[]
[]
[]
[]
["Instructional Personnel- Salaries"]
["(REQUIRED to be kept on file for monitoring purposes)"]
[]
["LEA Name:  ",{"$f":"B4","v":0}]
["School Name:",0]
["School Grade Span:",0]
["School Year:",0]
["Instructional personnel includes all licensed classroom teachers and other licensed personnel assigned to the school who provide services that support instruction: principals, assistant principals, instructional coaches, librarians, music, art, and physical education teachers, guidance counselors, speech therapists and licensed social workers and psychological personnel.  Other personnel directly supporting instruction assigned to the school may include paraprofessionals and other personnel such as non-licensed social workers.  Personnel not involved in providing instructional support MAY NOT be included.   Other personnel that MAY NOT be included are clerical, custodial, food service, transportation, and any other personnel not providing instructional support. Do not include any PreK personnel or 100% federally funded personnel.  Please remember that federally funded would include Title I, II, III, IV, V, Homeless, CTE, SPED, etc.  If personnel is paid from federal and state/local funds indicate the portion of the salary for each personnel in the appropriate column 3 or column 4."]
[1,null,2,3,4]
["LAST Name of \nEmployee","FIRST Name of Employee","Position\n(please be specific)","Federally Funded Salary","State/Local Funded Salary"]
[]
[]
[]
[]
[]
[]
[]
[]
[]
[]
[]
[]
[]
[]
[]
[]
[]
[]
[]
[]
[]
[]
[]
[]
[]
[]
[]
[]
[]
[]
[]
[]
[]
[]
[]
[]
[null,null,null,"TOTAL",{"$f":"SUM(E11:E47,E58:E93)","v":0}]

{"sheet":"Instructional Salary School 44","index":45,"n_rows":94,"n_cols":5,"rows_kept":94,"cut":false,"hidden":false,"merged":[[54,0,54,4],[55,0,55,1],[8,0,8,1],[7,0,7,4]]}
["Instructional Personnel- Salaries"]
["(REQUIRED to be kept on file for monitoring purposes)"]
[]
["LEA Name:  ",{"$f":"Schools!$E$2","v":0}]
["School Name:",{"$f":"Schools!$A$56","v":0}]
["School Grade Span:",{"$f":"Schools!$B$56","v":0}]
["School Year:",{"$f":"Schools!$E$3","v":0}]
["Instructional personnel includes all licensed classroom teachers and other licensed personnel assigned to the school who provide services that support instruction: principals, assistant principals, instructional coaches, librarians, music, art, and physical education teachers, guidance counselors, speech therapists and licensed social workers and psychological personnel.  Other personnel directly supporting instruction assigned to the school may include paraprofessionals and other personnel such as non-licensed social workers.  Personnel not involved in providing instructional support MAY NOT be included.   Other personnel that MAY NOT be included are clerical, custodial, food service, transportation, and any other personnel not providing instructional support. Do not include any PreK personnel or 100% federally funded personnel.  Please remember that federally funded would include Title I, II, III, IV, V, Homeless, CTE, SPED, etc.  If personnel is paid from federal and state/local funds indicate the portion of the salary for each personnel in the appropriate column 3 or column 4."]
[1,null,2,3,4]
["LAST Name of \nEmployee","FIRST Name of Employee","Position\n(please be specific)","Federally Funded Salary","State/Local Funded Salary"]
[]
[]
[]
[]
[]
[]
[]
[]
[]
[]
[]
[]
[]
[]
[]
[]
[]
[]
[]
[]
[]
[]
[]
[]
[]
[]
[]
[]
[]
[]
[]
[]
[]
[]
[]
[]
[]
["Instructional Personnel- Salaries"]
["(REQUIRED to be kept on file for monitoring purposes)"]
[]
["LEA Name:  ",{"$f":"B4","v":0}]
["School Name:",0]
["School Grade Span:",0]
["School Year:",0]
["Instructional personnel includes all licensed classroom teachers and other licensed personnel assigned to the school who provide services that support instruction: principals, assistant principals, instructional coaches, librarians, music, art, and physical education teachers, guidance counselors, speech therapists and licensed social workers and psychological personnel.  Other personnel directly supporting instruction assigned to the school may include paraprofessionals and other personnel such as non-licensed social workers.  Personnel not involved in providing instructional support MAY NOT be included.   Other personnel that MAY NOT be included are clerical, custodial, food service, transportation, and any other personnel not providing instructional support. Do not include any PreK personnel or 100% federally funded personnel.  Please remember that federally funded would include Title I, II, III, IV, V, Homeless, CTE, SPED, etc.  If personnel is paid from federal and state/local funds indicate the portion of the salary for each personnel in the appropriate column 3 or column 4."]
[1,null,2,3,4]
["LAST Name of \nEmployee","FIRST Name of Employee","Position\n(please be specific)","Federally Funded Salary","State/Local Funded Salary"]
[]
[]
[]
[]
[]
[]
[]
[]
[]
[]
[]
[]
[]
[]
[]
[]
[]
[]
[]
[]
[]
[]
[]
[]
[]
[]
[]
[]
[]
[]
[]
[]
[]
[]
[]
[]
[null,null,null,"TOTAL",{"$f":"SUM(E11:E47,E58:E93)","v":0}]

{"sheet":"Instructional Salary School 45","index":46,"n_rows":94,"n_cols":5,"rows_kept":94,"cut":false,"hidden":false,"merged":[[54,0,54,4],[55,0,55,1],[8,0,8,1],[7,0,7,4]]}
["Instructional Personnel- Salaries"]
["(REQUIRED to be kept on file for monitoring purposes)"]
[]
["LEA Name:  ",{"$f":"Schools!$E$2","v":0}]
["School Name:",{"$f":"Schools!$A$57","v":0}]
["School Grade Span:",{"$f":"Schools!$B$57","v":0}]
["School Year:",{"$f":"Schools!$E$3","v":0}]
["Instructional personnel includes all licensed classroom teachers and other licensed personnel assigned to the school who provide services that support instruction: principals, assistant principals, instructional coaches, librarians, music, art, and physical education teachers, guidance counselors, speech therapists and licensed social workers and psychological personnel.  Other personnel directly supporting instruction assigned to the school may include paraprofessionals and other personnel such as non-licensed social workers.  Personnel not involved in providing instructional support MAY NOT be included.   Other personnel that MAY NOT be included are clerical, custodial, food service, transportation, and any other personnel not providing instructional support. Do not include any PreK personnel or 100% federally funded personnel.  Please remember that federally funded would include Title I, II, III, IV, V, Homeless, CTE, SPED, etc.  If personnel is paid from federal and state/local funds indicate the portion of the salary for each personnel in the appropriate column 3 or column 4."]
[1,null,2,3,4]
["LAST Name of \nEmployee","FIRST Name of Employee","Position\n(please be specific)","Federally Funded Salary","State/Local Funded Salary"]
[]
[]
[]
[]
[]
[]
[]
[]
[]
[]
[]
[]
[]
[]
[]
[]
[]
[]
[]
[]
[]
[]
[]
[]
[]
[]
[]
[]
[]
[]
[]
[]
[]
[]
[]
[]
[]
["Instructional Personnel- Salaries"]
["(REQUIRED to be kept on file for monitoring purposes)"]
[]
["LEA Name:  ",{"$f":"B4","v":0}]
["School Name:",0]
["School Grade Span:",0]
["School Year:",0]
["Instructional personnel includes all licensed classroom teachers and other licensed personnel assigned to the school who provide services that support instruction: principals, assistant principals, instructional coaches, librarians, music, art, and physical education teachers, guidance counselors, speech therapists and licensed social workers and psychological personnel.  Other personnel directly supporting instruction assigned to the school may include paraprofessionals and other personnel such as non-licensed social workers.  Personnel not involved in providing instructional support MAY NOT be included.   Other personnel that MAY NOT be included are clerical, custodial, food service, transportation, and any other personnel not providing instructional support. Do not include any PreK personnel or 100% federally funded personnel.  Please remember that federally funded would include Title I, II, III, IV, V, Homeless, CTE, SPED, etc.  If personnel is paid from federal and state/local funds indicate the portion of the salary for each personnel in the appropriate column 3 or column 4."]
[1,null,2,3,4]
["LAST Name of \nEmployee","FIRST Name of Employee","Position\n(please be specific)","Federally Funded Salary","State/Local Funded Salary"]
[]
[]
[]
[]
[]
[]
[]
[]
[]
[]
[]
[]
[]
[]
[]
[]
[]
[]
[]
[]
[]
[]
[]
[]
[]
[]
[]
[]
[]
[]
[]
[]
[]
[]
[]
[]
[null,null,null,"TOTAL",{"$f":"SUM(E11:E47,E58:E93)","v":0}]

{"sheet":"Instructional Salary School 46","index":47,"n_rows":94,"n_cols":5,"rows_kept":94,"cut":false,"hidden":false,"merged":[[54,0,54,4],[55,0,55,1],[8,0,8,1],[7,0,7,4]]}
["Instructional Personnel- Salaries"]
["(REQUIRED to be kept on file for monitoring purposes)"]
[]
["LEA Name:  ",{"$f":"Schools!$E$2","v":0}]
["School Name:",{"$f":"Schools!$A$58","v":0}]
["School Grade Span:",{"$f":"Schools!$B$58","v":0}]
["School Year:",{"$f":"Schools!$E$3","v":0}]
["Instructional personnel includes all licensed classroom teachers and other licensed personnel assigned to the school who provide services that support instruction: principals, assistant principals, instructional coaches, librarians, music, art, and physical education teachers, guidance counselors, speech therapists and licensed social workers and psychological personnel.  Other personnel directly supporting instruction assigned to the school may include paraprofessionals and other personnel such as non-licensed social workers.  Personnel not involved in providing instructional support MAY NOT be included.   Other personnel that MAY NOT be included are clerical, custodial, food service, transportation, and any other personnel not providing instructional support. Do not include any PreK personnel or 100% federally funded personnel.  Please remember that federally funded would include Title I, II, III, IV, V, Homeless, CTE, SPED, etc.  If personnel is paid from federal and state/local funds indicate the portion of the salary for each personnel in the appropriate column 3 or column 4."]
[1,null,2,3,4]
["LAST Name of \nEmployee","FIRST Name of Employee","Position\n(please be specific)","Federally Funded Salary","State/Local Funded Salary"]
[]
[]
[]
[]
[]
[]
[]
[]
[]
[]
[]
[]
[]
[]
[]
[]
[]
[]
[]
[]
[]
[]
[]
[]
[]
[]
[]
[]
[]
[]
[]
[]
[]
[]
[]
[]
[]
["Instructional Personnel- Salaries"]
["(REQUIRED to be kept on file for monitoring purposes)"]
[]
["LEA Name:  ",{"$f":"B4","v":0}]
["School Name:",0]
["School Grade Span:",0]
["School Year:",0]
["Instructional personnel includes all licensed classroom teachers and other licensed personnel assigned to the school who provide services that support instruction: principals, assistant principals, instructional coaches, librarians, music, art, and physical education teachers, guidance counselors, speech therapists and licensed social workers and psychological personnel.  Other personnel directly supporting instruction assigned to the school may include paraprofessionals and other personnel such as non-licensed social workers.  Personnel not involved in providing instructional support MAY NOT be included.   Other personnel that MAY NOT be included are clerical, custodial, food service, transportation, and any other personnel not providing instructional support. Do not include any PreK personnel or 100% federally funded personnel.  Please remember that federally funded would include Title I, II, III, IV, V, Homeless, CTE, SPED, etc.  If personnel is paid from federal and state/local funds indicate the portion of the salary for each personnel in the appropriate column 3 or column 4."]
[1,null,2,3,4]
["LAST Name of \nEmployee","FIRST Name of Employee","Position\n(please be specific)","Federally Funded Salary","State/Local Funded Salary"]
[]
[]
[]
[]
[]
[]
[]
[]
[]
[]
[]
[]
[]
[]
[]
[]
[]
[]
[]
[]
[]
[]
[]
[]
[]
[]
[]
[]
[]
[]
[]
[]
[]
[]
[]
[]
[null,null,null,"TOTAL",{"$f":"SUM(E11:E47,E58:E93)","v":0}]

{"sheet":"Instructional Salary School 47","index":48,"n_rows":94,"n_cols":5,"rows_kept":94,"cut":false,"hidden":false,"merged":[[8,0,8,1],[54,0,54,4],[55,0,55,1],[7,0,7,4]]}
["Instructional Personnel- Salaries"]
["(REQUIRED to be kept on file for monitoring purposes)"]
[]
["LEA Name:  ",{"$f":"Schools!$E$2","v":0}]
["School Name:",{"$f":"Schools!$A$59","v":0}]
["School Grade Span:",{"$f":"Schools!$B$59","v":0}]
["School Year:",{"$f":"Schools!$E$3","v":0}]
["Instructional personnel includes all licensed classroom teachers and other licensed personnel assigned to the school who provide services that support instruction: principals, assistant principals, instructional coaches, librarians, music, art, and physical education teachers, guidance counselors, speech therapists and licensed social workers and psychological personnel.  Other personnel directly supporting instruction assigned to the school may include paraprofessionals and other personnel such as non-licensed social workers.  Personnel not involved in providing instructional support MAY NOT be included.   Other personnel that MAY NOT be included are clerical, custodial, food service, transportation, and any other personnel not providing instructional support. Do not include any PreK personnel or 100% federally funded personnel.  Please remember that federally funded would include Title I, II, III, IV, V, Homeless, CTE, SPED, etc.  If personnel is paid from federal and state/local funds indicate the portion of the salary for each personnel in the appropriate column 3 or column 4."]
[1,null,2,3,4]
["LAST Name of \nEmployee","FIRST Name of Employee","Position\n(please be specific)","Federally Funded Salary","State/Local Funded Salary"]
[]
[]
[]
[]
[]
[]
[]
[]
[]
[]
[]
[]
[]
[]
[]
[]
[]
[]
[]
[]
[]
[]
[]
[]
[]
[]
[]
[]
[]
[]
[]
[]
[]
[]
[]
[]
[]
["Instructional Personnel- Salaries"]
["(REQUIRED to be kept on file for monitoring purposes)"]
[]
["LEA Name:  ",{"$f":"B4","v":0}]
["School Name:",0]
["School Grade Span:",0]
["School Year:",0]
["Instructional personnel includes all licensed classroom teachers and other licensed personnel assigned to the school who provide services that support instruction: principals, assistant principals, instructional coaches, librarians, music, art, and physical education teachers, guidance counselors, speech therapists and licensed social workers and psychological personnel.  Other personnel directly supporting instruction assigned to the school may include paraprofessionals and other personnel such as non-licensed social workers.  Personnel not involved in providing instructional support MAY NOT be included.   Other personnel that MAY NOT be included are clerical, custodial, food service, transportation, and any other personnel not providing instructional support. Do not include any PreK personnel or 100% federally funded personnel.  Please remember that federally funded would include Title I, II, III, IV, V, Homeless, CTE, SPED, etc.  If personnel is paid from federal and state/local funds indicate the portion of the salary for each personnel in the appropriate column 3 or column 4."]
[1,null,2,3,4]
["LAST Name of \nEmployee","FIRST Name of Employee","Position\n(please be specific)","Federally Funded Salary","State/Local Funded Salary"]
[]
[]
[]
[]
[]
[]
[]
[]
[]
[]
[]
[]
[]
[]
[]
[]
[]
[]
[]
[]
[]
[]
[]
[]
[]
[]
[]
[]
[]
[]
[]
[]
[]
[]
[]
[]
[null,null,null,"TOTAL",{"$f":"SUM(E11:E47,E58:E93)","v":0}]

{"sheet":"Instructional Salary School 48","index":49,"n_rows":94,"n_cols":5,"rows_kept":94,"cut":false,"hidden":false,"merged":[[8,0,8,1],[54,0,54,4],[55,0,55,1],[7,0,7,4]]}
["Instructional Personnel- Salaries"]
["(REQUIRED to be kept on file for monitoring purposes)"]
[]
["LEA Name:  ",{"$f":"Schools!$E$2","v":0}]
["School Name:",{"$f":"Schools!$A$60","v":0}]
["School Grade Span:",{"$f":"Schools!$B$60","v":0}]
["School Year:",{"$f":"Schools!$E$3","v":0}]
["Instructional personnel includes all licensed classroom teachers and other licensed personnel assigned to the school who provide services that support instruction: principals, assistant principals, instructional coaches, librarians, music, art, and physical education teachers, guidance counselors, speech therapists and licensed social workers and psychological personnel.  Other personnel directly supporting instruction assigned to the school may include paraprofessionals and other personnel such as non-licensed social workers.  Personnel not involved in providing instructional support MAY NOT be included.   Other personnel that MAY NOT be included are clerical, custodial, food service, transportation, and any other personnel not providing instructional support. Do not include any PreK personnel or 100% federally funded personnel.  Please remember that federally funded would include Title I, II, III, IV, V, Homeless, CTE, SPED, etc.  If personnel is paid from federal and state/local funds indicate the portion of the salary for each personnel in the appropriate column 3 or column 4."]
[1,null,2,3,4]
["LAST Name of \nEmployee","FIRST Name of Employee","Position\n(please be specific)","Federally Funded Salary","State/Local Funded Salary"]
[]
[]
[]
[]
[]
[]
[]
[]
[]
[]
[]
[]
[]
[]
[]
[]
[]
[]
[]
[]
[]
[]
[]
[]
[]
[]
[]
[]
[]
[]
[]
[]
[]
[]
[]
[]
[]
["Instructional Personnel- Salaries"]
["(REQUIRED to be kept on file for monitoring purposes)"]
[]
["LEA Name:  ",{"$f":"B4","v":0}]
["School Name:",0]
["School Grade Span:",0]
["School Year:",0]
["Instructional personnel includes all licensed classroom teachers and other licensed personnel assigned to the school who provide services that support instruction: principals, assistant principals, instructional coaches, librarians, music, art, and physical education teachers, guidance counselors, speech therapists and licensed social workers and psychological personnel.  Other personnel directly supporting instruction assigned to the school may include paraprofessionals and other personnel such as non-licensed social workers.  Personnel not involved in providing instructional support MAY NOT be included.   Other personnel that MAY NOT be included are clerical, custodial, food service, transportation, and any other personnel not providing instructional support. Do not include any PreK personnel or 100% federally funded personnel.  Please remember that federally funded would include Title I, II, III, IV, V, Homeless, CTE, SPED, etc.  If personnel is paid from federal and state/local funds indicate the portion of the salary for each personnel in the appropriate column 3 or column 4."]
[1,null,2,3,4]
["LAST Name of \nEmployee","FIRST Name of Employee","Position\n(please be specific)","Federally Funded Salary","State/Local Funded Salary"]
[]
[]
[]
[]
[]
[]
[]
[]
[]
[]
[]
[]
[]
[]
[]
[]
[]
[]
[]
[]
[]
[]
[]
[]
[]
[]
[]
[]
[]
[]
[]
[]
[]
[]
[]
[]
[null,null,null,"TOTAL",{"$f":"SUM(E11:E47,E58:E93)","v":0}]

{"sheet":"Instructional Salary School 49","index":50,"n_rows":94,"n_cols":5,"rows_kept":94,"cut":false,"hidden":false,"merged":[[55,0,55,1],[54,0,54,4],[8,0,8,1],[7,0,7,4]]}
["Instructional Personnel- Salaries"]
["(REQUIRED to be kept on file for monitoring purposes)"]
[]
["LEA Name:  ",{"$f":"Schools!$E$2","v":0}]
["School Name:",{"$f":"Schools!$A$67","v":0}]
["School Grade Span:",{"$f":"Schools!$B$67","v":0}]
["School Year:",{"$f":"Schools!$E$3","v":0}]
["Instructional personnel includes all licensed classroom teachers and other licensed personnel assigned to the school who provide services that support instruction: principals, assistant principals, instructional coaches, librarians, music, art, and physical education teachers, guidance counselors, speech therapists and licensed social workers and psychological personnel.  Other personnel directly supporting instruction assigned to the school may include paraprofessionals and other personnel such as non-licensed social workers.  Personnel not involved in providing instructional support MAY NOT be included.   Other personnel that MAY NOT be included are clerical, custodial, food service, transportation, and any other personnel not providing instructional support. Do not include any PreK personnel or 100% federally funded personnel.  Please remember that federally funded would include Title I, II, III, IV, V, Homeless, CTE, SPED, etc.  If personnel is paid from federal and state/local funds indicate the portion of the salary for each personnel in the appropriate column 3 or column 4."]
[1,null,2,3,4]
["LAST Name of \nEmployee","FIRST Name of Employee","Position\n(please be specific)","Federally Funded Salary","State/Local Funded Salary"]
[]
[]
[]
[]
[]
[]
[]
[]
[]
[]
[]
[]
[]
[]
[]
[]
[]
[]
[]
[]
[]
[]
[]
[]
[]
[]
[]
[]
[]
[]
[]
[]
[]
[]
[]
[]
[]
["Instructional Personnel- Salaries"]
["(REQUIRED to be kept on file for monitoring purposes)"]
[]
["LEA Name:  ",{"$f":"B4","v":0}]
["School Name:",0]
["School Grade Span:",0]
["School Year:",0]
["Instructional personnel includes all licensed classroom teachers and other licensed personnel assigned to the school who provide services that support instruction: principals, assistant principals, instructional coaches, librarians, music, art, and physical education teachers, guidance counselors, speech therapists and licensed social workers and psychological personnel.  Other personnel directly supporting instruction assigned to the school may include paraprofessionals and other personnel such as non-licensed social workers.  Personnel not involved in providing instructional support MAY NOT be included.   Other personnel that MAY NOT be included are clerical, custodial, food service, transportation, and any other personnel not providing instructional support. Do not include any PreK personnel or 100% federally funded personnel.  Please remember that federally funded would include Title I, II, III, IV, V, Homeless, CTE, SPED, etc.  If personnel is paid from federal and state/local funds indicate the portion of the salary for each personnel in the appropriate column 3 or column 4."]
[1,null,2,3,4]
["LAST Name of \nEmployee","FIRST Name of Employee","Position\n(please be specific)","Federally Funded Salary","State/Local Funded Salary"]
[]
[]
[]
[]
[]
[]
[]
[]
[]
[]
[]
[]
[]
[]
[]
[]
[]
[]
[]
[]
[]
[]
[]
[]
[]
[]
[]
[]
[]
[]
[]
[]
[]
[]
[]
[]
[null,null,null,"TOTAL",{"$f":"SUM(E11:E47,E58:E93)","v":0}]

{"sheet":"Instructional Salary School 50","index":51,"n_rows":94,"n_cols":5,"rows_kept":94,"cut":false,"hidden":false,"merged":[[54,0,54,4],[55,0,55,1],[7,0,7,4],[8,0,8,1]]}
["Instructional Personnel- Salaries"]
["(REQUIRED to be kept on file for monitoring purposes)"]
[]
["LEA Name:  ",{"$f":"Schools!$E$2","v":0}]
["School Name:",{"$f":"Schools!$A$68","v":0}]
["School Grade Span:",{"$f":"Schools!$B$68","v":0}]
["School Year:",{"$f":"Schools!$E$3","v":0}]
["Instructional personnel includes all licensed classroom teachers and other licensed personnel assigned to the school who provide services that support instruction: principals, assistant principals, instructional coaches, librarians, music, art, and physical education teachers, guidance counselors, speech therapists and licensed social workers and psychological personnel.  Other personnel directly supporting instruction assigned to the school may include paraprofessionals and other personnel such as non-licensed social workers.  Personnel not involved in providing instructional support MAY NOT be included.   Other personnel that MAY NOT be included are clerical, custodial, food service, transportation, and any other personnel not providing instructional support. Do not include any PreK personnel or 100% federally funded personnel.  Please remember that federally funded would include Title I, II, III, IV, V, Homeless, CTE, SPED, etc.  If personnel is paid from federal and state/local funds indicate the portion of the salary for each personnel in the appropriate column 3 or column 4."]
[1,null,2,3,4]
["LAST Name of \nEmployee","FIRST Name of Employee","Position\n(please be specific)","Federally Funded Salary","State/Local Funded Salary"]
[]
[]
[]
[]
[]
[]
[]
[]
[]
[]
[]
[]
[]
[]
[]
[]
[]
[]
[]
[]
[]
[]
[]
[]
[]
[]
[]
[]
[]
[]
[]
[]
[]
[]
[]
[]
[]
["Instructional Personnel- Salaries"]
["(REQUIRED to be kept on file for monitoring purposes)"]
[]
["LEA Name:  ",{"$f":"B4","v":0}]
["School Name:",0]
["School Grade Span:",0]
["School Year:",0]
["Instructional personnel includes all licensed classroom teachers and other licensed personnel assigned to the school who provide services that support instruction: principals, assistant principals, instructional coaches, librarians, music, art, and physical education teachers, guidance counselors, speech therapists and licensed social workers and psychological personnel.  Other personnel directly supporting instruction assigned to the school may include paraprofessionals and other personnel such as non-licensed social workers.  Personnel not involved in providing instructional support MAY NOT be included.   Other personnel that MAY NOT be included are clerical, custodial, food service, transportation, and any other personnel not providing instructional support. Do not include any PreK personnel or 100% federally funded personnel.  Please remember that federally funded would include Title I, II, III, IV, V, Homeless, CTE, SPED, etc.  If personnel is paid from federal and state/local funds indicate the portion of the salary for each personnel in the appropriate column 3 or column 4."]
[1,null,2,3,4]
["LAST Name of \nEmployee","FIRST Name of Employee","Position\n(please be specific)","Federally Funded Salary","State/Local Funded Salary"]
[]
[]
[]
[]
[]
[]
[]
[]
[]
[]
[]
[]
[]
[]
[]
[]
[]
[]
[]
[]
[]
[]
[]
[]
[]
[]
[]
[]
[]
[]
[]
[]
[]
[]
[]
[]
[null,null,null,"TOTAL",{"$f":"SUM(E11:E47,E58:E93)","v":0}]

{"sheet":"Instructional Salary School 51","index":52,"n_rows":94,"n_cols":5,"rows_kept":94,"cut":false,"hidden":false,"merged":[[54,0,54,4],[55,0,55,1],[7,0,7,4],[8,0,8,1]]}
["Instructional Personnel- Salaries"]
["(REQUIRED to be kept on file for monitoring purposes)"]
[]
["LEA Name:  ",{"$f":"Schools!$E$2","v":0}]
["School Name:",{"$f":"Schools!$A$69","v":0}]
["School Grade Span:",{"$f":"Schools!$B$69","v":0}]
["School Year:",{"$f":"Schools!$E$3","v":0}]
["Instructional personnel includes all licensed classroom teachers and other licensed personnel assigned to the school who provide services that support instruction: principals, assistant principals, instructional coaches, librarians, music, art, and physical education teachers, guidance counselors, speech therapists and licensed social workers and psychological personnel.  Other personnel directly supporting instruction assigned to the school may include paraprofessionals and other personnel such as non-licensed social workers.  Personnel not involved in providing instructional support MAY NOT be included.   Other personnel that MAY NOT be included are clerical, custodial, food service, transportation, and any other personnel not providing instructional support. Do not include any PreK personnel or 100% federally funded personnel.  Please remember that federally funded would include Title I, II, III, IV, V, Homeless, CTE, SPED, etc.  If personnel is paid from federal and state/local funds indicate the portion of the salary for each personnel in the appropriate column 3 or column 4."]
[1,null,2,3,4]
["LAST Name of \nEmployee","FIRST Name of Employee","Position\n(please be specific)","Federally Funded Salary","State/Local Funded Salary"]
[]
[]
[]
[]
[]
[]
[]
[]
[]
[]
[]
[]
[]
[]
[]
[]
[]
[]
[]
[]
[]
[]
[]
[]
[]
[]
[]
[]
[]
[]
[]
[]
[]
[]
[]
[]
[]
["Instructional Personnel- Salaries"]
["(REQUIRED to be kept on file for monitoring purposes)"]
[]
["LEA Name:  ",{"$f":"B4","v":0}]
["School Name:",0]
["School Grade Span:",0]
["School Year:",0]
["Instructional personnel includes all licensed classroom teachers and other licensed personnel assigned to the school who provide services that support instruction: principals, assistant principals, instructional coaches, librarians, music, art, and physical education teachers, guidance counselors, speech therapists and licensed social workers and psychological personnel.  Other personnel directly supporting instruction assigned to the school may include paraprofessionals and other personnel such as non-licensed social workers.  Personnel not involved in providing instructional support MAY NOT be included.   Other personnel that MAY NOT be included are clerical, custodial, food service, transportation, and any other personnel not providing instructional support. Do not include any PreK personnel or 100% federally funded personnel.  Please remember that federally funded would include Title I, II, III, IV, V, Homeless, CTE, SPED, etc.  If personnel is paid from federal and state/local funds indicate the portion of the salary for each personnel in the appropriate column 3 or column 4."]
[1,null,2,3,4]
["LAST Name of \nEmployee","FIRST Name of Employee","Position\n(please be specific)","Federally Funded Salary","State/Local Funded Salary"]
[]
[]
[]
[]
[]
[]
[]
[]
[]
[]
[]
[]
[]
[]
[]
[]
[]
[]
[]
[]
[]
[]
[]
[]
[]
[]
[]
[]
[]
[]
[]
[]
[]
[]
[]
[]
[null,null,null,"TOTAL",{"$f":"SUM(E11:E47,E58:E93)","v":0}]

{"sheet":"Instructional Salary School 52","index":53,"n_rows":94,"n_cols":5,"rows_kept":94,"cut":false,"hidden":false,"merged":[[8,0,8,1],[54,0,54,4],[55,0,55,1],[7,0,7,4]]}
["Instructional Personnel- Salaries"]
["(REQUIRED to be kept on file for monitoring purposes)"]
[]
["LEA Name:  ",{"$f":"Schools!$E$2","v":0}]
["School Name:",{"$f":"Schools!$A$70","v":0}]
["School Grade Span:",{"$f":"Schools!$B$70","v":0}]
["School Year:",{"$f":"Schools!$E$3","v":0}]
["Instructional personnel includes all licensed classroom teachers and other licensed personnel assigned to the school who provide services that support instruction: principals, assistant principals, instructional coaches, librarians, music, art, and physical education teachers, guidance counselors, speech therapists and licensed social workers and psychological personnel.  Other personnel directly supporting instruction assigned to the school may include paraprofessionals and other personnel such as non-licensed social workers.  Personnel not involved in providing instructional support MAY NOT be included.   Other personnel that MAY NOT be included are clerical, custodial, food service, transportation, and any other personnel not providing instructional support. Do not include any PreK personnel or 100% federally funded personnel.  Please remember that federally funded would include Title I, II, III, IV, V, Homeless, CTE, SPED, etc.  If personnel is paid from federal and state/local funds indicate the portion of the salary for each personnel in the appropriate column 3 or column 4."]
[1,null,2,3,4]
["LAST Name of \nEmployee","FIRST Name of Employee","Position\n(please be specific)","Federally Funded Salary","State/Local Funded Salary"]
[]
[]
[]
[]
[]
[]
[]
[]
[]
[]
[]
[]
[]
[]
[]
[]
[]
[]
[]
[]
[]
[]
[]
[]
[]
[]
[]
[]
[]
[]
[]
[]
[]
[]
[]
[]
[]
["Instructional Personnel- Salaries"]
["(REQUIRED to be kept on file for monitoring purposes)"]
[]
["LEA Name:  ",{"$f":"B4","v":0}]
["School Name:",0]
["School Grade Span:",0]
["School Year:",0]
["Instructional personnel includes all licensed classroom teachers and other licensed personnel assigned to the school who provide services that support instruction: principals, assistant principals, instructional coaches, librarians, music, art, and physical education teachers, guidance counselors, speech therapists and licensed social workers and psychological personnel.  Other personnel directly supporting instruction assigned to the school may include paraprofessionals and other personnel such as non-licensed social workers.  Personnel not involved in providing instructional support MAY NOT be included.   Other personnel that MAY NOT be included are clerical, custodial, food service, transportation, and any other personnel not providing instructional support. Do not include any PreK personnel or 100% federally funded personnel.  Please remember that federally funded would include Title I, II, III, IV, V, Homeless, CTE, SPED, etc.  If personnel is paid from federal and state/local funds indicate the portion of the salary for each personnel in the appropriate column 3 or column 4."]
[1,null,2,3,4]
["LAST Name of \nEmployee","FIRST Name of Employee","Position\n(please be specific)","Federally Funded Salary","State/Local Funded Salary"]
[]
[]
[]
[]
[]
[]
[]
[]
[]
[]
[]
[]
[]
[]
[]
[]
[]
[]
[]
[]
[]
[]
[]
[]
[]
[]
[]
[]
[]
[]
[]
[]
[]
[]
[]
[]
[null,null,null,"TOTAL",{"$f":"SUM(E11:E47,E58:E93)","v":0}]

{"sheet":"Instructional Salary School 53","index":54,"n_rows":94,"n_cols":5,"rows_kept":94,"cut":false,"hidden":false,"merged":[[8,0,8,1],[54,0,54,4],[55,0,55,1],[7,0,7,4]]}
["Instructional Personnel- Salaries"]
["(REQUIRED to be kept on file for monitoring purposes)"]
[]
["LEA Name:  ",{"$f":"Schools!$E$2","v":0}]
["School Name:",{"$f":"Schools!$A$71","v":0}]
["School Grade Span:",{"$f":"Schools!$B$71","v":0}]
["School Year:",{"$f":"Schools!$E$3","v":0}]
["Instructional personnel includes all licensed classroom teachers and other licensed personnel assigned to the school who provide services that support instruction: principals, assistant principals, instructional coaches, librarians, music, art, and physical education teachers, guidance counselors, speech therapists and licensed social workers and psychological personnel.  Other personnel directly supporting instruction assigned to the school may include paraprofessionals and other personnel such as non-licensed social workers.  Personnel not involved in providing instructional support MAY NOT be included.   Other personnel that MAY NOT be included are clerical, custodial, food service, transportation, and any other personnel not providing instructional support. Do not include any PreK personnel or 100% federally funded personnel.  Please remember that federally funded would include Title I, II, III, IV, V, Homeless, CTE, SPED, etc.  If personnel is paid from federal and state/local funds indicate the portion of the salary for each personnel in the appropriate column 3 or column 4."]
[1,null,2,3,4]
["LAST Name of \nEmployee","FIRST Name of Employee","Position\n(please be specific)","Federally Funded Salary","State/Local Funded Salary"]
[]
[]
[]
[]
[]
[]
[]
[]
[]
[]
[]
[]
[]
[]
[]
[]
[]
[]
[]
[]
[]
[]
[]
[]
[]
[]
[]
[]
[]
[]
[]
[]
[]
[]
[]
[]
[]
["Instructional Personnel- Salaries"]
["(REQUIRED to be kept on file for monitoring purposes)"]
[]
["LEA Name:  ",{"$f":"B4","v":0}]
["School Name:",0]
["School Grade Span:",0]
["School Year:",0]
["Instructional personnel includes all licensed classroom teachers and other licensed personnel assigned to the school who provide services that support instruction: principals, assistant principals, instructional coaches, librarians, music, art, and physical education teachers, guidance counselors, speech therapists and licensed social workers and psychological personnel.  Other personnel directly supporting instruction assigned to the school may include paraprofessionals and other personnel such as non-licensed social workers.  Personnel not involved in providing instructional support MAY NOT be included.   Other personnel that MAY NOT be included are clerical, custodial, food service, transportation, and any other personnel not providing instructional support. Do not include any PreK personnel or 100% federally funded personnel.  Please remember that federally funded would include Title I, II, III, IV, V, Homeless, CTE, SPED, etc.  If personnel is paid from federal and state/local funds indicate the portion of the salary for each personnel in the appropriate column 3 or column 4."]
[1,null,2,3,4]
["LAST Name of \nEmployee","FIRST Name of Employee","Position\n(please be specific)","Federally Funded Salary","State/Local Funded Salary"]
[]
[]
[]
[]
[]
[]
[]
[]
[]
[]
[]
[]
[]
[]
[]
[]
[]
[]
[]
[]
[]
[]
[]
[]
[]
[]
[]
[]
[]
[]
[]
[]
[]
[]
[]
[]
[null,null,null,"TOTAL",{"$f":"SUM(E11:E47,E58:E93)","v":0}]

{"sheet":"Instructional Salary School 54","index":55,"n_rows":94,"n_cols":5,"rows_kept":94,"cut":false,"hidden":false,"merged":[[8,0,8,1],[54,0,54,4],[55,0,55,1],[7,0,7,4]]}
["Instructional Personnel- Salaries"]
["(REQUIRED to be kept on file for monitoring purposes)"]
[]
["LEA Name:  ",{"$f":"Schools!$E$2","v":0}]
["School Name:",{"$f":"Schools!$A$72","v":0}]
["School Grade Span:",{"$f":"Schools!$B$72","v":0}]
["School Year:",{"$f":"Schools!$E$3","v":0}]
["Instructional personnel includes all licensed classroom teachers and other licensed personnel assigned to the school who provide services that support instruction: principals, assistant principals, instructional coaches, librarians, music, art, and physical education teachers, guidance counselors, speech therapists and licensed social workers and psychological personnel.  Other personnel directly supporting instruction assigned to the school may include paraprofessionals and other personnel such as non-licensed social workers.  Personnel not involved in providing instructional support MAY NOT be included.   Other personnel that MAY NOT be included are clerical, custodial, food service, transportation, and any other personnel not providing instructional support. Do not include any PreK personnel or 100% federally funded personnel.  Please remember that federally funded would include Title I, II, III, IV, V, Homeless, CTE, SPED, etc.  If personnel is paid from federal and state/local funds indicate the portion of the salary for each personnel in the appropriate column 3 or column 4."]
[1,null,2,3,4]
["LAST Name of \nEmployee","FIRST Name of Employee","Position\n(please be specific)","Federally Funded Salary","State/Local Funded Salary"]
[]
[]
[]
[]
[]
[]
[]
[]
[]
[]
[]
[]
[]
[]
[]
[]
[]
[]
[]
[]
[]
[]
[]
[]
[]
[]
[]
[]
[]
[]
[]
[]
[]
[]
[]
[]
[]
["Instructional Personnel- Salaries"]
["(REQUIRED to be kept on file for monitoring purposes)"]
[]
["LEA Name:  ",{"$f":"B4","v":0}]
["School Name:",0]
["School Grade Span:",0]
["School Year:",0]
["Instructional personnel includes all licensed classroom teachers and other licensed personnel assigned to the school who provide services that support instruction: principals, assistant principals, instructional coaches, librarians, music, art, and physical education teachers, guidance counselors, speech therapists and licensed social workers and psychological personnel.  Other personnel directly supporting instruction assigned to the school may include paraprofessionals and other personnel such as non-licensed social workers.  Personnel not involved in providing instructional support MAY NOT be included.   Other personnel that MAY NOT be included are clerical, custodial, food service, transportation, and any other personnel not providing instructional support. Do not include any PreK personnel or 100% federally funded personnel.  Please remember that federally funded would include Title I, II, III, IV, V, Homeless, CTE, SPED, etc.  If personnel is paid from federal and state/local funds indicate the portion of the salary for each personnel in the appropriate column 3 or column 4."]
[1,null,2,3,4]
["LAST Name of \nEmployee","FIRST Name of Employee","Position\n(please be specific)","Federally Funded Salary","State/Local Funded Salary"]
[]
[]
[]
[]
[]
[]
[]
[]
[]
[]
[]
[]
[]
[]
[]
[]
[]
[]
[]
[]
[]
[]
[]
[]
[]
[]
[]
[]
[]
[]
[]
[]
[]
[]
[]
[]
[null,null,null,"TOTAL",{"$f":"SUM(E11:E47,E58:E93)","v":0}]

{"sheet":"Instructional Salary School 55","index":56,"n_rows":94,"n_cols":5,"rows_kept":94,"cut":false,"hidden":false,"merged":[[8,0,8,1],[54,0,54,4],[55,0,55,1],[7,0,7,4]]}
["Instructional Personnel- Salaries"]
["(REQUIRED to be kept on file for monitoring purposes)"]
[]
["LEA Name:  ",{"$f":"Schools!$E$2","v":0}]
["School Name:",{"$f":"Schools!$A$73","v":0}]
["School Grade Span:",{"$f":"Schools!$B$73","v":0}]
["School Year:",{"$f":"Schools!$E$3","v":0}]
["Instructional personnel includes all licensed classroom teachers and other licensed personnel assigned to the school who provide services that support instruction: principals, assistant principals, instructional coaches, librarians, music, art, and physical education teachers, guidance counselors, speech therapists and licensed social workers and psychological personnel.  Other personnel directly supporting instruction assigned to the school may include paraprofessionals and other personnel such as non-licensed social workers.  Personnel not involved in providing instructional support MAY NOT be included.   Other personnel that MAY NOT be included are clerical, custodial, food service, transportation, and any other personnel not providing instructional support. Do not include any PreK personnel or 100% federally funded personnel.  Please remember that federally funded would include Title I, II, III, IV, V, Homeless, CTE, SPED, etc.  If personnel is paid from federal and state/local funds indicate the portion of the salary for each personnel in the appropriate column 3 or column 4."]
[1,null,2,3,4]
["LAST Name of \nEmployee","FIRST Name of Employee","Position\n(please be specific)","Federally Funded Salary","State/Local Funded Salary"]
[]
[]
[]
[]
[]
[]
[]
[]
[]
[]
[]
[]
[]
[]
[]
[]
[]
[]
[]
[]
[]
[]
[]
[]
[]
[]
[]
[]
[]
[]
[]
[]
[]
[]
[]
[]
[]
["Instructional Personnel- Salaries"]
["(REQUIRED to be kept on file for monitoring purposes)"]
[]
["LEA Name:  ",{"$f":"B4","v":0}]
["School Name:",0]
["School Grade Span:",0]
["School Year:",0]
["Instructional personnel includes all licensed classroom teachers and other licensed personnel assigned to the school who provide services that support instruction: principals, assistant principals, instructional coaches, librarians, music, art, and physical education teachers, guidance counselors, speech therapists and licensed social workers and psychological personnel.  Other personnel directly supporting instruction assigned to the school may include paraprofessionals and other personnel such as non-licensed social workers.  Personnel not involved in providing instructional support MAY NOT be included.   Other personnel that MAY NOT be included are clerical, custodial, food service, transportation, and any other personnel not providing instructional support. Do not include any PreK personnel or 100% federally funded personnel.  Please remember that federally funded would include Title I, II, III, IV, V, Homeless, CTE, SPED, etc.  If personnel is paid from federal and state/local funds indicate the portion of the salary for each personnel in the appropriate column 3 or column 4."]
[1,null,2,3,4]
["LAST Name of \nEmployee","FIRST Name of Employee","Position\n(please be specific)","Federally Funded Salary","State/Local Funded Salary"]
[]
[]
[]
[]
[]
[]
[]
[]
[]
[]
[]
[]
[]
[]
[]
[]
[]
[]
[]
[]
[]
[]
[]
[]
[]
[]
[]
[]
[]
[]
[]
[]
[]
[]
[]
[]
[null,null,null,"TOTAL",{"$f":"SUM(E11:E47,E58:E93)","v":0}]

{"sheet":"Instructional Salary School 56","index":57,"n_rows":94,"n_cols":5,"rows_kept":94,"cut":false,"hidden":false,"merged":[[8,0,8,1],[54,0,54,4],[55,0,55,1],[7,0,7,4]]}
["Instructional Personnel- Salaries"]
["(REQUIRED to be kept on file for monitoring purposes)"]
[]
["LEA Name:  ",{"$f":"Schools!$E$2","v":0}]
["School Name:",{"$f":"Schools!$A$74","v":0}]
["School Grade Span:",{"$f":"Schools!$B$74","v":0}]
["School Year:",{"$f":"Schools!$E$3","v":0}]
["Instructional personnel includes all licensed classroom teachers and other licensed personnel assigned to the school who provide services that support instruction: principals, assistant principals, instructional coaches, librarians, music, art, and physical education teachers, guidance counselors, speech therapists and licensed social workers and psychological personnel.  Other personnel directly supporting instruction assigned to the school may include paraprofessionals and other personnel such as non-licensed social workers.  Personnel not involved in providing instructional support MAY NOT be included.   Other personnel that MAY NOT be included are clerical, custodial, food service, transportation, and any other personnel not providing instructional support. Do not include any PreK personnel or 100% federally funded personnel.  Please remember that federally funded would include Title I, II, III, IV, V, Homeless, CTE, SPED, etc.  If personnel is paid from federal and state/local funds indicate the portion of the salary for each personnel in the appropriate column 3 or column 4."]
[1,null,2,3,4]
["LAST Name of \nEmployee","FIRST Name of Employee","Position\n(please be specific)","Federally Funded Salary","State/Local Funded Salary"]
[]
[]
[]
[]
[]
[]
[]
[]
[]
[]
[]
[]
[]
[]
[]
[]
[]
[]
[]
[]
[]
[]
[]
[]
[]
[]
[]
[]
[]
[]
[]
[]
[]
[]
[]
[]
[]
["Instructional Personnel- Salaries"]
["(REQUIRED to be kept on file for monitoring purposes)"]
[]
["LEA Name:  ",{"$f":"B4","v":0}]
["School Name:",0]
["School Grade Span:",0]
["School Year:",0]
["Instructional personnel includes all licensed classroom teachers and other licensed personnel assigned to the school who provide services that support instruction: principals, assistant principals, instructional coaches, librarians, music, art, and physical education teachers, guidance counselors, speech therapists and licensed social workers and psychological personnel.  Other personnel directly supporting instruction assigned to the school may include paraprofessionals and other personnel such as non-licensed social workers.  Personnel not involved in providing instructional support MAY NOT be included.   Other personnel that MAY NOT be included are clerical, custodial, food service, transportation, and any other personnel not providing instructional support. Do not include any PreK personnel or 100% federally funded personnel.  Please remember that federally funded would include Title I, II, III, IV, V, Homeless, CTE, SPED, etc.  If personnel is paid from federal and state/local funds indicate the portion of the salary for each personnel in the appropriate column 3 or column 4."]
[1,null,2,3,4]
["LAST Name of \nEmployee","FIRST Name of Employee","Position\n(please be specific)","Federally Funded Salary","State/Local Funded Salary"]
[]
[]
[]
[]
[]
[]
[]
[]
[]
[]
[]
[]
[]
[]
[]
[]
[]
[]
[]
[]
[]
[]
[]
[]
[]
[]
[]
[]
[]
[]
[]
[]
[]
[]
[]
[]
[null,null,null,"TOTAL",{"$f":"SUM(E11:E47,E58:E93)","v":0}]

{"sheet":"Instructional Salary School 57","index":58,"n_rows":94,"n_cols":5,"rows_kept":94,"cut":false,"hidden":false,"merged":[[8,0,8,1],[55,0,55,1],[54,0,54,4],[7,0,7,4]]}
["Instructional Personnel- Salaries"]
["(REQUIRED to be kept on file for monitoring purposes)"]
[]
["LEA Name:  ",{"$f":"Schools!$E$2","v":0}]
["School Name:",{"$f":"Schools!$A$75","v":0}]
["School Grade Span:",{"$f":"Schools!$B$75","v":0}]
["School Year:",{"$f":"Schools!$E$3","v":0}]
["Instructional personnel includes all licensed classroom teachers and other licensed personnel assigned to the school who provide services that support instruction: principals, assistant principals, instructional coaches, librarians, music, art, and physical education teachers, guidance counselors, speech therapists and licensed social workers and psychological personnel.  Other personnel directly supporting instruction assigned to the school may include paraprofessionals and other personnel such as non-licensed social workers.  Personnel not involved in providing instructional support MAY NOT be included.   Other personnel that MAY NOT be included are clerical, custodial, food service, transportation, and any other personnel not providing instructional support. Do not include any PreK personnel or 100% federally funded personnel.  Please remember that federally funded would include Title I, II, III, IV, V, Homeless, CTE, SPED, etc.  If personnel is paid from federal and state/local funds indicate the portion of the salary for each personnel in the appropriate column 3 or column 4."]
[1,null,2,3,4]
["LAST Name of \nEmployee","FIRST Name of Employee","Position\n(please be specific)","Federally Funded Salary","State/Local Funded Salary"]
[]
[]
[]
[]
[]
[]
[]
[]
[]
[]
[]
[]
[]
[]
[]
[]
[]
[]
[]
[]
[]
[]
[]
[]
[]
[]
[]
[]
[]
[]
[]
[]
[]
[]
[]
[]
[]
["Instructional Personnel- Salaries"]
["(REQUIRED to be kept on file for monitoring purposes)"]
[]
["LEA Name:  ",{"$f":"B4","v":0}]
["School Name:",0]
["School Grade Span:",0]
["School Year:",0]
["Instructional personnel includes all licensed classroom teachers and other licensed personnel assigned to the school who provide services that support instruction: principals, assistant principals, instructional coaches, librarians, music, art, and physical education teachers, guidance counselors, speech therapists and licensed social workers and psychological personnel.  Other personnel directly supporting instruction assigned to the school may include paraprofessionals and other personnel such as non-licensed social workers.  Personnel not involved in providing instructional support MAY NOT be included.   Other personnel that MAY NOT be included are clerical, custodial, food service, transportation, and any other personnel not providing instructional support. Do not include any PreK personnel or 100% federally funded personnel.  Please remember that federally funded would include Title I, II, III, IV, V, Homeless, CTE, SPED, etc.  If personnel is paid from federal and state/local funds indicate the portion of the salary for each personnel in the appropriate column 3 or column 4."]
[1,null,2,3,4]
["LAST Name of \nEmployee","FIRST Name of Employee","Position\n(please be specific)","Federally Funded Salary","State/Local Funded Salary"]
[]
[]
[]
[]
[]
[]
[]
[]
[]
[]
[]
[]
[]
[]
[]
[]
[]
[]
[]
[]
[]
[]
[]
[]
[]
[]
[]
[]
[]
[]
[]
[]
[]
[]
[]
[]
[null,null,null,"TOTAL",{"$f":"SUM(E11:E47,E58:E93)","v":0}]

{"sheet":"Instructional Salary School 58","index":59,"n_rows":94,"n_cols":5,"rows_kept":94,"cut":false,"hidden":false,"merged":[[54,0,54,4],[55,0,55,1],[8,0,8,1],[7,0,7,4]]}
["Instructional Personnel- Salaries"]
["(REQUIRED to be kept on file for monitoring purposes)"]
[]
["LEA Name:  ",{"$f":"Schools!$E$2","v":0}]
["School Name:",{"$f":"Schools!$A$76","v":0}]
["School Grade Span:",{"$f":"Schools!$B$76","v":0}]
["School Year:",{"$f":"Schools!$E$3","v":0}]
["Instructional personnel includes all licensed classroom teachers and other licensed personnel assigned to the school who provide services that support instruction: principals, assistant principals, instructional coaches, librarians, music, art, and physical education teachers, guidance counselors, speech therapists and licensed social workers and psychological personnel.  Other personnel directly supporting instruction assigned to the school may include paraprofessionals and other personnel such as non-licensed social workers.  Personnel not involved in providing instructional support MAY NOT be included.   Other personnel that MAY NOT be included are clerical, custodial, food service, transportation, and any other personnel not providing instructional support. Do not include any PreK personnel or 100% federally funded personnel.  Please remember that federally funded would include Title I, II, III, IV, V, Homeless, CTE, SPED, etc.  If personnel is paid from federal and state/local funds indicate the portion of the salary for each personnel in the appropriate column 3 or column 4."]
[1,null,2,3,4]
["LAST Name of \nEmployee","FIRST Name of Employee","Position\n(please be specific)","Federally Funded Salary","State/Local Funded Salary"]
[]
[]
[]
[]
[]
[]
[]
[]
[]
[]
[]
[]
[]
[]
[]
[]
[]
[]
[]
[]
[]
[]
[]
[]
[]
[]
[]
[]
[]
[]
[]
[]
[]
[]
[]
[]
[]
["Instructional Personnel- Salaries"]
["(REQUIRED to be kept on file for monitoring purposes)"]
[]
["LEA Name:  ",{"$f":"B4","v":0}]
["School Name:",0]
["School Grade Span:",0]
["School Year:",0]
["Instructional personnel includes all licensed classroom teachers and other licensed personnel assigned to the school who provide services that support instruction: principals, assistant principals, instructional coaches, librarians, music, art, and physical education teachers, guidance counselors, speech therapists and licensed social workers and psychological personnel.  Other personnel directly supporting instruction assigned to the school may include paraprofessionals and other personnel such as non-licensed social workers.  Personnel not involved in providing instructional support MAY NOT be included.   Other personnel that MAY NOT be included are clerical, custodial, food service, transportation, and any other personnel not providing instructional support. Do not include any PreK personnel or 100% federally funded personnel.  Please remember that federally funded would include Title I, II, III, IV, V, Homeless, CTE, SPED, etc.  If personnel is paid from federal and state/local funds indicate the portion of the salary for each personnel in the appropriate column 3 or column 4."]
[1,null,2,3,4]
["LAST Name of \nEmployee","FIRST Name of Employee","Position\n(please be specific)","Federally Funded Salary","State/Local Funded Salary"]
[]
[]
[]
[]
[]
[]
[]
[]
[]
[]
[]
[]
[]
[]
[]
[]
[]
[]
[]
[]
[]
[]
[]
[]
[]
[]
[]
[]
[]
[]
[]
[]
[]
[]
[]
[]
[null,null,null,"TOTAL",{"$f":"SUM(E11:E47,E58:E93)","v":0}]

{"sheet":"Instructional Salary School 59","index":60,"n_rows":94,"n_cols":5,"rows_kept":94,"cut":false,"hidden":false,"merged":[[8,0,8,1],[55,0,55,1],[54,0,54,4],[7,0,7,4]]}
["Instructional Personnel- Salaries"]
["(REQUIRED to be kept on file for monitoring purposes)"]
[]
["LEA Name:  ",{"$f":"Schools!$E$2","v":0}]
["School Name:",{"$f":"Schools!$A$77","v":0}]
["School Grade Span:",{"$f":"Schools!$B$77","v":0}]
["School Year:",{"$f":"Schools!$E$3","v":0}]
["Instructional personnel includes all licensed classroom teachers and other licensed personnel assigned to the school who provide services that support instruction: principals, assistant principals, instructional coaches, librarians, music, art, and physical education teachers, guidance counselors, speech therapists and licensed social workers and psychological personnel.  Other personnel directly supporting instruction assigned to the school may include paraprofessionals and other personnel such as non-licensed social workers.  Personnel not involved in providing instructional support MAY NOT be included.   Other personnel that MAY NOT be included are clerical, custodial, food service, transportation, and any other personnel not providing instructional support. Do not include any PreK personnel or 100% federally funded personnel.  Please remember that federally funded would include Title I, II, III, IV, V, Homeless, CTE, SPED, etc.  If personnel is paid from federal and state/local funds indicate the portion of the salary for each personnel in the appropriate column 3 or column 4."]
[1,null,2,3,4]
["LAST Name of \nEmployee","FIRST Name of Employee","Position\n(please be specific)","Federally Funded Salary","State/Local Funded Salary"]
[]
[]
[]
[]
[]
[]
[]
[]
[]
[]
[]
[]
[]
[]
[]
[]
[]
[]
[]
[]
[]
[]
[]
[]
[]
[]
[]
[]
[]
[]
[]
[]
[]
[]
[]
[]
[]
["Instructional Personnel- Salaries"]
["(REQUIRED to be kept on file for monitoring purposes)"]
[]
["LEA Name:  ",{"$f":"B4","v":0}]
["School Name:",0]
["School Grade Span:",0]
["School Year:",0]
["Instructional personnel includes all licensed classroom teachers and other licensed personnel assigned to the school who provide services that support instruction: principals, assistant principals, instructional coaches, librarians, music, art, and physical education teachers, guidance counselors, speech therapists and licensed social workers and psychological personnel.  Other personnel directly supporting instruction assigned to the school may include paraprofessionals and other personnel such as non-licensed social workers.  Personnel not involved in providing instructional support MAY NOT be included.   Other personnel that MAY NOT be included are clerical, custodial, food service, transportation, and any other personnel not providing instructional support. Do not include any PreK personnel or 100% federally funded personnel.  Please remember that federally funded would include Title I, II, III, IV, V, Homeless, CTE, SPED, etc.  If personnel is paid from federal and state/local funds indicate the portion of the salary for each personnel in the appropriate column 3 or column 4."]
[1,null,2,3,4]
["LAST Name of \nEmployee","FIRST Name of Employee","Position\n(please be specific)","Federally Funded Salary","State/Local Funded Salary"]
[]
[]
[]
[]
[]
[]
[]
[]
[]
[]
[]
[]
[]
[]
[]
[]
[]
[]
[]
[]
[]
[]
[]
[]
[]
[]
[]
[]
[]
[]
[]
[]
[]
[]
[]
[]
[null,null,null,"TOTAL",{"$f":"SUM(E11:E47,E58:E93)","v":0}]